Workbook

Sheet ④修繕履歴
A1: * | J1: * | L1: * | N1: * | P1: * | R1: * | T1: * | V1: * | AM1: 作成日／ 年 月 日 集会（管理組合総会）で議決された日／ 年 月 日 | AW1: （単位：千円）
A2: 区分 | B2: 推定修繕工事項目 | C2: 暦年 | D2: 2011 10期 | F2: 2012 11期 | H2: 2013 12期 | J2: 2014 13期 | L2: 2015 14期 | N2: 2016 15期 | P2: 2017 16期 | R2: 2018 17期 | T2: 2019 18期 | V2: 2020 19期 | X2: 2021 20期 | Z2: 2022 21期 | AB2: 2023 22期 | AD2: 2024 23期 | AF2: 2025 24期 | AH2: 2026 | AI2: 2027 | AJ2: 2028 | AK2: 2029 | AL2: 2030 | AM2: 2031 | AN2: 2032 | AO2: 2033 | AP2: 2034 | AQ2: 2035 | AR2: 2036 | AS2: 2037 | AT2: 2038 | AU2: 2039 | AV2: 2040 | AX2: 合計
C3: 経年 | D3: 項目 | E3: 費用 | F3: 項目 | G3: 費用 | H3: 項目 | I3: 費用 | J3: 項目 | K3: 費用 | L3: 項目 | M3: 費用 | N3: 項目 | O3: 費用 | P3: 項目 | Q3: 費用 | R3: 項目 | S3: 費用 | T3: 項目 | U3: 費用 | V3: 項目 | W3: 費用 | X3: 項目 | Y3: 費用 | Z3: 項目 | AA3: 費用 | AB3: 項目 | AC3: 費用 | AD3: 項目 | AE3: 費用 | AF3: 項目 | AG3: 費用 | AH3: 25 | AI3: 26 | AJ3: 27 | AK3: 28 | AL3: 29 | AM3: 30 | AN3: 31 | AO3: 32 | AP3: 33 | AQ3: 34 | AR3: 35 | AS3: 36 | AT3: 37 | AU3: 38 | AV3: 39
F4: 黄色は調査に関する費用 | G4: 水色は設備長計に反映 | I4: 桃色はシャッター | R4: 防災センター移設 送排風機 | T4: 大雨被害 | V4: コロナ | X4: コロナ
F5: 駐車場ゲートリモコン修理 | G5: 14280 | H5: シリンダー修理 | I5: 12600 | J5: 誘導灯ランプ交換 | K5: 6615 | L5: シリンダー修理 | M5: 16200 | N5: シャッター点検修理 | O5: 32400 | P5: 漏水調査 | Q5: 17064 | R5: 店舗雨樋化粧カバー復旧 | S5: 24408 | T5: シャッター修理 | U5: 27000 | V5: 防火扉補修 | W5: 8800 | X5: 排水槽フロートスイッチ取替 | Y5: 108900 | Z5: シャッター修理 | AA5: 16280 | AB5: 光電式感知器取替 | AC5: 92400 | AD5: エヤコン取替 | AE5: 228800 | AF5: 予算 | AG5: 3513898
F6: 植栽改修 | G6: 103647 | H6: 地下防災センター鍵制御盤修理 | I6: 15750 | J6: シャッター点検・修理 | K6: 10500 | L6: 電気錠修理 | M6: 19980 | N6: 室外機架台柱移設・植栽工事 | O6: 370872 | P6: シャッター修理 | Q6: 19440 | R6: 駐輪場スライドドアー補修 | S6: 29808 | T6: 共用灯自動点滅器交換 | U6: 35640 | V6: 駐輪場照明器具取替 | W6: 27000 | X6: 水漏れ調査費 | Y6: 116600 | Z6: 電子錠補修 | AA6: 29700 | AB6: 漏水調査費 | AC6: 123310 | AD6: 防災シャッターモーター交換 | AE6: 330000
F7: シャッター修理 | G7: 37800 | H7: 鉄扉電気錠補修 | I7: 19320 | J7: 同上 補修工事 | K7: 10500 | L7: シリンダー取替 | M7: 27000 | N7: ゴミ庫シャッター修理 | O7: 12960 | P7: CS放送受信調査 | Q7: 27000 | R7: 植栽補填 | S7: 35640 | T7: 排水槽フロートスイッチ交換 | U7: 46440 | V7: ポストダイヤル交換 | W7: 45840 | X7: 自転車搬送コンベア インバーター取替 | Y7: 121000 | Z7: 店舗シャッター修理 | AA7: 38830 | AB7: 受水槽内感知器取替 | AC7: 132000 | AD7: 防災シャッターモーター交換 | AE7: 495440
F8: センサーライト取付け | G8: 38500 | H8: 駐車場リモコン補修 | I8: 19530 | J8: 同上 スイッチＢOX補修 | K8: 11550 | L8: シャッター修理 | M8: 41040 | N8: 誘導灯取替 | O8: 114480 | P8: 階段踊り場漏水補修 | Q8: 37800 | R8: 照明不点灯調査改修 | S8: 43200 | T8: 緊急ガス遮断弁保守点検 | U8: 147548 | V8: 防犯カメラメンテナンス | W8: 50000 | X8: シャッター修理 | Y8: 125730 | Z8: 宅配BOX修理 | AA8: 44000 | AB8: 電子錠・タイマー取替 | AC8: 134200 | AD8: 防災シャッターモーター交換 | AE8: 177870
F9: 路盤改修 | G9: 54000 | H9: 無線信号装置取付け | I9: 21000 | J9: シリンダー修理 | K9: 36750 | L9: 照明器具交換 | M9: 41040 | N9: シャッター点検修理 | O9: 8640 | P9: 消火器取替 | Q9: 38800 | R9: 駐車場漏水補修 | S9: 54918 | T9: 植栽他工事 | U9: 151200 | V9: 防犯カメラ交換 | W9: 50000 | X9: 照明器具取替 | Y9: 168300 | Z9: プレハブ冷蔵庫修理 | AA9: 49500 | AB9: 防犯カメラ更新 | AC9: 242000 | AD9: 消火器誘導灯改修 | AE9: 350185
F10: エヤコンドレンアップ交換 | G10: 88515 | H10: ロボットゲート修理 | I10: 23520 | J10: 廊下灯絶縁不良調査・改修 | K10: 36750 | L10: 照明器具スイッチ改修 | M10: 73224 | N10: 地下管理室前通路上部止水工事 | O10: 677150 | P10: 地下EXPJ漏水補修 | Q10: 42120 | R10: 照明器具取替 | S10: 66960 | T10: 庇補修・駐車場管理室漏水補修 | U10: 213840 | V10: 排水槽フロートスイッチ取替 | W10: 50760 | X10: ポストキャップ取替 | Y10: 211200 | Z10: 感知器取替 | AA10: 57200 | AB10: ガス管補修 | AC10: 275000 | AD10: 防災シャッターモーター交換 | AE10: 36300
F11: エヤコン交換 | G11: 12600 | H11: 駐車場照明器具取替 | I11: 28770 | J11: 煙感取替 | K11: 37800 | L11: 消防設備（住宅）改修工事 | M11: 75075 | N11: ゲート修理・受信機交換 | O11: 113616 | P11: 排水槽フロートスイッチ交換作業 | Q11: 46440 | R11: シャッター修理 | S11: 68364 | T11: 自動ドア修理 | U11: 270000 | V11: 店舗ドレン改修 | W11: 68365 | X11: 排煙窓修理 | Y11: 220000 | Z11: タイル補修 | AA11: 60500 | AB11: 排煙窓修繕 | AC11: 319000 | AD11: 防災シャッターモーター交換 | AE11: 164934
F12: 電波障害施設調査費 | G12: 40950 | H12: オートロックスイッチ修理 | I12: 39375 | J12: 緊急ガス遮断弁 定期整備 | K12: 46200 | L12: 不鳴調査 | M12: 86400 | N12: 店舗シャッター修理 | O12: 13608 | P12: 自転車搬送コンベアライン取替 | Q12: 50760 | R12: 駐輪場扉補修 | S12: 109836 | T12: 天井漏水補修工事 | U12: 518400 | V12: 増圧給水ポンプ圧力タンク取替 | W12: 162800 | X12: 規約改正業務 | Y12: 495000 | Z12: ゲートモーター交換 | AA12: 113256 | AB12: 消防設備点検費 | AC12: 323400 | AD12: シャッター修理 | AE12: 13860
F13: 照明器具交換 | G13: 27300 | H13: 喚起ダクト廻り漏水調査 | I13: 46200 | J13: 電気錠取替 | K13: 61897 | L13: 防鳥ネット改修 | M13: 90720 | N13: オートロックスイッチ及び扉シリンダー取替 | O13: 108000 | P13: 店舗前ダウンライト取り替え | Q13: 59400 | R13: 電子錠・タイマー取替 | S13: 118800 | T13: 天井漏水調査 | U13: 648000 | V13: 排水管修繕工事 | W13: 434500 | Z13: 電子錠取替 | AA13: 113300 | AB13: シャッター修理 | AC13: 788040 | AD13: 防災シャッターモーター交換 | AE13: 1081520
F14: 看板等補修工事 | G14: 27300 | H14: 自動ドア修理 | I14: 190050 | J14: 自動ドア修理 | K14: 63000 | L14: 排水ポンプ取替 | M14: 225750 | P14: 共用散水系統漏水補修 | Q14: 62640 | R14: 誘導灯交換 | S14: 172216 | T14: 共用旧排水管調査 | U14: 961632 | V14: 受水槽排水ポンプ取替 | W14: 550000 | Z14: 防火戸ラッチ調査 | AA14: 113850 | AB14: 非常照明器具取替 | AC14: 847000 | AD14: シャッター修理 | AE14: 15180
F15: K-配管ピット内防水工事 | G15: 338100 | H15: シャッター修理 | I15: 496650 | J15: 感知器調査 | K15: 82950 | L15: スプリンクラーヘッド取替 | M15: 303480 | P15: ELV誘導灯取替 | Q15: 66960 | R15: ボイススピーカー取替 | S15: 216160 | T15: サイン工事 | U15: 1447200 | V15: シャッター修理 | W15: 830488 | Z15: 排水槽フロートスイッチ取替 | AA15: 138600 | AB15: 防犯カメラ取替 | AC15: 1056000 | AD15: 照明器具取替 | AE15: 30800
F16: シリンダー修理 | G16: 15750 | J16: 照明器具交換 | K16: 122850 | L16: 送風機修理 | M16: 357000 | P16: 店舗出入口電子錠取替 | Q16: 83160 | R16: ELV前照明器具取替 | S16: 216160 | V16: エントランス巾木額口補修 | W16: 1447600 | Z16: 感知器改修 | AA16: 165000 | AB16: 排水ポンプ取替 | AC16: 1419000 | AD16: 電子錠アダプター取替 | AE16: 24200
F17: スプリンクラー調査 | G17: 278250 | J17: 鳩対策工事 | K17: 262500 | L17: シャッター修理点検修理 | M17: 365040 | P17: 平板不陸調整 | Q17: 95040 | R17: 階段断線工事 | S17: 343440 | Z17: 地下排水ポンプ取替 | AA17: 178200 | AD17: 貯水槽水位制御工事 | AE17: 583000
F18: 共用部長尺シート補修 | G18: 27800 | J18: 送風機修理・ベルト交換点検修理 | K18: 399000 | L18: 植栽工事 | M18: 379728 | P18: 坪庭植栽他工事 | Q18: 98280 | R18: エントランスエヤコン取替 | S18: 829440 | Z18: 照明器具取替 | AA18: 216700 | AD18: 防災盤部品交換 | AE18: 2420000
F19: 路盤補修 | G19: 44600 | L19: 消防設備（共用部）改修 | M19: 577500 | P19: 駐輪場スライダー扉開閉不良調整 | Q19: 126900 | R19: 中央監視装置MCU UPS交換工事 | S19: 950400 | Z19: 発電室防音ドア補修 | AA19: 228800 | AD19: シャッター修理 | AE19: 480150 | AM19: =-②工事費内訳書!AF383 -> 0
F20: 照明器具交換 | G20: 23541 | M20: 734400 | P20: ポット用樹木支柱補修 | Q20: 137916 | Z20: 駐車場出入口グレーチング補修 | AA20: 295680
P21: 防犯カメラ設置 | Q21: 199800 | Z21: 駐車場ピット内漏水調査 | AA21: 317350 | AD21: ※防災シャッターは３台分
P22: 庇シーリング打ち替え | Q22: 200880 | Z22: 消火補給水槽廻り取替 | AA22: 473000
P23: ゲート修理 | Q23: 243216 | Z23: 電気温水器取替 | AA23: 473000
P24: 店舗天井漏水 | Q24: 291600 | Z24: ゴミ庫シャッター修理 | AA24: 893750
P25: CS放送改修工事 | Q25: 463320 | Z25: 屋外階段シート改修 | AA25: 6435000
P26: 庇補修工事 | Q26: 799200
P27: １階南軒天塗装工事 | Q27: 885600
P28: １階空調ガラリ補修工事 | Q28: 1976400
D30: 小修繕一式（明細不明） | E30: 2393060 | G30: =SUM(G5:G29) -> 1172933 | I30: =SUM(I5:I29) -> 912765 | K30: =SUM(K5:K29) -> 1188862 | M30: =SUM(M5:M29) -> 3413577 | O30: =SUM(O5:O29) -> 1451726 | Q30: =SUM(Q5:Q29) -> 6069736 | S30: =SUM(S5:S29) -> 3279750 | U30: =SUM(U5:U29) -> 4466900 | W30: =SUM(W5:W29) -> 3726153 | Y30: =SUM(Y5:Y29) -> 1566730 | AA30: =SUM(AA5:AA29) -> 10451496 | AC30: =SUM(AC5:AC29) -> 5751350 | AE30: =SUM(AE5:AE29) -> 6432239 | AG30: =SUM(AG5:AG29) -> 3513898
A32: 特別修繕履歴 | D32: 鉄部塗装工事 | E32: =5538750+563365 -> 6102115 | F32: 湧水ポンプ取替 | G32: 399000 | H32: 大規模修繕工事 | I32: 161599000 | J32: 設備調査費用 | K32: 997500 | L32: 駐車場天井漏水対策工事 | M32: 518400 | N32: 中央監視装置バッテリー交換工事 | O32: 259200 | P32: 非常照明器具取替 | Q32: 61560 | R32: 送風機改修工事 | S32: 1285200 | T32: ガス漏れ警報器一括取替工事 | U32: 1181952 | V32: 地下駐車場送風機修繕工事 | W32: 2572900 | X32: 消防設備改修工事 | Y32: 8090500 | Z32: 消防設備改修工事 | AA32: 1843600 | AB32: 施設用ゴミ置き場冷蔵庫機器取替 | AC32: 866800 | AD32: 調査費 さんど亭雑配管 | AE32: 512950 | AF32: ガス警報一括取替 | AG32: 920040
D33: 鉄部塗装工事監理費用 GC | E33: 420000 | F33: 植栽改修工事 | G33: 868335 | H33: 委託コンサル費 JEM | I33: 525000 | J33: スプリンクラー配管改修工事 | K33: 178500 | L33: 駐車場防犯カメラ新設工事 | M33: 285120 | N33: 消火補給水槽防水工事 | O33: 0 | P33: 鳩除けネット修繕工事 | Q33: 56160 | R33: 防災センター改修工事 | S33: 38988000 | T33: 鉄部塗装工事 | U33: 9513043 | X33: 自家用受変電設備改修 | Y33: 462000 | Z33: アルミハニカムパネル庇補修 | AA33: 846780 | AB33: 住宅防災盤更新 | AC33: 6930000 | AD33: 配管改修費 さんど亭 | AE33: 2217600 | AF33: 外壁調査 | AG33: 968000
D34: 大規模修繕工事積算費用 | E34: 1680000 | F34: 照明器具取替工事 | G34: 1096698 | H34: 工事監理費 GC | I34: 2142000 | J34: 床面舗装改修費 | K34: 100000 | L34: センサーライト新設工事 | M34: 113400 | N34: 一括受電コンサル費 | O34: 1890000 | P34: 消防設備不具合ヶ所改修工事 | Q34: 2965680 | R34: 防災センター移設に伴う建築工事 駐輪機増設含む | S34: 4369680 | T34: 東階段横タラップ設置工事 | U34: 96120 | X34: 防犯カメラ増設工事 | Y34: 450000 | Z34: 自転車搬送コンベアモーターユニット取替 | AA34: 1636800 | AB34: 地下防災総合盤調査費 | AC34: 485100 | AD34: 増圧給水ポンプユニット整備工事 | AE34: 1573000 | AF34: 地下駐車場防災シャッター修理 | AG34: 2075040
F35: 敷地土間等補修工事 | G35: 481000 | H35: 消防設備改修工事 | I35: 971250 | L35: 地下湧水対策工事 | M35: 136080 | N35: インターフォン工事コンサル費 | O35: 540000 | P35: 自動ドア装置交換 | Q35: 1771200 | R35: 駐輪場改良工事 | S35: 3682260 | T35: 床シート貼替工事 | U35: 237600 | X35: 非常用自家発設備点検整備 | Y35: 1615900 | Z35: 地下駐車場給排気設備更新 | AA35: 23564750 | AB35: 消火器取替 | AC35: 340680 | AD35: 宅配BOX更新 | AE35: 4222900 | AF35: ※防災シャッター残2台分
F36: 中央監視盤交換工事 | G36: 3150000 | H36: スプリンクラー流水検知弁交換 | I36: 882000 | L36: 宅配BOXメモリー電池更新 | M36: 17161 | N36: インターフォン工事着手金 | O36: 270000 | P36: 中央監視MCU部品更新工事 | Q36: 0 | R36: 地下2階発電機室漏水補修工事 | S36: 3637440 | T36: 消防設備改修工事 | U36: 0 | X36: アルミハニカムパネル庇補修 | Y36: 0 | AF36: 東階段シート貼替補修工事 | AG36: 3814800
F37: 電動シャッター改造工事 | G37: 4304947 | H37: 設備調査費用 | I37: 0 | L37: 共用部照明LED化工事 | M37: 6080400 | N37: 歩道陥没ヶ所改修工事 | O37: 1272510 | P37: 中央監視装置機能移設調査 | Q37: 216000 | T37: 防犯カメラ更新工事 | U37: 3368400 | X37: 自転車搬送コンベアユニット取替 | Y37: 0 | AF37: 店舗ポスト入替工事 | AG37: 988900
F38: 大規模修繕コンサル費 JEM | G38: 903000 | H38: 図面保存作業費 デジタル化 | I38: 670950 | L38: 同 コンサル費用 | M38: 378000 | N38: 駐車場排水ポンプ制御部品交換 | O38: 185760 | P38: 増圧ポンプユニット更新工事 | Q38: 5292000 | AF38: 地下駐車場管理室漏水改修工事 | AG38: 4301000
H39: 商業組合設立コンサル費 | I39: 0 | L39: 駐車場給気ファン修理 | M39: 190080 | N39: 地下駐車場雨水管管内洗浄工事 | O39: 2793960 | P39: 防災センター内排水改修工事 | Q39: 55890 | AF39: 地下駐車場感知器交換工事 | AG39: 1006500 | AH39: 関西ホーチキ220万
L40: ガス緊急遮断弁整備 | M40: 695736 | N40: 高圧一括受電 課金メーター工事 | O40: 16200000 | P40: EXPJ取替工事 | Q40: 361260 | AF40: 西棟２階天井改修工事 | AG40: 481800
L41: 消防設備改修工事 | M41: 864000 | N41: 一括受電工事仮設工事 | O41: 1296000 | P41: タイムズ管理室天井漏水改修工事 | Q41: 250560 | AF41: 地下駐車場PIT湧水調査 | AG41: 151800
N42: 高圧一括受電課金メーター更新 | O42: 18792000 | P42: 地下２階排水ポンプ・制御盤改修工事 | Q42: 1933200 | AF42: 地下PITポンプ入替工事 | AG42: 1175900
N43: 一括受電に伴う電気設備譲渡 | O43: 318745 | P43: 地下2階ピット湧水調査 | Q43: 2484000 | AF43: 西棟2階 W-EBカメラ増設工事 | AG43: 935000
N44: 非接触キーシステム設置工事 | O44: 1004400 | AF44: 西棟地下感知器取替工事 | AG44: 1870000 | AH44: 関西ホーチキ
N45: インターフォン工事 | O45: 14040000
A47: 合計 | E47: =SUM(E32:E44) -> 8202115 | G47: =SUM(G32:G44) -> 11202980 | I47: =SUM(I32:I44) -> 166790200 | K47: =SUM(K32:K44) -> 1276000 | M47: =SUM(M32:M46) -> 9278377 | O47: =SUM(O32:O46) -> 58862575 | Q47: =SUM(Q32:Q46) -> 15447510 | S47: =SUM(S32:S46) -> 51962580 | U47: =SUM(U32:U46) -> 14397115 | W47: =SUM(W32:W46) -> 2572900 | Y47: =SUM(Y32:Y46) -> 10618400 | AA47: =SUM(AA32:AA46) -> 27891930 | AC47: =SUM(AC32:AC46) -> 8622580 | AE47: =SUM(AE32:AE46) -> 8526450 | AG47: =SUM(AG32:AG46) -> 18688780

Sheet ①収支決算書
A1: ②収支決算書
A2: 区分 | B2: 暦年 | D2: 2012 11期 | G2: 2013 12期 | J2: 2014 13期 | M2: 2015 14期 | P2: 2016 15期 | S2: 2017 16期 | V2: 2018 17期 | Y2: 2019 18期 | AB2: 2020 19期 | AE2: 2021 20期 | AH2: 2022 21期 | AK2: 2023 22期 | AN2: 2024 23期 | AQ2: 2025 24期 | AT2: 2026 25期 | AW2: 2027 26期 | AZ2: 2028 27期 | BC2: 2029 28期 | BF2: 2030 29期 | BI2: 2031 303期 | BL2: 2033 31期 | BO2: 2034 33期 | BR2: 2035 34期 | BU2: 2036 35期 | BX2: 2037 36期 | CA2: 2038 37期 | CD2: 2039 38期 | CG2: 2040 39期 | CJ2: 2041 40期
B3: 経年 | D3: 住宅 | E3: 施設 | F3: 合計 | G3: 住宅 | H3: 施設 | I3: 合計 | J3: 住宅 | K3: 施設 | L3: 合計 | M3: 住宅 | N3: 施設 | O3: 合計 | P3: 住宅 | Q3: 施設 | R3: 合計 | S3: 住宅 | T3: 施設 | U3: 合計 | V3: 住宅 | W3: 施設 | X3: 合計 | Y3: 住宅 | Z3: 施設 | AA3: 合計 | AB3: 住宅 | AC3: 施設 | AD3: 合計 | AE3: 住宅 | AF3: 施設 | AG3: 合計 | AH3: 住宅 | AI3: 施設 | AJ3: 合計 | AK3: 住宅 | AL3: 施設 | AM3: 合計 | AN3: 住宅 | AO3: 施設 | AP3: 合計 | AQ3: 住宅 | AR3: 施設 | AS3: 合計 | AT3: 住宅 | AU3: 施設 | AV3: 合計 | AW3: 住宅 | AX3: 施設 | AY3: 合計 | AZ3: 住宅 | BA3: 施設 | BB3: 合計 | BC3: 住宅 | BD3: 施設 | BE3: 合計 | BF3: 住宅 | BG3: 施設 | BH3: 合計 | BI3: 住宅 | BJ3: 施設 | BK3: 合計 | BL3: 住宅 | BM3: 施設 | BN3: 合計 | BO3: 住宅 | BP3: 施設 | BQ3: 合計 | BR3: 住宅 | BS3: 施設 | BT3: 合計 | BU3: 住宅 | BV3: 施設 | BW3: 合計 | BX3: 住宅 | BY3: 施設 | BZ3: 合計 | CA3: 住宅 | CB3: 施設 | CC3: 合計 | CD3: 住宅 | CE3: 施設 | CF3: 合計 | CG3: 住宅 | CH3: 施設 | CI3: 合計 | CJ3: 住宅 | CK3: 施設 | CL3: 合計
A4: 一般会計 | AU4: 改定増 | AV4: =③タイプ別面積・管理費等額!M127 -> 1736250.896
A5: 収入 | D5: 15799134 | E5: 44283015 | F5: =SUM(D5+E5) -> 60082149 | G5: 15328412 | H5: 42341955 | I5: =SUM(G5+H5) -> 57670367 | J5: 15248626 | K5: 48506244 | L5: =SUM(J5+K5) -> 63754870 | M5: 14745969 | N5: 48717851 | O5: =SUM(M5+N5) -> 63463820 | P5: 14563712 | Q5: 51952891 | R5: =SUM(P5+Q5) -> 66516603 | S5: 20755133 | T5: 50488915 | U5: =SUM(S5+T5) -> 71244048 | V5: 20823726 | W5: 58316367 | X5: =SUM(V5+W5) -> 79140093 | Y5: 21695254 | Z5: 57643297 | AA5: =SUM(Y5+Z5) -> 79338551 | AB5: 21211585 | AC5: 58458901 | AD5: =SUM(AB5+AC5) -> 79670486 | AE5: 20770057 | AF5: 50933503 | AG5: =SUM(AE5+AF5) -> 71703560 | AH5: 20899294 | AI5: 51983211 | AJ5: =SUM(AH5:AI5) -> 72882505 | AK5: 23622055 | AL5: 64241539 | AM5: =SUM(AK5:AL5) -> 87863594 | AN5: 21529949 | AO5: 60033487 | AP5: =SUM(AN5:AO5) -> 81563436 | AQ5: 21845222 | AR5: 58240072 | AS5: =SUM(AQ5:AR5) -> 80085294 | AT5: 22894360 | AU5: 64254444 | AV5: =SUM(AT5:AU5) -> 87148804
A6: 支出 | D6: 14302646 | E6: 43284779 | F6: =SUM(D6+E6) -> 57587425 | G6: 14319846 | H6: 40868786 | I6: =SUM(G6+H6) -> 55188632 | J6: 14385198 | K6: 48294565 | L6: =SUM(J6+K6) -> 62679763 | M6: 14534040 | N6: 50687167 | O6: =SUM(M6+N6) -> 65221207 | P6: 15418353 | Q6: 52694085 | R6: =SUM(P6+Q6) -> 68112438 | S6: 21839697 | T6: 58255364 | U6: =SUM(S6+T6) -> 80095061 | V6: 20431542 | W6: 57938447 | X6: =SUM(V6+W6) -> 78369989 | Y6: 19688303 | Z6: 61188465 | AA6: =SUM(Y6+Z6) -> 80876768 | AB6: 20835160 | AC6: 58463241 | AD6: =SUM(AB6+AC6) -> 79298401 | AE6: 19528964 | AF6: 51788094 | AG6: =SUM(AE6+AF6) -> 71317058 | AH6: 27201379 | AI6: 55843143 | AJ6: =SUM(AH6:AI6) -> 83044522 | AK6: 23551500 | AL6: 69294146 | AM6: =SUM(AK6:AL6) -> 92845646 | AN6: 23137740 | AO6: 61861065 | AP6: =SUM(AN6:AO6) -> 84998805 | AQ6: 22068504 | AR6: 62343301 | AS6: =SUM(AQ6:AR6) -> 84411805
A8: ①当期余剰金 | D8: =SUM(D5,-D6) -> 1496488 | E8: =SUM(E5,-E6) -> 998236 | F8: =SUM(D8+E8) -> 2494724 | G8: =SUM(G5,-G6) -> 1008566 | H8: =SUM(H5,-H6) -> 1473169 | I8: =SUM(G8+H8) -> 2481735 | J8: =SUM(J5,-J6) -> 863428 | K8: =SUM(K5,-K6) -> 211679 | L8: =SUM(J8+K8) -> 1075107 | M8: =SUM(M5,-M6) -> 211929 | N8: =SUM(N5,-N6) -> -1969316 | O8: =SUM(M8+N8) -> -1757387 | P8: =SUM(P5,-P6) -> -854641 | Q8: =SUM(Q5,-Q6) -> -741194 | R8: =SUM(P8+Q8) -> -1595835 | S8: =SUM(S5,-S6) -> -1084564 | T8: =SUM(T5,-T6) -> -7766449 | U8: =SUM(S8+T8) -> -8851013 | V8: =SUM(V5,-V6) -> 392184 | W8: =SUM(W5,-W6) -> 377920 | X8: =SUM(V8+W8) -> 770104 | Y8: =SUM(Y5,-Y6) -> 2006951 | Z8: =SUM(Z5,-Z6) -> -3545168 | AA8: =SUM(Y8+Z8) -> -1538217 | AB8: =SUM(AB5,-AB6) -> 376425 | AC8: =SUM(AC5,-AC6) -> -4340 | AD8: =SUM(AB8+AC8) -> 372085 | AE8: =SUM(AE5,-AE6) -> 1241093 | AF8: =SUM(AF5,-AF6) -> -854591 | AG8: =SUM(AE8+AF8) -> 386502 | AH8: =SUM(AH5,-AH6) -> -6302085 | AI8: =SUM(AI5,-AI6) -> -3859932 | AJ8: =SUM(AH8+AI8) -> -10162017 | AK8: =SUM(AK5,-AK6) -> 70555 | AL8: =SUM(AL5,-AL6) -> -5052607 | AM8: =SUM(AK8+AL8) -> -4982052 | AN8: =SUM(AN5,-AN6) -> -1607791 | AO8: =SUM(AO5,-AO6) -> -1827578 | AP8: =SUM(AN8+AO8) -> -3435369 | AQ8: =SUM(AQ5,-AQ6) -> -223282 | AR8: =SUM(AR5,-AR6) -> -4103229 | AS8: =SUM(AQ8+AR8) -> -4326511 | AT8: =SUM(AT5,-AT6) -> 22894360 | AU8: =SUM(AU5,-AU6) -> 64254444 | AV8: =SUM(AT8+AU8) -> 87148804 | AW8: =SUM(AW5,-AW6) -> 0 | AX8: =SUM(AX5,-AX6) -> 0 | AY8: =SUM(AW8+AX8) -> 0 | AZ8: =SUM(AZ5,-AZ6) -> 0 | BA8: =SUM(BA5,-BA6) -> 0 | BB8: =SUM(AZ8+BA8) -> 0 | BC8: =SUM(BC5,-BC6) -> 0 | BD8: =SUM(BD5,-BD6) -> 0 | BE8: =SUM(BC8+BD8) -> 0 | BF8: =SUM(BF5,-BF6) -> 0 | BG8: =SUM(BG5,-BG6) -> 0 | BH8: =SUM(BF8+BG8) -> 0 | BI8: =SUM(BI5,-BI6) -> 0 | BJ8: =SUM(BJ5,-BJ6) -> 0 | BK8: =SUM(BI8+BJ8) -> 0 | BL8: =SUM(BL5,-BL6) -> 0 | BM8: =SUM(BM5,-BM6) -> 0 | BN8: =SUM(BL8+BM8) -> 0 | BO8: =SUM(BO5,-BO6) -> 0 | BP8: =SUM(BP5,-BP6) -> 0 | BQ8: =SUM(BO8+BP8) -> 0 | BR8: =SUM(BR5,-BR6) -> 0 | BS8: =SUM(BS5,-BS6) -> 0 | BT8: =SUM(BR8+BS8) -> 0 | BU8: =SUM(BU5,-BU6) -> 0 | BV8: =SUM(BV5,-BV6) -> 0 | BW8: =SUM(BU8+BV8) -> 0 | BX8: =SUM(BX5,-BX6) -> 0 | BY8: =SUM(BY5,-BY6) -> 0 | BZ8: =SUM(BX8+BY8) -> 0 | CA8: =SUM(CA5,-CA6) -> 0 | CB8: =SUM(CB5,-CB6) -> 0 | CC8: =SUM(CA8+CB8) -> 0 | CD8: =SUM(CD5,-CD6) -> 0 | CE8: =SUM(CE5,-CE6) -> 0 | CF8: =SUM(CD8+CE8) -> 0 | CG8: =SUM(CG5,-CG6) -> 0 | CH8: =SUM(CH5,-CH6) -> 0 | CI8: =SUM(CG8+CH8) -> 0 | CJ8: =SUM(CJ5,-CJ6) -> 0 | CK8: =SUM(CK5,-CK6) -> 0 | CL8: =SUM(CJ8+CK8) -> 0 | CM8: =SUM(CM5,-CM6) -> 0 | CN8: =SUM(CN5,-CN6) -> 0 | CO8: =SUM(CM8+CN8) -> 0
A9: ➁前期繰越額 | D9: 21025741 | E9: 12061498 | F9: =SUM(D9+E9) -> 33087239 | G9: =SUM(D12) -> 22522229 | H9: =SUM(E12) -> 11831328 | I9: =SUM(G9+H9) -> 34353557 | J9: =SUM(G12) -> 23530795 | K9: =SUM(H12) -> 13238027 | L9: =SUM(J9+K9) -> 36768822 | M9: =SUM(J12) -> 24394223 | N9: =SUM(K12) -> 13449706 | O9: =SUM(M9+N9) -> 37843929 | P9: =SUM(M12) -> 24606152 | Q9: =SUM(N12) -> 11480390 | R9: =SUM(P9+Q9) -> 36086542 | S9: =SUM(P12) -> 23752411 | T9: =SUM(Q12) -> 10738296 | U9: =SUM(S9+T9) -> 34490707 | V9: =SUM(S12) -> 22667847 | W9: =SUM(T12) -> 2971847 | X9: =SUM(V9+W9) -> 25639694 | Y9: =SUM(V12) -> 22827420 | Z9: =SUM(W12) -> 1781137 | AA9: =SUM(Y9+Z9) -> 24608557 | AB9: =SUM(Y12) -> 24754689 | AC9: =SUM(Z12) -> -3136679 | AD9: =SUM(AB9+AC9) -> 21618010 | AE9: =SUM(AB12) -> 24904142 | AF9: =SUM(AC12) -> -4657466 | AG9: =SUM(AE9+AF9) -> 20246676 | AH9: =SUM(AE12) -> 25909401 | AI9: =SUM(AF12) -> -6829861 | AJ9: =SUM(AH9+AI9) -> 19079540 | AK9: =SUM(AH12) -> 19365546 | AL9: =SUM(AI12) -> -12047486 | AM9: =SUM(AK9+AL9) -> 7318060 | AN9: =SUM(AK12) -> 19117706 | AO9: =SUM(AL12) -> -18904333 | AP9: =SUM(AN9+AO9) -> 213373 | AQ9: =SUM(AN12) -> 17244202 | AR9: =SUM(AO12) -> -22357649 | AS9: =SUM(AQ9+AR9) -> -5113447 | AT9: =SUM(AQ12) -> 17020920 | AU9: =SUM(AR12) -> -26460878 | AV9: =SUM(AT9+AU9) -> -9439958 | AW9: =SUM(AT12) -> 39915280 | AX9: =SUM(AU12) -> 37793566 | AY9: =SUM(AW9+AX9) -> 77708846 | AZ9: =SUM(AW12) -> 39915280 | BA9: =SUM(AX12) -> 37793566 | BB9: =SUM(AZ9+BA9) -> 77708846 | BC9: =SUM(AZ12) -> 39915280 | BD9: =SUM(BA12) -> 37793566 | BE9: =SUM(BC9+BD9) -> 77708846 | BF9: =SUM(BC12) -> 39915280 | BG9: =SUM(BD12) -> 37793566 | BH9: =SUM(BF9+BG9) -> 77708846 | BI9: =SUM(BF12) -> 39915280 | BJ9: =SUM(BG12) -> 37793566 | BK9: =SUM(BI9+BJ9) -> 77708846 | BL9: =SUM(BI12) -> 39915280 | BM9: =SUM(BJ12) -> 37793566 | BN9: =SUM(BL9+BM9) -> 77708846 | BO9: =SUM(BL12) -> 39915280 | BP9: =SUM(BM12) -> 37793566 | BQ9: =SUM(BO9+BP9) -> 77708846 | BR9: =SUM(BO12) -> 39915280 | BS9: =SUM(BP12) -> 37793566 | BT9: =SUM(BR9+BS9) -> 77708846 | BU9: =SUM(BR12) -> 39915280 | BV9: =SUM(BS12) -> 37793566 | BW9: =SUM(BU9+BV9) -> 77708846 | BX9: =SUM(BU12) -> 39915280 | BY9: =SUM(BV12) -> 37793566 | BZ9: =SUM(BX9+BY9) -> 77708846 | CA9: =SUM(BX12) -> 39915280 | CB9: =SUM(BY12) -> 37793566 | CC9: =SUM(CA9+CB9) -> 77708846 | CD9: =SUM(CA12) -> 39915280 | CE9: =SUM(CB12) -> 37793566 | CF9: =SUM(CD9+CE9) -> 77708846 | CG9: =SUM(CD12) -> 39915280 | CH9: =SUM(CE12) -> 37793566 | CI9: =SUM(CG9+CH9) -> 77708846 | CJ9: =SUM(CG12) -> 39915280 | CK9: =SUM(CH12) -> 37793566 | CL9: =SUM(CJ9+CK9) -> 77708846 | CM9: =SUM(CJ12) -> 39915280 | CN9: =SUM(CK12) -> 37793566 | CO9: =SUM(CM9+CN9) -> 77708846
A10: ③前期余剰金取崩 | D10: 0 | E10: 1228406 | F10: =SUM(D10+E10) -> 1228406 | G10: 0 | H10: 66470 | I10: =SUM(G10+H10) -> 66470 | L10: =SUM(J10+K10) -> 0 | M10: 0 | N10: 0 | O10: 0 | P10: 0 | Q10: 0 | R10: 0 | S10: 0 | T10: 0 | U10: 0 | V10: 0 | W10: 0 | X10: =SUM(V10+W10) -> 0 | Z10: 0 | AA10: =SUM(Y10+Z10) -> 0 | AB10: 0 | AC10: 0 | AD10: 0 | AE10: 0 | AF10: 0 | AG10: 0 | AH10: 0 | AI10: 0 | AJ10: =SUM(AH10+AI10) -> 0 | AK10: 0 | AL10: 0 | AM10: =SUM(AK10+AL10) -> 0 | AN10: 0 | AO10: 0 | AP10: =SUM(AN10+AO10) -> 0 | AQ10: 0 | AR10: 0 | AS10: =SUM(AQ10+AR10) -> 0 | AT10: 0 | AU10: 0 | AV10: 0 | AW10: 0 | AX10: 0 | AY10: 0 | AZ10: 0 | BA10: 0 | BB10: 0 | BC10: 0 | BD10: 0 | BE10: 0 | BF10: 0 | BG10: 0 | BH10: 0 | BI10: 0 | BJ10: 0 | BK10: 0 | BL10: 0 | BM10: 0 | BN10: 0 | BO10: 0 | BP10: 0 | BQ10: 0 | BR10: 0 | BS10: 0 | BT10: 0 | BU10: 0 | BV10: 0 | BW10: 0 | BX10: 0 | BY10: 0 | BZ10: 0 | CA10: 0 | CB10: 0 | CC10: 0 | CD10: 0 | CE10: 0 | CF10: 0 | CG10: 0 | CH10: 0 | CI10: 0 | CJ10: 0 | CK10: 0 | CL10: 0 | CM10: 0 | CN10: 0 | CO10: 0
A11: ④電気使用料振替 | S11: -271320 | T11: -1675040 | U11: =SUM(S11+T11) -> -1946360 | V11: -232611 | W11: -1568630 | X11: =SUM(V11+W11) -> -1801241 | Y11: -230431 | Z11: -1542119 | AA11: =SUM(Y11+Z11) -> -1772550 | AB11: -226972 | AC11: -1516447 | AD11: =SUM(AB11+AC11) -> -1743419 | AE11: -235834 | AF11: -1317804 | AG11: =SUM(AE11+AF11) -> -1553638 | AH11: -241770 | AI11: -1357693 | AJ11: =SUM(AH11+AI11) -> -1599463 | AK11: -318395 | AL11: -1804240 | AM11: =SUM(AK11+AL11) -> -2122635 | AN11: -265713 | AO11: -1625738 | AP11: =SUM(AN11+AO11) -> -1891451 | AS11: =SUM(AQ11+AR11) -> 0
A12: 次期繰越額 | D12: =SUM(D8+D9-D10) -> 22522229 | E12: =SUM(E8+E9-E10) -> 11831328 | F12: =SUM(D12+E12) -> 34353557 | G12: =SUM(G8+G9-G10) -> 23530795 | H12: =SUM(H8+H9-H10) -> 13238027 | I12: =SUM(G12+H12) -> 36768822 | J12: =SUM(J8+J9-J10) -> 24394223 | K12: =SUM(K8+K9-K10) -> 13449706 | L12: =SUM(J12+K12) -> 37843929 | M12: =SUM(M8+M9-M10) -> 24606152 | N12: =SUM(N8+N9-N10) -> 11480390 | O12: =SUM(M12+N12) -> 36086542 | P12: 23752411 | Q12: 10738296 | R12: =SUM(P12+Q12) -> 34490707 | S12: =SUM(S8+S9-S10) -> 22667847 | T12: =SUM(T8+T9-T10) -> 2971847 | U12: =SUM(S12+T12) -> 25639694 | V12: =SUM(V8:V11) -> 22827420 | W12: =SUM(W8:W11) -> 1781137 | X12: =SUM(V12+W12) -> 24608557 | Y12: 24754689 | Z12: -3136679 | AA12: =SUM(Y12+Z12) -> 21618010 | AB12: =SUM(AB8:AB11) -> 24904142 | AC12: -4657466 | AD12: 20246676 | AE12: 25909401 | AF12: -6829861 | AG12: 19079540 | AH12: 19365546 | AI12: -12047486 | AJ12: 7318060 | AK12: 19117706 | AL12: -18904333 | AM12: =SUM(AK12+AL12) -> 213373 | AN12: =SUM(AN8:AN11) -> 17244202 | AO12: =SUM(AO8:AO11) -> -22357649 | AP12: =SUM(AN12+AO12) -> -5113447 | AQ12: =SUM(AQ8+AQ9-AQ10) -> 17020920 | AR12: =SUM(AR8+AR9-AR10) -> -26460878 | AS12: =SUM(AQ12+AR12) -> -9439958 | AT12: =SUM(AT8+AT9-AT10) -> 39915280 | AU12: =SUM(AU8+AU9-AU10) -> 37793566 | AV12: =SUM(AT12+AU12) -> 77708846 | AW12: =SUM(AW8+AW9-AW10) -> 39915280 | AX12: =SUM(AX8+AX9-AX10) -> 37793566 | AY12: =SUM(AW12+AX12) -> 77708846 | AZ12: =SUM(AZ8+AZ9-AZ10) -> 39915280 | BA12: =SUM(BA8+BA9-BA10) -> 37793566 | BB12: =SUM(AZ12+BA12) -> 77708846 | BC12: =SUM(BC8+BC9-BC10) -> 39915280 | BD12: =SUM(BD8+BD9-BD10) -> 37793566 | BE12: =SUM(BC12+BD12) -> 77708846 | BF12: =SUM(BF8+BF9-BF10) -> 39915280 | BG12: =SUM(BG8+BG9-BG10) -> 37793566 | BH12: =SUM(BF12+BG12) -> 77708846 | BI12: =SUM(BI8+BI9-BI10) -> 39915280 | BJ12: =SUM(BJ8+BJ9-BJ10) -> 37793566 | BK12: =SUM(BI12+BJ12) -> 77708846 | BL12: =SUM(BL8+BL9-BL10) -> 39915280 | BM12: =SUM(BM8+BM9-BM10) -> 37793566 | BN12: =SUM(BL12+BM12) -> 77708846 | BO12: =SUM(BO8+BO9-BO10) -> 39915280 | BP12: =SUM(BP8+BP9-BP10) -> 37793566 | BQ12: =SUM(BO12+BP12) -> 77708846 | BR12: =SUM(BR8+BR9-BR10) -> 39915280 | BS12: =SUM(BS8+BS9-BS10) -> 37793566 | BT12: =SUM(BR12+BS12) -> 77708846 | BU12: =SUM(BU8+BU9-BU10) -> 39915280 | BV12: =SUM(BV8+BV9-BV10) -> 37793566 | BW12: =SUM(BU12+BV12) -> 77708846 | BX12: =SUM(BX8+BX9-BX10) -> 39915280 | BY12: =SUM(BY8+BY9-BY10) -> 37793566 | BZ12: =SUM(BX12+BY12) -> 77708846 | CA12: =SUM(CA8+CA9-CA10) -> 39915280 | CB12: =SUM(CB8+CB9-CB10) -> 37793566 | CC12: =SUM(CA12+CB12) -> 77708846 | CD12: =SUM(CD8+CD9-CD10) -> 39915280 | CE12: =SUM(CE8+CE9-CE10) -> 37793566 | CF12: =SUM(CD12+CE12) -> 77708846 | CG12: =SUM(CG8+CG9-CG10) -> 39915280 | CH12: =SUM(CH8+CH9-CH10) -> 37793566 | CI12: =SUM(CG12+CH12) -> 77708846 | CJ12: =SUM(CJ8+CJ9-CJ10) -> 39915280 | CK12: =SUM(CK8+CK9-CK10) -> 37793566 | CL12: =SUM(CJ12+CK12) -> 77708846 | CM12: =SUM(CM8+CM9-CM10) -> 39915280 | CN12: =SUM(CN8+CN9-CN10) -> 37793566 | CO12: =SUM(CM12+CN12) -> 77708846
A13: 特別会計
A14: 収入 | D14: 15229694 | E14: 19486706 | F14: =SUM(D14+E14) -> 34716400 | G14: 12553628 | H14: 9331488 | I14: =SUM(G14+H14) -> 21885116 | J14: 12347312 | K14: 9151488 | L14: =SUM(J14+K14) -> 21498800 | M14: 11802152 | N14: 9091488 | O14: =SUM(M14:N14) -> 20893640 | P14: 11924832 | Q14: 9479868 | R14: =SUM(P14:Q14) -> 21404700 | S14: 11491512 | T14: 8751488 | U14: =SUM(S14:T14) -> 20243000 | V14: 11541381 | W14: 8731488 | X14: =SUM(V14:W14) -> 20272869 | Y14: 11561362 | Z14: 8931488 | AA14: =SUM(Y14:Z14) -> 20492850 | AB14: 11724272 | AC14: 9336828 | AD14: =SUM(AB14:AC14) -> 21061100 | AE14: 11471344 | AF14: 13107989 | AG14: =SUM(AE14:AF14) -> 24579333 | AH14: 13240750 | AI14: 11088465 | AJ14: =SUM(AH14:AI14) -> 24329215 | AK14: 11499212 | AL14: 9211488 | AM14: =SUM(AK14:AL14) -> 20710700 | AN14: 11297802 | AO14: 9311488 | AP14: =SUM(AN14:AO14) -> 20609290 | AQ14: 11280752 | AR14: 9451488 | AS14: =SUM(AQ14:AR14) -> 20732240
A15: 支出 | D15: 1295857 | E15: 9907123 | F15: =SUM(D15+E15) -> 11202980 | G15: 108351601 | H15: 58438599 | I15: =SUM(G15+H15) -> 166790200 | J15: 267916 | K15: 1008084 | L15: =SUM(J15+K15) -> 1276000 | M15: 4154088 | N15: 5124289 | O15: =SUM(M15:N15) -> 9278377 | P15: 37010093 | Q15: 21852482 | R15: =SUM(P15:Q15) -> 58862575 | S15: 11198798 | T15: 4248712 | U15: =SUM(S15:T15) -> 15447510 | V15: 15987879 | W15: 35974701 | X15: =SUM(V15:W15) -> 51962580 | Y15: 12217450 | Z15: 2179665 | AA15: =SUM(Y15:Z15) -> 14397115 | AB15: 1275258 | AC15: 1297624 | AD15: =SUM(AB15:AC15) -> 2572882 | AE15: 4822037 | AF15: 5796363 | AG15: =SUM(AE15:AF15) -> 10618400 | AH15: 13433046 | AI15: 14458884 | AJ15: =SUM(AH15:AI15) -> 27891930 | AK15: 7172550 | AL15: 1350030 | AM15: =SUM(AK15:AL15) -> 8522580 | AN15: 6050145 | AO15: 2476305 | AP15: =SUM(AN15:AO15) -> 8526450 | AQ15: 9834979 | AR15: 9183801 | AS15: =SUM(AQ15:AR15) -> 19018780
A17: ①当期余剰金 | D17: =SUM(D14-D15) -> 13933837 | E17: =SUM(E14-E15) -> 9579583 | F17: =SUM(D17:E17) -> 23513420 | G17: =SUM(G14-G15) -> -95797973 | H17: =SUM(H14-H15) -> -49107111 | I17: =SUM(G17:H17) -> -144905084 | J17: =SUM(J14-J15) -> 12079396 | K17: =SUM(K14-K15) -> 8143404 | L17: =SUM(J17:K17) -> 20222800 | M17: =SUM(M14-M15) -> 7648064 | N17: =SUM(N14-N15) -> 3967199 | O17: =SUM(M17:N17) -> 11615263 | P17: =SUM(P14-P15) -> -25085261 | Q17: =SUM(Q14-Q15) -> -12372614 | R17: =SUM(P17:Q17) -> -37457875 | S17: =SUM(S14-S15) -> 292714 | T17: =SUM(T14-T15) -> 4502776 | U17: =SUM(S17:T17) -> 4795490 | V17: =SUM(V14-V15) -> -4446498 | W17: =SUM(W14-W15) -> -27243213 | X17: =SUM(V17:W17) -> -31689711 | Y17: =SUM(Y14-Y15) -> -656088 | Z17: =SUM(Z14-Z15) -> 6751823 | AA17: =SUM(Y17:Z17) -> 6095735 | AB17: =SUM(AB14-AB15) -> 10449014 | AC17: =SUM(AC14-AC15) -> 8039204 | AD17: =SUM(AB17:AC17) -> 18488218 | AE17: =SUM(AE14-AE15) -> 6649307 | AF17: =SUM(AF14-AF15) -> 7311626 | AG17: =SUM(AE17:AF17) -> 13960933 | AH17: =SUM(AH14-AH15) -> -192296 | AI17: =SUM(AI14-AI15) -> -3370419 | AJ17: =SUM(AH17:AI17) -> -3562715 | AK17: =SUM(AK14-AK15) -> 4326662 | AL17: =SUM(AL14-AL15) -> 7861458 | AM17: =SUM(AK17:AL17) -> 12188120 | AN17: =SUM(AN14-AN15) -> 5247657 | AO17: =SUM(AO14-AO15) -> 6835183 | AP17: =SUM(AN17:AO17) -> 12082840 | AQ17: =SUM(AQ14-AQ15) -> 1445773 | AR17: =SUM(AR14-AR15) -> 267687 | AS17: =SUM(AQ17:AR17) -> 1713460
A18: ➁前期繰越額 | D18: 115617897 | E18: 78314753 | F18: =SUM(D18+E18) -> 193932650 | G18: 129551734 | H18: 87894336 | I18: =SUM(G18:H18) -> 217446070 | J18: =SUM(G21) -> 33753761 | K18: =SUM(H21) -> 38787225 | L18: =SUM(I21) -> 72540986 | M18: =SUM(J21) -> 45833157 | N18: =SUM(K21) -> 46930629 | O18: =SUM(M18:N18) -> 92763786 | P18: =SUM(M21) -> 53481221 | Q18: =SUM(N21) -> 50897828 | R18: =SUM(P18:Q18) -> 104379049 | S18: =P21 -> 28395960 | T18: =SUM(Q21) -> 38525214 | U18: =SUM(S18:T18) -> 66921174 | V18: =SUM(S21) -> 28959994 | W18: =SUM(T21) -> 44703030 | X18: =SUM(V18:W18) -> 73663024 | Y18: =SUM(V21) -> 24746107 | Z18: =SUM(W21) -> 19028447 | AA18: =SUM(Y18:Z18) -> 43774554 | AB18: =SUM(Y21) -> 24320450 | AC18: =SUM(Z21) -> 27322389 | AD18: =SUM(AB18:AC18) -> 51642839 | AE18: =SUM(AB21) -> 34996436 | AF18: =SUM(AC21) -> 36878040 | AG18: =SUM(AE18:AF18) -> 71874476 | AH18: =SUM(AE21) -> 41881577 | AI18: =SUM(AF21) -> 45507470 | AJ18: =SUM(AH18:AI18) -> 87389047 | AK18: =SUM(AH21) -> 41931051 | AL18: =SUM(AI21) -> 43494744 | AM18: =SUM(AK18:AL18) -> 85425795 | AN18: =SUM(AK21) -> 46576108 | AO18: =SUM(AL21) -> 53160442 | AP18: =SUM(AN18:AO18) -> 99736550 | AQ18: =SUM(AN21) -> 52089478 | AR18: =SUM(AO21) -> 61621363 | AS18: 113710841
A19: ③前期余剰金取崩 | F19: =SUM(D19+E19) -> 0 | AA19: =SUM(Y19:Z19) -> 0 | AD19: =SUM(AB19:AC19) -> 0 | AG19: =SUM(AE19:AF19) -> 0 | AJ19: =SUM(AH19:AI19) -> 0 | AK19: 0 | AL19: 0 | AM19: =SUM(AK19:AL19) -> 0 | AN19: 0 | AO19: 0 | AP19: =SUM(AN19:AO19) -> 0 | AQ19: 0 | AR19: 0 | AS19: =SUM(AQ19:AR19) -> 0
A20: ④電気使用料振替 | R20: =SUM(P20:Q20) -> 0 | S20: =SUM(S11)*-1 -> 271320 | T20: =SUM(T11)*-1 -> 1675040 | U20: =SUM(S20:T20) -> 1946360 | V20: =SUM(V11)*-1 -> 232611 | W20: =SUM(W11)*-1 -> 1568630 | X20: =SUM(V20:W20) -> 1801241 | Y20: =SUM(Y11)*-1 -> 230431 | Z20: =SUM(Z11)*-1 -> 1542119 | AA20: =SUM(Y20:Z20) -> 1772550 | AB20: =SUM(AB11)*-1 -> 226972 | AC20: =SUM(AC11)*-1 -> 1516447 | AD20: =SUM(AB20:AC20) -> 1743419 | AE20: =SUM(AE11)*-1 -> 235834 | AF20: =SUM(AF11)*-1 -> 1317804 | AG20: =SUM(AE20:AF20) -> 1553638 | AH20: =SUM(AH11)*-1 -> 241770 | AI20: =SUM(AI11)*-1 -> 1357693 | AJ20: =SUM(AH20:AI20) -> 1599463 | AK20: =SUM(AK11)*-1 -> 318395 | AL20: =SUM(AL11)*-1 -> 1804240 | AM20: =SUM(AK20:AL20) -> 2122635 | AN20: =SUM(AN11)*-1 -> 265713 | AO20: =SUM(AO11)*-1 -> 1625738 | AP20: =SUM(AN20:AO20) -> 1891451 | AQ20: =SUM(AQ11)*-1 -> 0 | AR20: =SUM(AR11)*-1 -> 0 | AS20: =SUM(AQ20:AR20) -> 0
A21: 次期繰越額 | D21: =SUM(D17:D20) -> 129551734 | E21: 87894336 | F21: 217446070 | G21: 33753761 | H21: 38787225 | I21: 72540986 | J21: 45833157 | K21: 46930629 | L21: 92763786 | M21: 53481221 | N21: 50897828 | O21: =SUM(M21:N21) -> 104379049 | P21: =SUM(P17:P20) -> 28395960 | Q21: =SUM(Q17:Q20) -> 38525214 | R21: =SUM(P21:Q21) -> 66921174 | S21: =SUM(S17:S20) -> 28959994 | T21: =SUM(T17:T20) -> 44703030 | U21: =SUM(S21:T21) -> 73663024 | V21: =SUM(V17:V20) -> 24746107 | W21: =SUM(W17:W20) -> 19028447 | X21: =SUM(V21:W21) -> 43774554 | Y21: =SUM(Y17:Y20) -> 24320450 | Z21: =SUM(Z17:Z20) -> 27322389 | AA21: =SUM(Y21:Z21) -> 51642839 | AB21: =SUM(AB17:AB20) -> 34996436 | AC21: =SUM(AC17:AC20) -> 36878040 | AD21: =SUM(AB21:AC21) -> 71874476 | AE21: =SUM(AE17:AE20) -> 41881577 | AF21: =SUM(AF17:AF20) -> 45507470 | AG21: =SUM(AE21:AF21) -> 87389047 | AH21: =SUM(AH17:AH20) -> 41931051 | AI21: =SUM(AI17:AI20) -> 43494744 | AJ21: =SUM(AH21:AI21) -> 85425795 | AK21: =SUM(AK17:AK20) -> 46576108 | AL21: =SUM(AL17:AL20) -> 53160442 | AM21: =SUM(AK21:AL21) -> 99736550 | AN21: =SUM(AN17:AN20) -> 52089478 | AO21: =SUM(AO17:AO20) -> 61621363 | AP21: =SUM(AN21:AO21) -> 113710841 | AQ21: =SUM(AQ17:AQ20) -> 53535251 | AR21: =SUM(AR17:AR20) -> 61889050 | AS21: =AS17+AS18 -> 115424301
A22: 内、電気使用料積立分累計
L24: 72540986 | O24: 92763786 | R24: 104379049 | T24: =U24-R25 -> 7934950 | U24: 74856124 | W24: =X24-U25 -> -11194510 | X24: 70403464 | AA24: 41514994 | AD24: 49383279 | AG24: 69614898 | AJ24: 85129469 | AM24: 83166217 | AP24: 97476972
L25: 92763786 | O25: 104379049 | R25: 66921174 | U25: 81597974 | X25: 40514994 | AA25: 49383279 | AD25: 69614898 | AG25: 85129469 | AJ25: 83166217 | AM25: 97476972 | AP25: 111451263

Sheet ⑤総括表
A1: （様式第4-1号）長期修繕計画総括表 | Z1: 作成日／ 年 月 日 集会（管理組合総会）で議決された日／ 年 月 日 | AJ1: （単位：千円）
A2: 区分 | B2: 推定修繕工事項目 | C2: 暦年 | D2: 2009 | E2: 2010 | F2: 2011 | G2: 2012 | H2: 2013 | I2: 2014 | J2: 2015 | K2: 2016 | L2: 2017 | M2: 2018 | N2: 2019 | O2: 2020 | P2: 2021 | Q2: 2022 | R2: 2023 | S2: 2024 | T2: 2025 | U2: 2026 | V2: 2027 | W2: 2028 | X2: 2029 | Y2: 2030 | Z2: 2031 | AA2: 2032 | AB2: 2033 | AC2: 2034 | AD2: 2035 | AE2: 2036 | AF2: 2037 | AG2: 2038 | AH2: 2039 | AI2: 2040 | AK2: 2009～合計
C3: 経年 | D3: 8 | E3: 9 | F3: 10 | G3: 11 | H3: 12 | I3: 13 | J3: 14 | K3: 15 | L3: 16 | M3: 17 | N3: 18 | O3: 19 | P3: 20 | Q3: 21 | R3: 22 | S3: 23 | T3: 24 | U3: 25 | V3: 26 | W3: 27 | X3: 28 | Y3: 29 | Z3: 30 | AA3: 31 | AB3: 32 | AC3: 33 | AD3: 34 | AE3: 35 | AF3: 36 | AG3: 37 | AH3: 38 | AI3: 39
A4: 仮設 | B4: 0 共通仮設工事 | H4: =SUM(②工事費内訳書!I5) -> 6940000 | U4: =SUM(U5:U15)*0.05 -> 1273077.093 | V4: =SUM(V5:V15)*0.05 -> 4290572.119 | AI4: =FV(AP13,27,,-H4) -> 11845792.15 | AK4: =SUM(D4:AJ4) -> 24349441.36
B5: 1 直接工事費 | H5: =SUM(②工事費内訳書!I8) -> 34294760 | U5: =FV(AP13,13,,-②工事費内訳書!P8) -> 10153596.06 | V5: =FV(AP13,14,,-②工事費内訳書!M8) -> 34894539.52 | AI5: =FV(AP13,27,,-H5) -> 58537262.06 | AK5: 137880157.6
A6: 建築 | B6: ２ 下地補修工事 | H6: =SUM(②工事費内訳書!I18) -> 3623030 | U6: =FV(AP13,13,,-②工事費内訳書!P18) -> 1186884.083 | V6: =FV(AP13,14,,-②工事費内訳書!M18) -> 3569889.378 | AI6: =FV(AP13,27,,-H6) -> 6184100.911 | AK6: 14563904.37
B7: ３ 石・タイル工事 | H7: =SUM(②工事費内訳書!I28) -> 9371720 | U7: =FV(AP13,13,,-②工事費内訳書!P28) -> 2826284.702 | V7: =FV(AP13,14,,-②工事費内訳書!M28) -> 9482975.117 | AI7: =FV(AP13,27,,-H7) -> 15996462.13 | AK7: 37677441.95
B8: ４ シーリング工事 | H8: =SUM(②工事費内訳書!I47) -> 9831467 | N8: 鉄部塗装 | U8: =FV(AP13,13,,-②工事費内訳書!P47) -> 2819683.428 | V8: =FV(AP13,14,,-②工事費内訳書!M47) -> 10096334.82 | AI8: =FV(AP13,27,,-H8) -> 16781198.07 | AK8: 39528683.32
B9: ５ 外壁塗装工事 | H9: =SUM(②工事費内訳書!I69) -> 20062142 | N9: 前回2010 | U9: =FV(AP13,13,,-②工事費内訳書!P69) -> 5758034.566 | V9: =FV(AP13,14,,-②工事費内訳書!M69) -> 20598375.05 | AI9: =FV(AP13,27,,-H9) -> 34243798.87 | AK9: 80662350.49
B10: ７ 鉄部塗装工事 | F10: =5538750+563365 -> 6102115 | H10: =SUM(②工事費内訳書!I122) -> 4339760 | N10: 9513043 | Y10: =FV(AP13,11,,-N10) -> 11828273.26 | AI10: =FV(AP13,27,,-H10) -> 7407477.656 | AK10: 39190668.92
B11: ８ 防水工事 | H11: =SUM(②工事費内訳書!I231) -> 21218928 | M11: 3637440 | T11: =②工事費内訳書!AB380 -> 481800 | AI11: =FV(AP13,27,,-H11) -> 36218301.25 | AK11: 61556469.25
B12: ９ 床工事 | H12: =SUM(②工事費内訳書!I260) -> 9019455 | N12: 237600 | Q12: =6435000-6435000 -> 0 | T12: =②工事費内訳書!AB377 -> 3814800 | AI12: =FV(AP13,27,,-H12) -> 15395185.77 | AK12: 28467040.77 | AO12: 物価上昇率
B13: 10 洗い工事 | H13: =SUM(②工事費内訳書!I268) -> 7533830 | T13: =②工事費内訳書!AB379 -> 4301000 | U13: =FV(AP13,13,,-②工事費内訳書!P268) -> 2717059.026 | V13: =FV(AP13,14,,-②工事費内訳書!M268) -> 7169328.483 | AI13: =FV(AP13,27,,-H13) -> 12859392.54 | AK13: 34580610.05 | AL13: 第2回目建築工事費計 | AO13: 利率 | AP13: 0.02
B14: 11 その他雑工事 | H14: =SUM(②工事費内訳書!I282) -> 9648800 | I14: 100000 | L14: 56160 | N14: 96120 | Q14: 846780 | T14: =②工事費内訳書!AB370 -> 2075040 | AI14: =FV(AP13,27,,-H14) -> 16469406.24 | AK14: 29292306.24 | AL14: 東棟 | AM14: =SUM(V4:V16) -> 103617316.7
B15: 12 室内改装その他工事 | G15: =②工事費内訳書!N371 -> 4304947 | H15: =SUM(②工事費内訳書!I302) -> 1070100 | L15: =1771200+55890+361260+250560 -> 2438910 | M15: 4369680 | S15: 4222900 | T15: =②工事費内訳書!AB378 -> 988900 | AI15: =FV(AP13,27,,-H15) -> 1826539.219 | AK15: 19221976.22 | AL15: 西棟 | AM15: =SUM(U4:U16) -> 30744811.8
B16: 13 工事管理費 | H16: =SUM(②工事費内訳書!I304:I305) -> 11046008 | U16: =SUM(U4:U15)*0.15 -> 4010192.844 | V16: =SUM(V4:V15)*0.15 -> 13515302.17 | AI16: =FV(AP13,27,,-H16) -> 18854281.68 | AK16: 47425784.69 | AL16: 第3回目建築工事費計
U17: 2026年以降の設備想定額は②工事費内訳書（一般会計の小修繕+特別会計による修繕）による推定額を採用する。 | AM17: =SUM(AI4:AI16) -> 252619198.5
A18: 設備 | B18: ８ 給水設備 | L18: 5292000 | S18: 1573000 | AA18: =FV(AP13,15,,-L18) -> 7122335.246 | AH18: =FV(AP13,15,,-S18) -> 2117050.896 | AK18: =SUM(D18:AJ18) -> 16104386.14
B19: ９ 排水設備 | C19: エフロレッセンス除去 | G19: =②工事費内訳書!N321 -> 399000 | J19: 136080 | K19: =185760+2793960 -> 2979720 | L19: 1933200 | S19: 2217600 | T19: =②工事費内訳書!AB322 -> 1175900 | V19: =U19*(1+AP13)+FV(AP13,6,,-434500) -> 489317.5712 | Y19: =FV(AP13,3,,-V19) -> 519267.7211 | AB19: =FV(AP13,3,,-Y19) -> 551051.0597 | AE19: =FV(AP13,3,,-AB19) -> 584779.793 | AH19: =FV(AP13,3,,-AE19) -> 620572.9946 | AK19: =SUM(D19:AJ19) -> 11606489.14
C20: 排水ポンプ | U20: =②工事費内訳書!AE321 -> 92434.61538 | W20: =FV(AP13,5,,-②工事費内訳書!AE322) -> 1566690.66 | Y20: =X20*(1+AP13)+FV(AP13,4,,-U20) -> 100054.2004 | AB20: =FV(AP13,5,,-W20) -> 1729753.082 | AE20: =FV(AP13,10,,-U20) -> 112677.2804 | AG20: =FV(AP13,5,,-AB20) -> 1909787.172 | AK20: 5511397.01
B21: 10 ガス設備 | J21: 695736 | N21: 1181952 | T21: =②工事費内訳書!AB323 -> 920040 | X21: =②工事費内訳書!AE323+②工事費内訳書!AE324 -> 1195040 | AC21: =FV(AP13,5,,-X21) -> 1319420.723 | AH21: =FV(AP13,5,,-AC21) -> 1456747.092 | AK21: 6768935.815
B22: 11 空調・換気設備 | J22: 190080 | M22: 1285200 | O22: 2572900 | P22: 1615900 | Q22: 23564750 | R22: 866800 | AC22: =FV(AP13,15,,-②工事費内訳書!AE326) -> 3405046.896 | AK22: 33500676.9
B23: 12 電灯設備等 | C23: 照明器具 | G23: =②工事費内訳書!N331 -> 1096698 | J23: =17161+6080400 -> 6097561 | K23: =16200000+1296000+18792000+318745 -> 36606745 | P23: 462000 | U23: =②工事費内訳書!AE329 -> 87514.23077 | V23: =U23*(1+AP13) -> 89264.51538 | W23: =V23*(1+AP13) -> 91049.80569 | X23: =W23*(1+AP13) -> 92870.80181 | Y23: =X23*(1+AP13) -> 94728.21784 | Z23: =Y23*(1+AP13) -> 96622.7822 | AA23: =Z23*(1+AP13) -> 98555.23784 | AB23: =AA23*(1+AP13) -> 100526.3426 | AC23: =AB23*(1+AP13) -> 102536.8695 | AD23: =AC23*(1+AP13) -> 104587.6068 | AE23: =AD23*(1+AP13) -> 106679.359 | AF23: =AE23*(1+AP13) -> 108812.9462 | AG23: =AF23*(1+AP13) -> 110989.2051 | AH23: =AG23*(1+AP13) -> 113208.9892 | AI23: =AH23*(1+AP13) -> 115473.169 | AJ23: =AI23*(1+AP13) -> 117782.6323 | AK23: 45894206.71
C24: キューピクル点検改修 | U24: =FV(AP13,5,,-②工事費内訳書!AE332) -> 510085.3311 | Z24: =FV(AP13,5,,-U24) -> 563175.422 | AE24: =FV(AP13,5,,-Z24) -> 621791.1723 | AJ24: =FV(AP13,5,,-AE24) -> 686507.6969 | AK24: 2381559.622
C25: 自家発点検整備 | U25: 11913000 | Z25: =FV(AP13,10,,-②工事費内訳書!AE334) -> 1969773.083 | AJ25: =FV(AP13,10,,-Z25) -> 2401142.397 | AK25: 16283915.48
B26: 13 情報・通信設備 | C26: インターフォン設備 | G26: =②工事費内訳書!N339 -> 3150000 | K26: =259200+270000+1004400+14040000 -> 15573600 | M26: 38988000 | N26: 3368400 | P26: 450000 | R26: 6930000 | T26: =②工事費内訳書!AB340 -> 935000 | Z26: =FV(AP13,15,,-②工事費内訳書!AE338) -> 20188025.07 | AK26: 89583025.07
C27: 中央監視盤 | AH27: =FV(AP13,15,,-②工事費内訳書!AE339) -> 9326867.585 | AK27: 9326867.585
C28: 防犯カメラ | W28: =FV(AP13,3,,-②工事費内訳書!AE340) -> 511632.633 | Z28: =W28*(1+AP13)*(1+AP13)*(1+AP13) -> 542948.6432 | AC28: =Z28*(1+AP13)*(1+AP13)*(1+AP13) -> 576181.4437 | AF28: =AC28*(1+AP13)*(1+AP13)*(1+AP13) -> 611448.3575 | AI28: =AF28*(1+AP13)*(1+AP13)*(1+AP13) -> 648873.8886 | AK28: 2891084.966
B29: 14 消防用設備 | D29: =SUM(H29:S29) -> 16097770 | H29: =971250+882000 -> 1853250 | I29: 178500 | J29: 864000 | K29: 0 | L29: =61560+2965680 -> 3027240 | M29: 0 | N29: 0 | O29: 0 | P29: 8090500 | Q29: 1843600 | R29: 240680 | S29: =3019432-3019432 -> 0 | T29: =②工事費内訳書!AB350 -> 2876500 | U29: =②工事費内訳書!AE350 -> 2957397.6 | V29: =U29*(1+AP13) -> 3016545.552 | W29: =V29*(1+AP13) -> 3076876.463 | X29: =W29*(1+AP13) -> 3138413.992 | Y29: =X29*(1+AP13) -> 3201182.272 | Z29: =Y29*(1+AP13) -> 3265205.918 | AA29: =Z29*(1+AP13) -> 3330510.036 | AB29: =AA29*(1+AP13) -> 3397120.237 | AC29: =AB29*(1+AP13) -> 3465062.641 | AD29: =AC29*(1+AP13) -> 3534363.894 | AE29: =AD29*(1+AP13) -> 3605051.172 | AF29: =AE29*(1+AP13) -> 3677152.196 | AG29: =AF29*(1+AP13) -> 3750695.239 | AH29: =AG29*(1+AP13) -> 3825709.144 | AI29: =AH29*(1+AP13) -> 3902223.327 | AJ29: =AI29*(1+AP13) -> 3980267.794 | AK29: 90195817.48
B30: 15 昇降機設備 | Q30: 1636800 | AK30: 1636800 | AM30: .
B31: 16 駐車駐輪設備 | J31: 285120 | M31: 3682260 | AI31: =FV(AP13,18,,-②工事費内訳書!AE353) -> 2337753.458 | AK31: 6305133.458
A32: 外構 ・その他 | B32: 17 外構・附属施設 | G32: =②工事費内訳書!N376+②工事費内訳書!N377 -> 1349335 | J32: 518400 | K32: 1272510 | T32: =②工事費内訳書!AB381 -> 151800 | AD32: =FV(AP13,12,,-②工事費内訳書!AE354) -> 361469.2033 | AK32: 3653514.203
B33: 18 調査・診断、 設計、工事監理等費用 | F33: 420000 | G33: =②工事費内訳書!N379 -> 903000 | H33: =525000+2142000+670950 -> 3337950 | I33: 997500 | J33: 378000 | K33: =1890000+540000 -> 2430000 | L33: =216000+2484000 -> 2700000 | R33: 485100 | S33: 512950 | T33: =②工事費内訳書!AB376 -> 968000 | U33: =AM15*0.04 -> 1229792.472 | V33: =AM14*0.04 -> 4144692.667 | Y33: =Y10*0.04 -> 473130.9304 | AI33: =AM17*0.03 -> 7578575.956 | AK33: 26558692.03
B34: 19 長期修繕計画作成費用 | AH34: 1000000 | AK34: 1000000
B35: 20 その他 | F35: 1680000 | H35: 6199000 | J35: 113400 | AK35: 7992400
A36: 工事費計 | E36: =SUM(E4:E35) -> 0 | F36: 8202115 | G36: 11202980 | H36: 159390200 | I36: 1276000 | J36: 9278377 | K36: 58862575 | L36: 15447510 | M36: 51962580 | N36: 14397115 | O36: 2572900 | P36: 10618400 | Q36: 27891930 | R36: 8522580 | S36: 8526450 | T36: =SUM(T4:T35) -> 18688780 | U36: =SUM(U4:U35) -> 47535036.05 | V36: 111357137 | W36: =SUM(W4:W35) -> 5246249.561 | X36: =SUM(X4:X35) -> 4426324.794 | Y36: =SUM(Y4:Y35) -> 16216636.6 | Z36: =SUM(Z4:Z35) -> 26625750.92 | AA36: =SUM(AA4:AA35) -> 10551400.52 | AB36: =SUM(AB4:AB35) -> 5778450.721 | AC36: =SUM(AC4:AC35) -> 8868248.574 | AD36: =SUM(AD4:AD35) -> 4000420.704 | AE36: =SUM(AE4:AE35) -> 5030978.777 | AF36: =SUM(AF4:AF35) -> 4397413.499 | AG36: =SUM(AG4:AG35) -> 5771471.617 | AH36: =SUM(AH4:AH35) -> 18460156.7 | AI36: =SUM(AI4:AI35) -> 267202098.3 | AJ36: 7185700.52 | AK36: 1.2077654
A37: 消費税 | H37: =SUM(②工事費内訳書!I307) -> 7400000 | M37: =SUM(M10*0.08) -> 0 | O37: 306.1811649 | T37: =T34*0.1 -> 0 | AA37: 438.960778 | AK37: 0.0298388
A38: 支出 | B38: 年度合計 | E38: =SUM(E36:E37) -> 0 | F38: =SUM(F36:F37) -> 8202115 | G38: =SUM(G36:G37) -> 11202980 | H38: =SUM(H36:H37) -> 166790200 | I38: 1276000 | J38: 9278377 | K38: 58862575 | L38: 15447510 | M38: 51962580 | N38: 14397115 | O38: 2573206.181 | P38: 10618400 | Q38: 27891930 | R38: 8522580 | S38: 8526450 | T38: 18688780 | U38: 47535036.05 | V38: 111357137 | W38: 5246249.561 | X38: 4426324.794 | Y38: 16216636.6 | Z38: 26625750.92 | AA38: 10551839.48 | AB38: 5778450.721 | AC38: 8868248.574 | AD38: 4000420.704 | AE38: 5030978.777 | AF38: 4397413.499 | AG38: 5771471.617 | AH38: 18460156.7 | AI38: 267202098.3 | AJ38: =SUM(AJ36:AJ37) -> 7185700.52 | AK38: -1.1480878
A39: 収入 | B39: 年度合計 | F39: 23148972 | G39: =SUM(①収支決算書!F14) -> 34716400 | H39: =SUM(①収支決算書!I14) -> 21885116 | I39: =SUM(①収支決算書!L14) -> 21498800 | J39: =SUM(①収支決算書!O14) -> 20893640 | K39: =SUM(①収支決算書!R14) -> 21404700 | L39: =SUM(①収支決算書!U14) -> 20243000 | M39: =SUM(①収支決算書!X14) -> 20272869 | N39: =SUM(①収支決算書!AA14) -> 20492850 | O39: =SUM(①収支決算書!AD14) -> 21061100 | P39: =SUM(①収支決算書!AG14) -> 24579333 | Q39: =SUM(①収支決算書!AJ14) -> 24329215 | R39: =SUM(①収支決算書!AM14) -> 20710700 | S39: =SUM(①収支決算書!AP14) -> 20609290 | T39: =SUM(①収支決算書!AS14) -> 20732240 | U39: =③タイプ別面積・管理費等額!L137 -> 31746499.52 | V39: =U39 -> 31746499.52 | W39: =V39 -> 31746499.52 | X39: 31746499.52 | Y39: 31746499.52 | Z39: 31746499.52 | AA39: 31746499.52 | AB39: 31746499.52 | AC39: 31746499.52 | AD39: 31746499.52 | AE39: 31746499.52 | AF39: 31746499.52 | AG39: 31746499.52 | AH39: 31746499.52 | AI39: 31746499.52 | AJ39: 31746499.52 | AK39: -11.7494272
A40: 当期余剰金 | E40: =SUM(E39-E38) -> 0 | F40: =SUM(F39-F38) -> 14946857 | G40: =SUM(G39-G38) -> 23513420 | H40: =SUM(H39-H38) -> -144905084 | I40: 20222800 | J40: 11615263 | K40: -37457875 | L40: 4795490 | M40: -31689711 | N40: 6095735 | O40: 18487893.82 | P40: 13960933 | Q40: -3562715 | R40: 12188120 | S40: 12082840 | T40: 2043460 | U40: -15788536.53 | V40: =SUM(V39-V38) -> -79610637.45 | W40: =SUM(W39-W38) -> 26500249.96 | X40: 27320174.73 | Y40: 15529862.92 | Z40: 5120748.597 | AA40: 21194660.04 | AB40: 25968048.8 | AC40: 22878250.95 | AD40: 27746078.82 | AE40: 26715520.74 | AF40: 27349086.02 | AG40: 25975027.9 | AH40: 13286342.82 | AI40: -235455598.8 | AJ40: =SUM(AJ39-AJ38) -> 24560799 | AK40: -14.1052804
B41: 電気使用料金振替 | L41: =①収支決算書!U20 -> 1946360 | M41: =①収支決算書!X20 -> 1801241 | N41: =①収支決算書!AA20 -> 1772550 | O41: =①収支決算書!AD20 -> 1743419 | P41: =①収支決算書!AG20 -> 1553638 | Q41: =①収支決算書!AJ20 -> 1599463 | R41: =①収支決算書!AM20 -> 2122635 | S41: =①収支決算書!AP20 -> 1891451
A42: 修繕積立金 次年度繰越金 | E42: 178985793 | F42: 193932650 | G42: 217446070 | H42: =SUM(G42+H40) -> 72540986 | I42: 92763786 | J42: 104379049 | K42: 66921174 | L42: =K42+L40+L41 -> 73663024 | M42: =L42+M40+M41 -> 43774554 | N42: 51642839 | O42: 71874151.82 | P42: 87388722.82 | Q42: 85425470.82 | R42: 99736225.82 | S42: 113710516.8 | T42: =SUM(S42+T40) -> 115753976.8 | U42: 99965440.29 | V42: 20354802.83 | W42: =SUM(V42+W40) -> 46855052.79 | X42: =SUM(W42+X40) -> 74175227.52 | Y42: =SUM(X42+Y40) -> 89705090.44 | Z42: =SUM(Y42+Z40) -> 94825839.03 | AA42: =SUM(Z42+AA40) -> 116020499.1 | AB42: =SUM(AA42+AB40) -> 141988547.9 | AC42: =SUM(AB42+AC40) -> 164866798.8 | AD42: =SUM(AC42+AD40) -> 192612877.6 | AE42: =SUM(AD42+AE40) -> 219328398.4 | AF42: =SUM(AE42+AF40) -> 246677484.4 | AG42: =SUM(AF42+AG40) -> 272652512.3 | AH42: =SUM(AG42+AH40) -> 285938855.1 | AI42: =SUM(AH42+AI40) -> 50483256.3 | AJ42: 75044055.3 | AK42: -15.283207
A43: 一般会計 | F43: *
A44: 収入 | G44: =SUM(①収支決算書!F5) -> 60082149 | H44: =SUM(①収支決算書!I5) -> 57670367 | I44: =SUM(①収支決算書!L5) -> 63754870 | J44: =SUM(①収支決算書!O5) -> 63463820 | K44: =SUM(①収支決算書!R5) -> 66516603 | L44: =SUM(①収支決算書!U5) -> 71244048 | M44: =SUM(①収支決算書!X5) -> 79140093 | N44: =SUM(①収支決算書!AA5) -> 79338551 | O44: =SUM(①収支決算書!AD5) -> 79670486 | P44: =SUM(①収支決算書!AG5) -> 71703560 | Q44: =SUM(①収支決算書!AJ5) -> 72882505 | R44: =SUM(①収支決算書!AM5) -> 87863594 | S44: =SUM(①収支決算書!AP5) -> 81563436 | T44: =SUM(①収支決算書!AS5) -> 80085294 | U44: 管理費 | V44: 値上げ率(%) | W44: =③タイプ別面積・管理費等額!I127 -> 5 | X44: 単年当たり増額 | Y44: =③タイプ別面積・管理費等額!M127 -> 1736250.896 | Z44: 15年増額累計 | AA44: =③タイプ別面積・管理費等額!L127 -> 26043763.45
A45: 支出 | G45: =SUM(①収支決算書!F6) -> 57587425 | H45: =SUM(①収支決算書!I6) -> 55188632 | I45: =SUM(①収支決算書!L6) -> 62679763 | J45: =SUM(①収支決算書!O6) -> 65221207 | K45: =SUM(①収支決算書!R6) -> 68112438 | L45: =SUM(①収支決算書!U6) -> 80095061 | M45: =SUM(①収支決算書!X6) -> 78369989 | N45: =SUM(①収支決算書!AA6) -> 80876768 | O45: =SUM(①収支決算書!AD6) -> 79298401 | P45: =SUM(①収支決算書!AG6) -> 71317058 | Q45: =SUM(①収支決算書!AJ6) -> 83044522 | R45: =SUM(①収支決算書!AM6) -> 92845646 | S45: =SUM(①収支決算書!AP6) -> 84998805 | T45: =SUM(①収支決算書!AS6) -> 84411805
B46: 小修繕（議案上程していない）額 | C46: 上記特別会計明細には含まれていない額 | F46: =④修繕履歴!E30 -> 2393060 | G46: =SUM(④修繕履歴!G30) -> 1172933 | H46: =SUM(④修繕履歴!I30) -> 912765 | I46: =SUM(④修繕履歴!K30) -> 1188862 | J46: =SUM(④修繕履歴!M30) -> 3413577 | K46: =SUM(④修繕履歴!O30) -> 1451726 | L46: =SUM(④修繕履歴!Q30) -> 6069736 | M46: =SUM(④修繕履歴!S30) -> 3279750 | N46: =SUM(④修繕履歴!U30) -> 4466900 | O46: =SUM(④修繕履歴!W30) -> 3726153 | P46: =SUM(④修繕履歴!Y30) -> 1566730 | Q46: =SUM(④修繕履歴!AA30) -> 10451496 | R46: =SUM(④修繕履歴!AC30) -> 5751350 | S46: =SUM(④修繕履歴!AE30) -> 6432239 | T46: =SUM(④修繕履歴!AF30) -> 0
B47: 年度合計収支 | G47: =SUM(G44-G45) -> 2494724 | H47: 2481735 | I47: 1075107 | J47: -1757387 | K47: -1595835 | L47: -8851013 | M47: 770104 | N47: -1538217 | O47: 372085 | P47: 386502 | Q47: -10162017 | R47: -4982052 | S47: -3435369 | T47: =SUM(T44-T45) -> -4326511
B48: 次年度繰越 | G48: =SUM(①収支決算書!F12) -> 34353557 | H48: =SUM(①収支決算書!I12) -> 36768822 | I48: =SUM(①収支決算書!L12) -> 37843929 | J48: =SUM(①収支決算書!O12) -> 36086542 | K48: =SUM(①収支決算書!R12) -> 34490707 | L48: =SUM(①収支決算書!U12) -> 25639694 | M48: =SUM(①収支決算書!X12) -> 24608557 | N48: =SUM(①収支決算書!AA12) -> 21618010 | O48: =SUM(①収支決算書!AD12) -> 20246676 | P48: =SUM(①収支決算書!AG12) -> 19079540 | Q48: =SUM(①収支決算書!AJ12) -> 7318060 | R48: =SUM(①収支決算書!AM12) -> 213373 | S48: =SUM(①収支決算書!AP12) -> -5113447 | T48: =SUM(①収支決算書!AS12) -> -9439958
U49: 西棟 | V49: 東棟
B50: 住宅修繕積立金 | C50: 530220 | G50: 収入で特別修繕費=再開発事業の解散清算金 | R50: 共通仮設費 5％ | U50: =SUM(U51:U61)*0.05 -> 936081.4914 | V50: =SUM(V51:V61)*0.05 -> 3443042.229
R51: 直接仮設費 | U51: =SUM(②工事費内訳書!P8) -> 7849060 | V51: =SUM(②工事費内訳書!M8) -> 26445700
R52: 下地処理工事 | U52: =SUM(②工事費内訳書!P18) -> 917500 | V52: =SUM(②工事費内訳書!M18) -> 2705530
R53: 石タイル工事 | U53: =SUM(②工事費内訳書!P28) -> 2184810 | V53: =SUM(②工事費内訳書!M28) -> 7186910
N54: シート工事 6,435工事欄へ | R54: シーリング工事 | U54: =SUM(②工事費内訳書!P47) -> 2179707 | V54: =SUM(②工事費内訳書!M47) -> 7651760
R55: 塗装工事 | S55: 外部 | U55: =SUM(②工事費内訳書!P69)-②工事費内訳書!P68 -> 2209848 | V55: =SUM(②工事費内訳書!M69)-②工事費内訳書!M68 -> 8503004
S56: 鉄部 | U56: =FV(0.02,14,,-970330) -> 1280329.828 | V56: =FV(0.02,13,,-8452713) -> 10934485.58
R57: 防水工事
R58: 床工事
R59: 洗い工事 | U59: =SUM(②工事費内訳書!P268) -> 2100375 | V59: =SUM(②工事費内訳書!M268) -> 5433455
R60: その他工事
R61: 外構工事
S63: 小計 | U63: =SUM(U50:U61) -> 19657711.32 | V63: =SUM(V50:V61) -> 72303886.81
S64: 諸経費15％ | U64: =U63*0.15 -> 2948656.698 | V64: =V63*0.15 -> 10845583.02
S65: 合計 | U65: =U63+U64 -> 22606368.02 | V65: =V63+V64 -> 83149469.83
S66: TAX 10％ | U66: =U65*0.1 -> 2260636.802 | V66: =V65*0.1 -> 8314946.983
S67: 総額 | U67: =U65+U66 -> 24867004.82 | V67: =V65+V66 -> 91464416.82
R68: 利率 | S68: 2 | U68: 2 | V68: 2
R69: 期間 | U69: 13 | V69: 14
R70: 推定額 | U70: =U67 * (1 + U68 / 100) ^ U69 -> 32168122.31 | V70: =V67 * (1 + V68 / 100) ^ V69 -> 120685355.6

Sheet ②工事費内訳書
D1: 作成日／ 年 月 日 集会（管理組合総会）で議決された日／ 年 月 日 | I1: （単位：円）
A2: 推定修繕工事項目 | C2: 対象部位等 | D2: 工事区分 | E2: 仕様等 | F2: 単位 | G2: 数量 | H2: AV単価 | I2: 金額 | J2: 修繕 | K2: 東棟集計 | N2: 西棟集計 | R2: 東棟 | AA2: 西棟 | AH2: 東棟集計 | AI2: 西棟集計
J3: 周期 | R3: 住宅 | U3: 店舗 | X3: フィットネス | AA3: 住宅 | AD3: 店舗 | AH3: =IFERROR(SUM(AH5:AH368), "") -> 16633935 | AI3: =IFERROR(SUM(AI5:AI368), "") -> 5075500 | AJ3: 工事費合計
A4: Ⅰ | B4: 1 仮設工事
A5: 仮設 | B5: ①共通仮設 | E5: 仮設事務所、資材置き場等 | I5: 6940000 | J5: 12年 | R5: 施設ごと集計
I6: =SUM(K6:P6) -> 128943892 | K6: =IFERROR(SUM(T6+W6+Z6), "") -> 99080340 | N6: =IFERROR(SUM(AC6+AF6), "") -> 29863552 | T6: =IFERROR(SUM(T8+T18+T28+T47+T69+T122+T231+T260+T268+T282), "") -> 63771623 | W6: =IFERROR(SUM(W8+W18+W28+W47+W69+W122+W231+W260+W268+W282), "") -> 12822650 | Z6: =IFERROR(SUM(Z8+Z18+Z28+Z47+Z69+Z122+Z231+Z260+Z268+Z282), "") -> 22486067 | AC6: =IFERROR(SUM(AC8+AC18+AC28+AC47+AC69+AC122+AC231+AC260+AC268+AC282), "") -> 22085439 | AF6: =IFERROR(SUM(AF8+AF18+AF28+AF47+AF69+AF122+AF231+AF260+AF268+AF282), "") -> 7778113
K7: 数量 | L7: AV単価 | M7: 金額 | N7: 数量 | O7: VA単価 | P7: 金額 | R7: 数量 | S7: 単価 | T7: 金額 | U7: 数量 | V7: 単価 | W7: 金額 | X7: 数量 | Y7: 単価 | Z7: 金額 | AA7: 数量 | AB7: 単価 | AC7: 金額 | AD7: 数量 | AE7: 単価 | AF7: 金額
A8: Ⅱ | B8: ②直接仮設 | E8: 枠組足場、養生シート等 | I8: =IFERROR(SUM(M8+P8), "") -> 34294760 | M8: =IFERROR(SUM(T8+W8+Z8), "") -> 26445700 | P8: =IFERROR(SUM(AC8+AF8), "") -> 7849060 | S8: 直接仮設計 | T8: 13056485 | W8: 3577450 | Z8: 9811765 | AC8: 5075500 | AF8: 2773560 | AH8: =IFERROR(SUM(S8:Y8), "") -> 16633935 | AI8: =IFERROR(SUM(AB8:AE8), "") -> 5075500
A9: 建築 | B9: 2 下地補修工事 | C9: マーキング調査費 | E9: 打診調査・資料作成 | F9: ｍ2 | G9: =IFERROR(SUM(K9+N9), "") -> 11853.4 | H9: =IFERROR(SUM(I9/G9), "") -> 50 | I9: =IFERROR(SUM(M9+P9), "") -> 592670 | K9: =IFERROR(SUM(R9+U9+X9), "") -> 9445.9 | L9: =IFERROR(SUM(M9/K9), "") -> 50 | M9: =IFERROR(SUM(T9+W9+Z9), "") -> 472295 | N9: =IFERROR(SUM(AA9+AD9), "") -> 2407.5 | O9: =IFERROR(SUM(P9/N9), "") -> 50 | P9: =IFERROR(SUM(AC9+AF9), "") -> 120375 | R9: 8820.1 | S9: 50 | T9: =IFERROR(SUM(R9*S9), "") -> 441005 | U9: 337 | V9: 50 | W9: =IFERROR(SUM(U9*V9), "") -> 16850 | X9: 288.8 | Y9: =IFERROR(SUM(S9), "") -> 50 | Z9: =IFERROR(SUM(X9*Y9), "") -> 14440 | AA9: 1955.6 | AB9: =IFERROR(SUM(S9), "") -> 50 | AC9: =IFERROR(SUM(AA9*AB9), "") -> 97780 | AD9: 451.9 | AE9: =IFERROR(SUM(S9), "") -> 50 | AF9: =IFERROR(SUM(AD9*AE9), "") -> 22595
Y10: 0 | AB10: 0 | AE10: 0
C11: クラック補修 | E11: 0.5ｍｍ未満 フィラー刷り込み | G11: =IFERROR(SUM(K11+N11), "") -> 1778 | H11: =IFERROR(SUM(I11/G11), "") -> 250 | I11: =IFERROR(SUM(M11+P11), "") -> 444500 | K11: =IFERROR(SUM(R11+U11+X11), "") -> 1416.9 | L11: =IFERROR(SUM(M11/K11), "") -> 250 | M11: =IFERROR(SUM(T11+W11+Z11), "") -> 354225 | N11: =IFERROR(SUM(AA11+AD11), "") -> 361.1 | O11: =IFERROR(SUM(P11/N11), "") -> 250 | P11: =IFERROR(SUM(AC11+AF11), "") -> 90275 | R11: 1323 | S11: 250 | T11: =IFERROR(SUM(R11*S11), "") -> 330750 | U11: 50.6 | V11: 250 | W11: =IFERROR(SUM(U11*V11), "") -> 12650 | X11: 43.3 | Y11: 250 | Z11: =IFERROR(SUM(X11*Y11), "") -> 10825 | AA11: 293.3 | AB11: 250 | AC11: =IFERROR(SUM(AA11*AB11), "") -> 73325 | AD11: 67.8 | AE11: 250 | AF11: =IFERROR(SUM(AD11*AE11), "") -> 16950
C12: クラック補修 | E12: 0.5ｍｍ以上低圧注入工法 | G12: 177.7 | H12: 1600 | I12: 284320 | K12: 141.6 | L12: 1600 | M12: 226560 | N12: 36.1 | O12: 1600 | P12: 57760 | R12: 132.3 | S12: 1600 | T12: 211680 | U12: 5 | V12: 1600 | W12: 8000 | X12: 4.3 | Y12: 1600 | Z12: 6880 | AA12: 29.3 | AB12: 1600 | AC12: 46880 | AD12: 6.8 | AE12: 1600 | AF12: 10880
C13: クラック補修 | E13: 0.5ｍｍ以上Ｕカットシーリング充填処理 | G13: 237 | H13: 1300 | I13: 308100 | K13: 188.9 | L13: 1300 | M13: 245570 | N13: 48.1 | O13: 1300 | P13: 62530 | R13: 176.4 | S13: 1300 | T13: 229320 | U13: 6.7 | V13: 1300 | W13: 8710 | X13: 5.8 | Y13: 1300 | Z13: 7540 | AA13: 39.1 | AB13: 1300 | AC13: 50830 | AD13: 9 | AE13: 1300 | AF13: 11700
C14: コンクリート・モルタル浮き処理 | E14: SUSピン併用樹脂注入工法 25pin | G14: 210.9 | H14: 4000 | I14: 843600 | K14: 141.6 | L14: 4000 | M14: 566400 | N14: 69.3 | O14: 4000 | P14: 277200 | R14: 132.3 | S14: 4000 | T14: 529200 | U14: 5 | V14: 4000 | W14: 20000 | X14: 4.3 | Y14: 4000 | Z14: 17200 | AA14: 29.3 | AB14: 4000 | AC14: 117200 | AD14: 40 | AE14: 4000 | AF14: 160000
C15: コンクリート・モルタル露筋・欠損処理 | E15: 撤去、錆止樹脂モルタル成形 | G15: 442 | H15: 1200 | I15: 530400 | K15: 308 | L15: 1200 | M15: 369600 | N15: 134 | O15: 1200 | P15: 160800 | R15: 248 | S15: 1200 | T15: 297600 | U15: 30 | V15: 1200 | W15: 36000 | X15: 30 | Y15: 1200 | Z15: 36000 | AA15: 124 | AB15: 1200 | AC15: 148800 | AD15: 10 | AE15: 1200 | AF15: 12000
C16: 塗膜浮き・捲れ | E16: 樹脂モルタル修正 | G16: 118.4 | H16: 1600 | I16: 189440 | K16: 94.3 | L16: 1600 | M16: 150880 | N16: 24.1 | O16: 1600 | P16: 38560 | R16: 88 | S16: 1600 | T16: 140800 | U16: 3.4 | V16: 1600 | W16: 5440 | X16: 2.9 | Y16: 1600 | Z16: 4640 | AA16: 19.6 | AB16: 1600 | AC16: 31360 | AD16: 4.5 | AE16: 1600 | AF16: 7200
C17: パターン調整 | G17: 5 | H17: 86000 | I17: 430000 | K17: 3 | L17: 106666.6667 | M17: 320000 | N17: 2 | O17: 55000 | P17: 110000 | R17: 1 | S17: 160000 | T17: 160000 | U17: 1 | V17: 100000 | W17: 100000 | X17: 1 | Y17: 60000 | Z17: 60000 | AA17: 1 | AB17: 60000 | AC17: 60000 | AD17: 1 | AE17: 50000 | AF17: 50000
I18: 3623030 | M18: 2705530 | P18: 917500 | S18: 下地補修工事計 | T18: =IFERROR(SUM(T9:T17), "") -> 2340355 | V18: 計 | W18: =IFERROR(SUM(W9:W17), "") -> 207650 | Y18: 計 | Z18: =IFERROR(SUM(Z9:Z17), "") -> 157525 | AB18: 計 | AC18: =IFERROR(SUM(AC9:AC17), "") -> 626175 | AE18: 計 | AF18: =IFERROR(SUM(AF9:AF17), "") -> 291325
Y19: =IFERROR(SUM(S19), "") -> 0 | AB19: =IFERROR(SUM(S19), "") -> 0 | AE19: =IFERROR(SUM(S19), "") -> 0
B20: 3 石・タイル工事 | C20: マーキング調査費 | E20: 打診調査・資料作成 | G20: =IFERROR(SUM(K20+N20), "") -> 10131.6 | H20: =IFERROR(SUM(I20/G20), "") -> 50 | I20: =IFERROR(SUM(M20+P20), "") -> 506580 | K20: =IFERROR(SUM(R20+U20+X20), "") -> 7643 | L20: =IFERROR(SUM(M20/K20), "") -> 50 | M20: =IFERROR(SUM(T20+W20+Z20), "") -> 382150 | N20: =IFERROR(SUM(AA20+AD20), "") -> 2488.6 | O20: =IFERROR(SUM(P20/N20), "") -> 50 | P20: =IFERROR(SUM(AC20+AF20), "") -> 124430 | R20: 4155 | S20: 50 | T20: =IFERROR(SUM(R20*S20), "") -> 207750 | U20: 1395 | V20: =IFERROR(SUM(S20), "") -> 50 | W20: =IFERROR(SUM(U20*V20), "") -> 69750 | X20: 2093 | Y20: 50 | Z20: =IFERROR(SUM(X20*Y20), "") -> 104650 | AA20: 1630 | AB20: 50 | AC20: =IFERROR(SUM(AA20*AB20), "") -> 81500 | AD20: 858.6 | AE20: 50 | AF20: =IFERROR(SUM(AD20*AE20), "") -> 42930
G21: 0 | I21: 0 | K21: 0 | M21: 0 | N21: 0 | P21: 0 | S21: 0 | Y21: 0 | AB21: 0 | AE21: 0
C22: タイル補修 | E22: 近似品 | G22: 0 | I22: 0 | K22: 0 | M22: 0 | N22: 0 | P22: 0 | S22: 0 | Y22: 0 | AB22: 0 | AE22: 0
C23: 割れ欠けぶ貼替 | E23: 材料費 | G23: 72.5 | H23: 25000 | I23: 1812500 | K23: 55.9 | L23: 25000 | M23: 1397500 | N23: 16.6 | O23: 25000 | P23: 415000 | R23: 21 | S23: 25000 | T23: =IFERROR(SUM(R23*S23), "") -> 525000 | U23: 14 | V23: =IFERROR(SUM(S23), "") -> 25000 | W23: =IFERROR(SUM(U23*V23), "") -> 350000 | X23: 20.9 | Y23: 25000 | Z23: =IFERROR(SUM(X23*Y23), "") -> 522500 | AA23: 8.1 | AB23: 25000 | AC23: =IFERROR(SUM(AA23*AB23), "") -> 202500 | AD23: 8.5 | AE23: 25000 | AF23: =IFERROR(SUM(AD23*AE23), "") -> 212500
C24: 浮き部貼替 | E24: 材料費 | G24: 72.6 | H24: 25000 | I24: 1815000 | K24: 55.9 | L24: 25000 | M24: 1397500 | N24: 16.7 | O24: 25000 | P24: 417500 | R24: 21 | S24: 25000 | T24: =IFERROR(SUM(R24*S24), "") -> 525000 | U24: 14 | V24: =IFERROR(SUM(S24), "") -> 25000 | W24: =IFERROR(SUM(U24*V24), "") -> 350000 | X24: 20.9 | Y24: 25000 | Z24: =IFERROR(SUM(X24*Y24), "") -> 522500 | AA24: 8.2 | AB24: 25000 | AC24: =IFERROR(SUM(AA24*AB24), "") -> 205000 | AD24: 8.5 | AE24: 25000 | AF24: =IFERROR(SUM(AD24*AE24), "") -> 212500
C25: 施工費 | E25: 施工費 | G25: 145.1 | H25: 25000 | I25: 3627500 | K25: 111.8 | L25: 25000 | M25: 2795000 | N25: 33.3 | O25: 25000 | P25: 832500 | R25: 42 | S25: 25000 | T25: =IFERROR(SUM(R25*S25), "") -> 1050000 | U25: 28 | V25: =IFERROR(SUM(S25), "") -> 25000 | W25: =IFERROR(SUM(U25*V25), "") -> 700000 | X25: 41.8 | Y25: 25000 | Z25: =IFERROR(SUM(X25*Y25), "") -> 1045000 | AA25: 16.3 | AB25: 25000 | AC25: =IFERROR(SUM(AA25*AB25), "") -> 407500 | AD25: 17 | AE25: 25000 | AF25: =IFERROR(SUM(AD25*AE25), "") -> 425000
G26: 0 | I26: 0 | K26: 0 | M26: 0 | N26: 0 | P26: 0 | V26: =IFERROR(SUM(S26), "") -> 0 | Y26: 0 | AB26: 0 | AE26: 0
C27: 浮き部エポキシ樹脂注入 | G27: 303.8 | H27: 5300 | I27: 1610140 | K27: 229.2 | L27: 5300 | M27: 1214760 | N27: 74.6 | O27: 5300 | P27: 395380 | R27: 124.6 | S27: 5300 | T27: =IFERROR(SUM(R27*S27), "") -> 660380 | U27: 41.8 | V27: =IFERROR(SUM(S27), "") -> 5300 | W27: =IFERROR(SUM(U27*V27), "") -> 221540 | X27: 62.8 | Y27: 5300 | Z27: =IFERROR(SUM(X27*Y27), "") -> 332840 | AA27: 48.9 | AB27: 5300 | AC27: =IFERROR(SUM(AA27*AB27), "") -> 259170 | AD27: 25.7 | AE27: 5300 | AF27: =IFERROR(SUM(AD27*AE27), "") -> 136210
I28: 9371720 | M28: 7186910 | P28: 2184810 | S28: 石・タイル工事計 | T28: =IFERROR(SUM(T20:T27), "") -> 2968130 | V28: 計 | W28: =IFERROR(SUM(W20:W27), "") -> 1691290 | Y28: 計 | Z28: =IFERROR(SUM(Z20:Z27), "") -> 2527490 | AB28: 計 | AC28: =IFERROR(SUM(AC20:AC27), "") -> 1155670 | AE28: 計 | AF28: =IFERROR(SUM(AF20:AF27), "") -> 1029140
Y29: =IFERROR(SUM(S29), "") -> 0 | AB29: =IFERROR(SUM(S29), "") -> 0 | AE29: =IFERROR(SUM(S29), "") -> 0
B30: 4 シーリング工事 | C30: 塗装面打ち継ぎ目地 | D30: 打替 | E30: 20*10ポリウレタンノンブリード | G30: =IFERROR(SUM(K30+N30), "") -> 179.2 | H30: =IFERROR(SUM(I30/G30), "") -> 700 | I30: =IFERROR(SUM(M30+P30), "") -> 125440 | K30: =IFERROR(SUM(R30+U30+X30), "") -> 115.2 | L30: =IFERROR(SUM(M30/K30), "") -> 700 | M30: =IFERROR(SUM(T30+W30+Z30), "") -> 80640 | N30: =IFERROR(SUM(AA30+AD30), "") -> 64 | O30: =IFERROR(SUM(P30/N30), "") -> 700 | P30: =IFERROR(SUM(AC30+AF30), "") -> 44800 | R30: 115.2 | S30: 700 | T30: =IFERROR(SUM(R30*S30), "") -> 80640 | AA30: 64 | AB30: =IFERROR(SUM(S30), "") -> 700 | AC30: =IFERROR(SUM(AA30*AB30), "") -> 44800 | AE30: =IFERROR(SUM(S30), "") -> 700 | AF30: =IFERROR(SUM(AD30*AE30), "") -> 0
C31: 塗装面伸縮目地 | D31: 打替 | E31: 20*10ポリウレタンノンブリード | G31: 631 | H31: 700 | I31: 441700 | K31: 594 | L31: 700 | M31: 415800 | N31: 37 | O31: 700 | P31: 25900 | R31: 594 | S31: 700 | T31: =IFERROR(SUM(R31*S31), "") -> 415800 | AA31: 37 | AB31: =IFERROR(SUM(S31), "") -> 700 | AC31: =IFERROR(SUM(AA31*AB31), "") -> 25900 | AE31: =IFERROR(SUM(S31), "") -> 700 | AF31: =IFERROR(SUM(AD31*AE31), "") -> 0
C32: カーテンウォール廻り | G32: 1492 | H32: 650 | I32: 969800 | K32: 1492 | L32: 650 | M32: 969800 | N32: 0 | P32: 0 | X32: 1492 | Y32: 650 | Z32: =IFERROR(SUM(X32*Y32), "") -> 969800
C33: アルミパネル廻り | G33: 0 | I33: 0 | K33: 0 | M33: 0 | N33: 0 | P33: 0
C34: アルミパネル目地 | E34: 20*10変性シリコン | G34: 904.2 | H34: 700 | I34: 632940 | K34: 613 | L34: 700 | M34: 429100 | N34: 291.2 | O34: 700 | P34: 203840 | U34: 227 | V34: 700 | W34: =IFERROR(SUM(U34*V34), "") -> 158900 | X34: 386 | Y34: 700 | Z34: =IFERROR(SUM(X34*Y34), "") -> 270200 | AA34: 176 | AB34: 700 | AC34: =IFERROR(SUM(AA34*AB34), "") -> 123200 | AD34: 115.2 | AE34: 700 | AF34: =IFERROR(SUM(AD34*AE34), "") -> 80640
C35: タイル面打ち継ぎ目地 | D35: 打替 | E35: 20*10変性シリコン | G35: 1760.8 | H35: 700 | I35: 1232560 | K35: 965 | L35: 700 | M35: 675500 | N35: 795.8 | O35: 700 | P35: 557060 | R35: 522 | S35: 700 | T35: =IFERROR(SUM(R35*S35), "") -> 365400 | U35: 207 | V35: =IFERROR(SUM(S35), "") -> 700 | W35: 144900 | X35: 236 | Y35: =IFERROR(SUM(S35), "") -> 700 | Z35: 165200 | AA35: 568.4 | AB35: =IFERROR(SUM(S35), "") -> 700 | AC35: 397880 | AD35: 227.4 | AE35: =IFERROR(SUM(S35), "") -> 700 | AF35: 159180
C36: タイル面伸縮目地 | D36: 打替 | E36: 20*10変性シリコン | G36: 1578.5 | H36: 700 | I36: 1104950 | K36: 1454.5 | L36: 700 | M36: 1018150 | N36: 124 | O36: 700 | P36: 86800 | R36: 944 | S36: 700 | T36: 660800 | U36: 132 | V36: 700 | W36: 92400 | X36: 378.5 | Y36: =IFERROR(SUM(S36), "") -> 700 | Z36: 264950 | AA36: 96 | AB36: 700 | AC36: 67200 | AD36: 28 | AE36: 700 | AF36: 19600
C37: タイル面取り合い部目地 | D37: 打替 | E37: 20*10ポリウレタンノンブリード | G37: 644.3 | H37: 630 | I37: 405909 | K37: 533 | L37: 630 | M37: 335790 | N37: 111.3 | O37: 630 | P37: 70119 | R37: 384 | S37: 630 | T37: 241920 | U37: 48 | V37: 630 | W37: 30240 | X37: 101 | Y37: =IFERROR(SUM(S37), "") -> 630 | Z37: 63630 | AA37: 93.3 | AB37: 630 | AC37: 58779 | AD37: 18 | AE37: 630 | AF37: 11340
C38: AL建具廻り | D38: 打替 | E38: 20*10変性シリコン | G38: 3593.5 | H38: 630 | I38: 2263905 | K38: 2789.3 | L38: 630 | M38: 1757259 | N38: 804.2 | O38: 630 | P38: 506646 | R38: 2166.4 | S38: 630 | T38: 1364832 | U38: 378 | V38: 630 | W38: 238140 | X38: 244.9 | Y38: =IFERROR(SUM(S38), "") -> 630 | Z38: 154287 | AA38: 336 | AB38: 630 | AC38: 211680 | AD38: 468.2 | AE38: 630 | AF38: 294966
C39: 鋼製建具廻り | D39: 打替 | E39: 20*10変性シリコン | G39: 1755.1 | H39: 630 | I39: 1105713 | K39: 1341.7 | L39: 630 | M39: 845271 | N39: 413.4 | O39: 630 | P39: 260442 | R39: 1184.2 | S39: 630 | T39: 746046 | U39: 123 | V39: 630 | W39: 77490 | X39: 34.5 | Y39: =IFERROR(SUM(S39), "") -> 630 | Z39: 21735 | AA39: 215.2 | AB39: 630 | AC39: 135576 | AD39: 198.2 | AE39: 630 | AF39: 124866
C40: EXP.J廻り | D40: 打替 | E40: 20*10ポリウレタンノンブリード | G40: 323 | H40: 700 | I40: 226100 | K40: 312 | L40: 700 | M40: 218400 | N40: 11 | O40: 700 | P40: 7700 | R40: 264 | S40: 700 | T40: 184800 | U40: 48 | V40: 700 | W40: 33600 | AA40: 11 | AB40: 700 | AC40: 7700 | AE40: 700 | AF40: 0
C41: 手すり根元廻り | G41: 2009 | H41: 300 | I41: 602700 | K41: 1554 | L41: 300 | M41: 466200 | N41: 455 | O41: 300 | P41: 136500 | R41: 1512 | S41: 300 | T41: 453600 | U41: 42 | V41: 300 | W41: 12600 | AA41: 425 | AB41: 300 | AC41: 127500 | AD41: 30 | AE41: 300 | AF41: 9000
C42: 喚起フード周囲 | E42: 三角シーリング | G42: 3 | H42: 15000 | I42: 45000 | K42: 2 | L42: 15000 | M42: 30000 | N42: 1 | O42: 15000 | P42: 15000 | U42: 1 | V42: 15000 | W42: 15000 | X42: 1 | Y42: 15000 | Z42: =IFERROR(SUM(X42*Y42), "") -> 15000 | AD42: 1 | AE42: 15000 | AF42: 15000
C43: ベンドキャップ周囲 | G43: 250 | H43: 450 | I43: 112500 | K43: 190 | L43: 450 | M43: 85500 | N43: 60 | O43: 450 | P43: 27000 | R43: 190 | S43: 450 | T43: =IFERROR(SUM(R43*S43), "") -> 85500 | W43: 0 | AA43: 60 | AB43: =IFERROR(SUM(S43), "") -> 450 | AC43: =IFERROR(SUM(AA43*AB43), "") -> 27000 | AE43: =IFERROR(SUM(S43), "") -> 450 | AF43: 0
C44: 避難ハッチ廻り | G44: 10 | H44: 2200 | I44: 22000 | K44: 3 | L44: 2200 | M44: 6600 | N44: 7 | O44: 2200 | P44: 15400 | R44: 3 | S44: 2200 | T44: =IFERROR(SUM(R44*S44), "") -> 6600 | AA44: 5 | AB44: =IFERROR(SUM(S44), "") -> 2200 | AC44: =IFERROR(SUM(AA44*AB44), "") -> 11000 | AD44: 2 | AE44: =IFERROR(SUM(S44), "") -> 2200 | AF44: 4400
C45: 竪樋支持金物廻り | G45: 1041 | H45: 250 | I45: 260250 | K45: 711 | L45: 250 | M45: 177750 | N45: 330 | O45: 250 | P45: 82500 | R45: 575 | S45: 250 | T45: =IFERROR(SUM(R45*S45), "") -> 143750 | U45: 82 | V45: =IFERROR(SUM(S45), "") -> 250 | W45: =IFERROR(SUM(U45*V45), "") -> 20500 | X45: 54 | Y45: =IFERROR(SUM(S45), "") -> 250 | Z45: =IFERROR(SUM(X45*Y45), "") -> 13500 | AA45: 210 | AB45: =IFERROR(SUM(S45), "") -> 250 | AC45: =IFERROR(SUM(AA45*AB45), "") -> 52500 | AD45: 120 | AE45: =IFERROR(SUM(S45), "") -> 250 | AF45: 30000
C46: その他シーリング | G46: 5 | H46: 56000 | I46: 280000 | K46: 3 | L46: 46666.66667 | M46: 140000 | N46: 2 | O46: 70000 | P46: 140000 | R46: 1 | S46: 100000 | T46: =IFERROR(SUM(R46*S46), "") -> 100000 | U46: 1 | V46: 20000 | W46: =IFERROR(SUM(U46*V46), "") -> 20000 | X46: 1 | Y46: 20000 | Z46: =IFERROR(SUM(X46*Y46), "") -> 20000 | AA46: 1 | AB46: =IFERROR(SUM(S46), "") -> 100000 | AC46: =IFERROR(SUM(AA46*AB46), "") -> 100000 | AD46: 1 | AE46: 40000 | AF46: 40000
I47: 9831467 | M47: 7651760 | P47: 2179707 | S47: シーリング工事計 | T47: =IFERROR(SUM(T30:T46), "") -> 4849688 | V47: 計 | W47: =IFERROR(SUM(W30:W46), "") -> 843770 | Y47: 計 | Z47: =IFERROR(SUM(Z30:Z46), "") -> 1958302 | AB47: 計 | AC47: =IFERROR(SUM(AC30:AC46), "") -> 1390715 | AE47: 計 | AF47: =IFERROR(SUM(AF30:AF46), "") -> 788992
V48: =IFERROR(SUM(S48), "") -> 0 | Y48: =IFERROR(SUM(S48), "") -> 0 | AB48: =IFERROR(SUM(S48), "") -> 0 | AE48: =IFERROR(SUM(S48), "") -> 0
B49: 5 塗装工事 | C49: a.外壁塗装 | I49: =IFERROR(SUM(G49*H49), "") -> 0 | M49: =IFERROR(SUM(T49+W49+Z49), "") -> 0 | V49: =IFERROR(SUM(S49), "") -> 0 | Y49: =IFERROR(SUM(S49), "") -> 0 | AB49: 0 | AE49: 0
C50: バルコニー面 | E50: 関西ペイント アキレスホルダーGⅡ コスモシリコン2回塗り | G50: =IFERROR(SUM(K50+N50), "") -> 3437 | H50: =IFERROR(SUM(I50/G50), "") -> 980 | I50: =IFERROR(SUM(M50+P50), "") -> 3368260 | K50: =IFERROR(SUM(R50+U50+X50), "") -> 3269 | L50: =IFERROR(SUM(M50/K50), "") -> 980 | M50: 3203620 | N50: =IFERROR(SUM(AA50+AD50), "") -> 168 | O50: =IFERROR(SUM(P50/N50), "") -> 980 | P50: =IFERROR(SUM(AC50+AF50), "") -> 164640 | R50: 3083 | S50: 980 | T50: =IFERROR(SUM(R50*S50), "") -> 3021340 | U50: 186 | V50: =IFERROR(SUM(S50), "") -> 980 | W50: =IFERROR(SUM(U50*V50), "") -> 182280 | AA50: 168 | AB50: 980 | AC50: =IFERROR(SUM(AA50*AB50), "") -> 164640 | AE50: 980 | AF50: =IFERROR(SUM(AD50*AE50), "") -> 0
C51: バルコニー面手摺壁 | E51: 関西ペイント アキレスホルダーGⅡ コスモシリコン2回塗り | G51: 828.4 | H51: 980 | I51: 811832 | K51: 648 | L51: 980 | M51: 635040 | N51: 180.4 | O51: 980 | P51: 176792 | R51: 648 | S51: 980 | T51: 635040 | AA51: 164.9 | AB51: 980 | AC51: 161602 | AD51: 15.5 | AE51: 980 | AF51: 15190
C52: 廊下面 | E52: 関西ペイント アキレスホルダーGⅡ コスモシリコン2回塗り | G52: 2058.8 | H52: 980 | I52: 2017624 | K52: 1247.8 | L52: 980 | M52: 1222844 | N52: 811 | O52: 980 | P52: 794780 | R52: 1247.8 | S52: 980 | T52: 1222844 | AA52: 678.5 | AB52: 980 | AC52: 664930 | AD52: 132.5 | AE52: 980 | AF52: 129850
C53: 廊下手摺壁 | E53: 関西ペイント アキレスホルダーGⅡ コスモシリコン2回塗り | G53: 879 | H53: 980 | I53: 861420 | K53: 660 | L53: 980 | M53: 646800 | N53: 219 | O53: 980 | P53: 214620 | R53: 660 | S53: 980 | T53: 646800 | AA53: 219 | AB53: 980 | AC53: 214620 | AE53: 980 | AF53: 0
C54: 階段壁・支持壁 | E54: 関西ペイント アキレスホルダーGⅡ コスモシリコン2回塗り | G54: 876.2 | H54: 980 | I54: 858676 | K54: 713 | L54: 980 | M54: 698740 | N54: 163.2 | O54: 980 | P54: 159936 | R54: 713 | S54: 980 | T54: 698740 | AB54: 980 | AC54: 0 | AD54: 163.2 | AE54: 980 | AF54: 159936
C55: 吹抜け梁型 | E55: 関西ペイント アキレスホルダーGⅡ コスモシリコン2回塗り | G55: 153.5 | H55: 980 | I55: 150430 | K55: 99 | L55: 980 | M55: 97020 | N55: 54.5 | O55: 980 | P55: 53410 | R55: 99 | S55: 980 | T55: 97020 | AA55: 54.5 | AB55: 980 | AC55: 53410 | AE55: 980 | AF55: 0
C56: 吹抜け梁天端（塗装面） | E56: 関西ペイント アキレスホルダーGⅡ コスモシリコン2回塗り | G56: 27.8 | H56: 1100 | I56: 30580 | K56: 22.5 | L56: 1100 | M56: 24750 | N56: 5.3 | O56: 1100 | P56: 5830 | R56: 22.5 | S56: 1100 | T56: 24750 | AA56: 5.3 | AB56: 1100 | AC56: 5830 | AE56: 1100 | AF56: 0
C57: 吹抜け梁天端（タイル面） | E57: RCガーデックス | G57: 63.5 | H57: 2200 | I57: 139700 | K57: 54 | L57: 2200 | M57: 118800 | N57: 9.5 | O57: 2200 | P57: 20900 | R57: 21.2 | S57: 2200 | T57: 46640 | U57: 16 | V57: =IFERROR(SUM(S57), "") -> 2200 | W57: =IFERROR(SUM(U57*V57), "") -> 35200 | X57: 16.8 | Y57: =IFERROR(SUM(S57), "") -> 2200 | Z57: =IFERROR(SUM(X57*Y57), "") -> 36960 | AA57: 9.5 | AB57: 2200 | AC57: 20900 | AE57: 2200 | AF57: 0
C58: ジョリパット面 | E58: アイカ ジョリパットシーラー他 | G58: 49 | H58: 2000 | I58: 98000 | K58: 0 | M58: 0 | N58: 49 | O58: 2000 | P58: 98000 | AA58: 49 | AB58: 2000 | AC58: 98000
C59: モルタル巾木 | E59: シリコンガード | G59: 1 | H59: 35000 | I59: 35000 | K59: 0 | M59: 0 | N59: 1 | O59: 35000 | P59: 35000 | AA59: 1 | AB59: 35000 | AC59: 35000
C60: テラス面 | D60: フィットネス | E60: 関西ペイント アキレスホルダーGⅡ コスモシリコン2回塗り | G60: 240 | H60: 980 | I60: 235200 | K60: 240 | L60: 980 | M60: 235200 | N60: 0 | P60: 0 | V60: =IFERROR(SUM(S60), "") -> 0 | X60: 240 | Y60: 980 | Z60: =IFERROR(SUM(X60*Y60), "") -> 235200 | AB60: =IFERROR(SUM(S60), "") -> 0 | AE60: =IFERROR(SUM(S60), "") -> 0 | AF60: =IFERROR(SUM(AD60*AE60), "") -> 0
G61: 0 | I61: 0 | K61: 0 | M61: 0 | N61: 0 | P61: 0
C62: 共用部廊下天井 | E62: 関西ペイント アレスセラマイルド2回塗り | G62: 1537.2 | H62: 650 | I62: 999180 | K62: 1198 | L62: 650 | M62: 778700 | N62: 339.2 | O62: 650 | P62: 220480 | R62: 1198 | S62: 650 | T62: =IFERROR(SUM(R62*S62), "") -> 778700 | AA62: 251.9 | AB62: =IFERROR(SUM(S62), "") -> 650 | AC62: =IFERROR(SUM(AA62*AB62), "") -> 163735 | AD62: 87.3 | AE62: =IFERROR(SUM(S62), "") -> 650 | AF62: =IFERROR(SUM(AD62*AE62), "") -> 56745
C63: バルコニー天井・上裏 | E63: 関西ペイント アレスセラマイルド2回塗り | G63: 1080 | H63: 650 | I63: 702000 | K63: 850 | L63: 650 | M63: 552500 | N63: 230 | O63: 650 | P63: 149500 | R63: 710 | S63: 650 | T63: =IFERROR(SUM(R63*S63), "") -> 461500 | U63: 108 | V63: =IFERROR(SUM(S63), "") -> 650 | W63: =IFERROR(SUM(U63*V63), "") -> 70200 | X63: 32 | Y63: =IFERROR(SUM(S63), "") -> 650 | Z63: =IFERROR(SUM(X63*Y63), "") -> 20800 | AA63: 210 | AB63: =IFERROR(SUM(S63), "") -> 650 | AC63: =IFERROR(SUM(AA63*AB63), "") -> 136500 | AD63: 20 | AE63: =IFERROR(SUM(S63), "") -> 650 | AF63: =IFERROR(SUM(AD63*AE63), "") -> 13000
C64: ピロティ天井 | E64: 関西ペイント アレスセラマイルド2回塗り | G64: 27 | H64: 650 | I64: 17550 | K64: 27 | L64: 650 | M64: 17550 | N64: 0 | P64: 0 | U64: 27 | V64: 650 | W64: =IFERROR(SUM(U64*V64), "") -> 17550
C65: 庇上裏 | E65: 関西ペイント アレスセラマイルド2回塗り | G65: 234.6 | H65: 650 | I65: 152490 | K65: 192.6 | L65: 650 | M65: 125190 | N65: 42 | O65: 650 | P65: 27300 | R65: 192.6 | S65: 650 | T65: =IFERROR(SUM(R65*S65), "") -> 125190 | AA65: 42 | AB65: =IFERROR(SUM(S65), "") -> 650 | AC65: =IFERROR(SUM(AA65*AB65), "") -> 27300 | AE65: =IFERROR(SUM(S65), "") -> 650 | AF65: =IFERROR(SUM(AD65*AE65), "") -> 0
C66: 階段上裏 | E66: 関西ペイント アレスセラマイルド2回塗り | G66: 361.4 | H66: 650 | I66: 234910 | K66: 225 | L66: 650 | M66: 146250 | N66: 136.4 | O66: 650 | P66: 88660 | R66: 225 | S66: 650 | T66: =IFERROR(SUM(R66*S66), "") -> 146250 | AA66: 103 | AB66: =IFERROR(SUM(S66), "") -> 650 | AC66: =IFERROR(SUM(AA66*AB66), "") -> 66950 | AD66: 33.4 | AE66: =IFERROR(SUM(S66), "") -> 650 | AF66: =IFERROR(SUM(AD66*AE66), "") -> 21710
C67: 照明器具及び各戸表札の脱着費 | G67: 0 | I67: 0 | K67: 0 | M67: 0 | N67: 0 | P67: 0 | S67: 0 | V67: =IFERROR(SUM(S67), "") -> 0 | Y67: =IFERROR(SUM(S67), "") -> 0 | AB67: =IFERROR(SUM(S67), "") -> 0 | AC67: =IFERROR(SUM(AA67*AB67), "") -> 0 | AE67: =IFERROR(SUM(S67), "") -> 0 | AF67: =IFERROR(SUM(AD67*AE67), "") -> 0
C68: 外壁タイル | E68: 艶塗装 ファイングラシィSi | G68: 10053 | H68: 930 | I68: 9349290 | K68: 7643 | L68: 930 | M68: 7107990 | N68: 2410 | O68: 930 | P68: 2241300 | R68: 4155 | S68: 930 | T68: =IFERROR(SUM(R68*S68), "") -> 3864150 | U68: 1395 | V68: =IFERROR(SUM(S68), "") -> 930 | W68: =IFERROR(SUM(U68*V68), "") -> 1297350 | X68: 2093 | Y68: =IFERROR(SUM(S68), "") -> 930 | Z68: =IFERROR(SUM(X68*Y68), "") -> 1946490 | AA68: 2410 | AB68: =IFERROR(SUM(S68), "") -> 930 | AC68: =IFERROR(SUM(AA68*AB68), "") -> 2241300 | AE68: =IFERROR(SUM(S68), "") -> 930 | AF68: =IFERROR(SUM(AD68*AE68), "") -> 0
I69: 20062142 | M69: 15610994 | P69: 4451148 | S69: 外壁塗装工事計 | T69: =IFERROR(SUM(T50:T68), "") -> 11768964 | V69: 計 | W69: =IFERROR(SUM(W50:W68), "") -> 1602580 | Y69: 計 | Z69: =IFERROR(SUM(Z50:Z68), "") -> 2239450 | AB69: 計 | AC69: =IFERROR(SUM(AC50:AC68), "") -> 4054717 | AE69: 計 | AF69: =IFERROR(SUM(AF50:AF68), "") -> 396431
V70: =IFERROR(SUM(S70), "") -> 0 | Y70: =IFERROR(SUM(S70), "") -> 0 | AB70: =IFERROR(SUM(S70), "") -> 0 | AE70: =IFERROR(SUM(S70), "") -> 0
C71: b.鉄部塗装 | K71: =IFERROR(SUM(R71+U71+X71), "") -> 0 | L71: =IFERROR(SUM(M71/K71), "") ->  | M71: =IFERROR(SUM(T71+W71+Z71), "") -> 0 | N71: =IFERROR(SUM(AA71+AD71), "") -> 0 | O71: =IFERROR(SUM(P71/N71), "") ->  | P71: =IFERROR(SUM(AC71+AF71), "") -> 0 | V71: 0 | Y71: 0 | AB71: 0 | AE71: 0
C72: 玄関ドア（枠・見え掛り部） | E72: 850*1930 | F72: ヶ所 | G72: 62 | K72: 0 | M72: 0 | N72: 0 | P72: 0 | V72: 0 | Y72: 0 | AB72: 0 | AE72: 0
C73: MB扉（両面・枠共） | E73: 750*1890 | G73: 34 | K73: 0 | M73: 0 | N73: 0 | P73: 0 | V73: 0 | Y73: 0 | AB73: 0 | AE73: 0
C74: 〃 | E74: 900*1890 | G74: 3 | K74: 0 | M74: 0 | N74: 0 | P74: 0 | V74: 0 | Y74: 0 | AB74: 0 | AE74: 0
C75: 〃 | E75: 1200*1890 観音開き | G75: 10 | K75: 0 | M75: 0 | N75: 0 | P75: 0 | V75: 0 | Y75: 0 | AB75: 0 | AE75: 0
C76: 〃 | E76: 1480*1890 観音開き | G76: 17 | K76: 0 | M76: 0 | N76: 0 | P76: 0 | V76: 0 | Y76: 0 | AB76: 0 | AE76: 0
C77: トランク扉（両面・枠共） | E77: 780*1880 | G77: 20 | K77: 0 | M77: 0 | N77: 0 | P77: 0 | V77: 0 | Y77: 0 | AB77: 0 | AE77: 0
C78: 〃 | E78: 1550*1920 観音開き | G78: 60 | K78: 0 | M78: 0 | N78: 0 | P78: 0 | V78: 0 | Y78: 0 | AB78: 0 | AE78: 0
C79: 〃 | E79: 1500*1920 観音開き | G79: 2 | K79: 0 | M79: 0 | N79: 0 | P79: 0 | V79: 0 | Y79: 0 | AB79: 0 | AE79: 0
C80: 門扉（両面） | E80: 1050*1100 | G80: 62 | K80: 0 | M80: 0 | N80: 0 | P80: 0 | V80: 0 | Y80: 0 | AB80: 0 | AE80: 0
C81: ゲート（門扉上） | G81: 62 | K81: 0 | M81: 0 | N81: 0 | P81: 0 | V81: 0 | Y81: 0 | AB81: 0 | AE81: 0
C82: ポーチ内格子（両面） | E82: 1200*1800 | G82: 48 | K82: 0 | M82: 0 | N82: 0 | P82: 0 | V82: 0 | Y82: 0 | AB82: 0 | AE82: 0
C83: 〃 | E83: 800*1800 | G83: 12 | K83: 0 | M83: 0 | N83: 0 | P83: 0 | V83: 0 | Y83: 0 | AB83: 0 | AE83: 0
C84: EPS扉（両面・枠共） | E84: 700*1900 | G84: 16 | K84: 0 | M84: 0 | N84: 0 | P84: 0 | V84: 0 | Y84: 0 | AB84: 0 | AE84: 0
C85: 放水口扉 | E85: 500*800 | G85: 10 | K85: 0 | M85: 0 | N85: 0 | P85: 0 | V85: 0 | Y85: 0 | AB85: 0 | AE85: 0
C86: 消火栓扉 | E86: 900*1400 | G86: 5 | K86: 0 | M86: 0 | N86: 0 | P86: 0 | V86: 0 | Y86: 0 | AB86: 0 | AE86: 0
C87: 集会室 MB扉 | E87: 400*300*200 150*800*100 | G87: 1 | K87: 0 | M87: 0 | N87: 0 | P87: 0 | V87: 0 | Y87: 0 | AB87: 0 | AE87: 0
C88: テラスベンチ | E88: 1500*400*400 | G88: 4 | K88: 0 | M88: 0 | N88: 0 | P88: 0 | V88: 0 | Y88: 0 | AB88: 0 | AE88: 0
C89: 4階 廊下 ポール | E89: 170Φ H2690 | G89: 4 | K89: 0 | M89: 0 | N89: 0 | P89: 0 | V89: 0 | Y89: 0 | AB89: 0 | AE89: 0
C90: 13階 階段A扉（両面・枠共） | E90: 1270*2100 | G90: 1 | K90: 0 | M90: 0 | N90: 0 | P90: 0 | V90: 0 | Y90: 0 | AB90: 0 | AE90: 0
C91: 屋上 EV機械室扉（両面・枠共） | E91: 950*2200 | G91: 1 | K91: 0 | M91: 0 | N91: 0 | P91: 0 | V91: 0 | Y91: 0 | AB91: 0 | AE91: 0
C92: 屋上 機械室扉（両面・枠共） | E92: 900*1800 | G92: 1 | K92: 0 | M92: 0 | N92: 0 | P92: 0 | V92: 0 | Y92: 0 | AB92: 0 | AE92: 0
C93: 屋上 MB | E93: 420*400*200 | G93: 1 | K93: 0 | M93: 0 | N93: 0 | P93: 0 | V93: 0 | Y93: 0 | AB93: 0 | AE93: 0
C94: エントランス メールボックス室 扉 | E94: 950*2150 | G94: 1 | K94: 0 | M94: 0 | N94: 0 | P94: 0 | V94: 0 | Y94: 0 | AB94: 0 | AE94: 0
C95: 1階駐輪場 入口扉（ガラス入り） | E95: 980*2150 | G95: 1 | K95: 0 | M95: 0 | N95: 0 | P95: 0 | V95: 0 | Y95: 0 | AB95: 0 | AE95: 0
C96: 1階駐輪場 防火扉 | E96: 2300*2150 | G96: 1 | K96: 0 | M96: 0 | N96: 0 | P96: 0 | V96: 0 | Y96: 0 | AB96: 0 | AE96: 0
C97: 1階駐輪場 EPS扉 | E97: 680*1800 | G97: 1 | K97: 0 | M97: 0 | N97: 0 | P97: 0 | V97: 0 | Y97: 0 | AB97: 0 | AE97: 0
C98: 1階駐輪場 MDF扉 | E98: 960*2150 | G98: 1 | K98: 0 | M98: 0 | N98: 0 | P98: 0 | V98: 0 | Y98: 0 | AB98: 0 | AE98: 0
C99: 1階管理人室 扉（ガラス入り） | E99: 2650*2600 | G99: 1 | K99: 0 | M99: 0 | N99: 0 | P99: 0 | V99: 0 | Y99: 0 | AB99: 0 | AE99: 0
C100: 1階A階段 ポンプ室 扉 | E100: 980*2150 | G100: 1 | K100: 0 | M100: 0 | N100: 0 | P100: 0 | V100: 0 | Y100: 0 | AB100: 0 | AE100: 0
C101: 1階EV 枠+防火扉 | E101: 1850*2150 | G101: 2 | K101: 0 | M101: 0 | N101: 0 | P101: 0 | V101: 0 | Y101: 0 | AB101: 0 | AE101: 0
C102: シャッター | K102: 0 | M102: 0 | N102: 0 | P102: 0
K103: =IFERROR(SUM(R103+U103+X103), "") -> 0 | L103: =IFERROR(SUM(M103/K103), "") ->  | M103: =IFERROR(SUM(T103+W103+Z103), "") -> 0 | N103: =IFERROR(SUM(AA103+AD103), "") -> 0 | O103: =IFERROR(SUM(P103/N103), "") ->  | P103: 0 | V103: =IFERROR(SUM(S103), "") -> 0 | Y103: =IFERROR(SUM(S103), "") -> 0 | AB103: =IFERROR(SUM(S103), "") -> 0 | AE103: =IFERROR(SUM(S103), "") -> 0
C104: 避雷針 | E104: アルミニウムペイント | G104: =IFERROR(SUM(K104+N104), "") -> 3 | H104: =IFERROR(SUM(I104/G104), "") -> 7000 | I104: =IFERROR(SUM(M104+P104), "") -> 21000 | K104: 2 | L104: 7000 | M104: 14000 | N104: 1 | O104: 7000 | P104: 7000 | R104: 2 | S104: 7000 | T104: =IFERROR(SUM(R104*S104), "") -> 14000 | AA104: 1 | AB104: 7000 | AC104: =IFERROR(SUM(AA104*AB104), "") -> 7000 | AE104: 7000
C105: ソーラーパネル架台タッチアップ塗装 | G105: 1 | H105: 100000 | I105: 100000 | K105: 1 | L105: 100000 | M105: 100000 | N105: 0 | P105: 0 | R105: 1 | S105: 100000 | T105: 100000 | AB105: 100000 | AC105: 0 | AE105: 100000
C106: 金属屋根 | E106: スーパーシリコン塗装 | G106: 1132 | H106: 1248.321555 | I106: 1413100 | K106: 844 | L106: 1230.687204 | M106: 1038700 | N106: 288 | O106: 1300 | P106: 374400 | R106: 259 | S106: 1300 | T106: 336700 | X106: 585 | Y106: 1200 | Z106: =IFERROR(SUM(X106*Y106), "") -> 702000 | AA106: 288 | AB106: 1300 | AC106: 374400 | AE106: 1300
C107: 渡り廊下パンチングメタル | G107: 230 | H107: 1100 | I107: 253000 | K107: 230 | L107: 1100 | M107: 253000 | N107: 0 | P107: 0 | R107: 230 | S107: 1100 | T107: 253000 | AB107: 1100 | AC107: 0 | AE107: 1100
C108: 渡り廊下ダウンライト | G108: 16 | H108: 600 | I108: 9600 | K108: 16 | L108: 600 | M108: 9600 | N108: 0 | P108: 0 | R108: 16 | S108: 600 | T108: 9600 | AB108: 600 | AC108: 0 | AE108: 600
C109: 室外機置場パンチングメタル | G109: 107.6 | H109: 1100 | I109: 118360 | K109: 107.6 | L109: 1100 | M109: 118360 | N109: 0 | P109: 0 | R109: 107.6 | S109: 1100 | T109: 118360 | AB109: 1100 | AC109: 0 | AE109: 1100
C110: スロープ庇 | E110: 西棟 | G110: 1 | H110: 50000 | I110: 50000 | K110: 0 | M110: 0 | N110: 1 | O110: 50000 | P110: 50000 | AA110: 1 | AB110: 50000 | AC110: 50000
C111: バルコニー隔て板 | G111: 61 | H111: 5300 | I111: 323300 | K111: 46 | L111: 5300 | M111: 243800 | N111: 15 | O111: 5300 | P111: 79500 | R111: 46 | S111: 5300 | T111: =IFERROR(SUM(R111*S111), "") -> 243800 | AA111: 15 | AB111: =IFERROR(SUM(S111), "") -> 5300 | AC111: 79500 | AE111: =IFERROR(SUM(S111), "") -> 5300
C112: 1階店舗庇 スパンドレル | E112: 洗い工事に計上 | G112: 0 | I112: 0 | K112: 0 | M112: 0 | N112: 0 | P112: 0
C113: 店舗上部 庇パネル・ガラリ格子 | E113: 洗い工事に計上 | G113: 0 | I113: 0 | K113: 0 | M113: 0 | N113: 0 | P113: 0
C114: 庇全面（オレンジ部） | E114: シリコントップ | G114: 268 | H114: 1200 | I114: 321600 | K114: 268 | L114: 1200 | M114: 321600 | N114: 0 | P114: 0 | U114: 184 | V114: 1200 | W114: =IFERROR(SUM(U114*V114), "") -> 220800 | X114: 84 | Y114: 1200 | Z114: =IFERROR(SUM(X114*Y114), "") -> 100800
C115: 「ウェルブ」看板 | E115: 洗い工事に計上 | G115: 0 | I115: 0 | K115: 0 | M115: 0 | N115: 0 | P115: 0
C116: ピロティ部分 柱及び梁の鋼製部分 | E116: 洗い工事に計上 | G116: 0 | I116: 0 | K116: 0 | M116: 0 | N116: 0 | P116: 0
C117: 樋 | G117: 1236 | H117: 550 | I117: 679800 | K117: 852 | L117: 550 | M117: 468600 | N117: 384 | O117: 550 | P117: 211200 | R117: 690 | S117: 550 | T117: =IFERROR(SUM(R117*S117), "") -> 379500 | U117: 96 | V117: =IFERROR(SUM(S117), "") -> 550 | W117: =IFERROR(SUM(U117*V117), "") -> 52800 | X117: 66 | Y117: =IFERROR(SUM(S117), "") -> 550 | Z117: =IFERROR(SUM(X117*Y117), "") -> 36300 | AA117: 240 | AB117: =IFERROR(SUM(S117), "") -> 550 | AC117: =IFERROR(SUM(AA117*AB117), "") -> 132000 | AD117: 144 | AE117: =IFERROR(SUM(S117), "") -> 550 | AF117: =IFERROR(SUM(AD117*AE117), "") -> 79200
C118: 照明器具 | G118: 1 | H118: 10000 | I118: 10000 | K118: 0 | M118: 0 | N118: 1 | O118: 10000 | P118: 10000 | AD118: 1 | AE118: 10000 | AF118: =IFERROR(SUM(AD118*AE118), "") -> 10000
C119: エントランス庇支柱 | G119: 1 | H119: 30000 | I119: 30000 | K119: 0 | M119: 0 | N119: 1 | O119: 30000 | P119: 30000 | AA119: 1 | AB119: 30000 | AC119: =IFERROR(SUM(AA119*AB119), "") -> 30000
C120: 雑塗装 | E120: 各種支持金物等 | G120: 5 | H120: 112000 | I120: 560000 | K120: 3 | L120: 120000 | M120: 360000 | N120: 2 | O120: 100000 | P120: 200000 | R120: 1 | S120: 200000 | T120: =IFERROR(SUM(R120*S120), "") -> 200000 | U120: 1 | V120: 80000 | W120: =IFERROR(SUM(U120*V120), "") -> 80000 | X120: 1 | Y120: 80000 | Z120: =IFERROR(SUM(X120*Y120), "") -> 80000 | AA120: 1 | AB120: 100000 | AC120: =IFERROR(SUM(AA120*AB120), "") -> 100000 | AD120: 1 | AE120: 100000 | AF120: =IFERROR(SUM(AD120*AE120), "") -> 100000
C121: 養生による塗膜剥がれ | E121: タッチアップ | G121: 5 | H121: 90000 | I121: 450000 | K121: 3 | L121: 100000 | M121: 300000 | N121: 2 | O121: 75000 | P121: 150000 | R121: 1 | S121: 200000 | T121: =IFERROR(SUM(R121*S121), "") -> 200000 | U121: 1 | V121: 50000 | W121: =IFERROR(SUM(U121*V121), "") -> 50000 | X121: 1 | Y121: 50000 | Z121: =IFERROR(SUM(X121*Y121), "") -> 50000 | AA121: 1 | AB121: 100000 | AC121: =IFERROR(SUM(AA121*AB121), "") -> 100000 | AD121: 1 | AE121: 50000 | AF121: =IFERROR(SUM(AD121*AE121), "") -> 50000
I122: 4339760 | M122: 3227660 | P122: 1112100 | S122: 鉄部塗装工事計 | T122: =IFERROR(SUM(T98:T121), "") -> 1854960 | V122: 計 | W122: =IFERROR(SUM(W98:W121), "") -> 403600 | Y122: 計 | Z122: =IFERROR(SUM(Z71:Z121), "") -> 969100 | AB122: 計 | AC122: =IFERROR(SUM(AC71:AC121), "") -> 872900 | AE122: 計 | AF122: =IFERROR(SUM(AF71:AF121), "") -> 239200
B123: 6 防水工事 | C123: 【塔屋】 | E123: ウレタン塗膜防水 通気緩衝工法 | G123: =IFERROR(SUM(K123+N123), "") -> 0 | H123: =IFERROR(SUM(I123/G123), "") ->  | I123: 0 | M123: 0 | N123: =IFERROR(SUM(AA123+AD123), "") -> 0 | O123: =IFERROR(SUM(P123/N123), "") ->  | P123: 0 | V123: =IFERROR(SUM(S123), "") -> 0 | Y123: =IFERROR(SUM(S123), "") -> 0 | AB123: =IFERROR(SUM(S123), "") -> 0 | AE123: =IFERROR(SUM(S123), "") -> 0
C124: 既設防水面ケレン・清掃・高圧洗浄 | G124: 15.2 | H124: 50 | I124: 760 | K124: =IFERROR(SUM(R124+U124+X124), "") -> 15.2 | L124: =IFERROR(SUM(M124/K124), "") -> 50 | M124: 760 | N124: 0 | P124: 0 | R124: 15.2 | S124: 50 | T124: =IFERROR(SUM(R124*S124), "") -> 760 | Y124: 50 | AB124: 50 | AE124: 50
C125: 既設立上り防水層撤去・仮防水 | E125: 押え金物含む | G125: 15.2 | H125: 2500 | I125: 38000 | K125: 15.2 | L125: 2500 | M125: 38000 | N125: 0 | P125: 0 | R125: 15.2 | S125: 2500 | T125: 38000 | Y125: 2500 | AB125: 2500 | AE125: 2500
C126: 下地処理 | E126: 伸縮目地含む | G126: 15.2 | H126: 500 | I126: 7600 | K126: 15.2 | L126: 500 | M126: 7600 | N126: 0 | P126: 0 | R126: 15.2 | S126: 500 | T126: 7600 | Y126: 500 | AB126: 500 | AE126: 500
C127: 平場部防水 | E127: 田島ルーフィング OSTW-3S | G127: 10.8 | H127: 4300 | I127: 46440 | K127: 10.8 | L127: 4300 | M127: 46440 | N127: 0 | P127: 0 | R127: 10.8 | S127: 4300 | T127: 46440 | Y127: 4300 | AB127: 4300 | AE127: 4300
C128: 立上り | E128: H300 | G128: 4.4 | H128: 4300 | I128: 18920 | K128: 4.4 | L128: 4300 | M128: 18920 | N128: 0 | P128: 0 | R128: 4.4 | S128: 4300 | T128: 18920 | Y128: 4300 | AB128: 4300 | AE128: 4300
C129: 立上り 押え金物 | E129: アルミ製 | G129: 14.8 | H129: 1500 | I129: 22200 | K129: 14.8 | L129: 1500 | M129: 22200 | N129: 0 | P129: 0 | R129: 14.8 | S129: 1500 | T129: 22200 | Y129: 1500 | AB129: 1500 | AE129: 1500
C130: 同上廻り シーリング | G130: 14.8 | H130: 300 | I130: 4440 | K130: 14.8 | L130: 300 | M130: 4440 | N130: 0 | P130: 0 | R130: 14.8 | S130: 300 | T130: 4440 | Y130: 300 | AB130: 300 | AE130: 300
C131: 改修用ドレン | G131: 1 | H131: 12000 | I131: 12000 | K131: 1 | L131: 12000 | M131: 12000 | N131: 0 | P131: 0 | R131: 1 | S131: 12000 | T131: 12000 | Y131: 12000 | AB131: 12000 | AE131: 12000
C132: 脱気筒 | G132: 1 | H132: 8000 | I132: 8000 | K132: 1 | L132: 8000 | M132: 8000 | N132: 0 | P132: 0 | R132: 1 | S132: 8000 | T132: 8000 | Y132: 8000 | AB132: 8000 | AE132: 8000
G133: 0 | I133: 158360 | K133: 0 | M133: 158360 | N133: 0 | P133: 0 | S133: 小計 | T133: =IFERROR(SUM(T124:T132), "") -> 158360 | V133: =IFERROR(SUM(S133), "") -> 0 | Y133: 0 | AB133: 0 | AE133: 0
C134: 【屋上】 | E134: ウレタン塗膜防水 通気緩衝工法 | G134: 0 | I134: 0 | K134: 0 | M134: 0 | N134: 0 | P134: 0 | V134: 0 | Y134: 0 | AB134: 0 | AE134: 0
C135: 既設防水面ケレン・清掃・高圧洗浄 | G135: 898.7 | H135: 50 | I135: 44935 | K135: 671.5 | L135: 50 | M135: =IFERROR(SUM(T135+W135+Z135), "") -> 33575 | N135: 227.2 | O135: 50 | P135: =IFERROR(SUM(AC135+AF135), "") -> 11360 | R135: 460.5 | S135: 50 | T135: =IFERROR(SUM(R135*S135), "") -> 23025 | U135: 49.8 | V135: 50 | W135: =IFERROR(SUM(U135*V135), "") -> 2490 | X135: 161.2 | Y135: 50 | Z135: =IFERROR(SUM(X135*Y135), "") -> 8060 | AA135: 215.1 | AB135: 50 | AC135: =IFERROR(SUM(AA135*AB135), "") -> 10755 | AD135: 12.1 | AE135: 50 | AF135: =IFERROR(SUM(AD135*AE135), "") -> 605
C136: 既設立上り防水層撤去・仮防水 | E136: 押え金物含む | G136: 731.9 | H136: 2500 | I136: =IFERROR(SUM(M136+P136), "") -> 1829750 | K136: 671.5 | L136: 2500 | M136: 1678750 | N136: 60.4 | O136: 2500 | P136: 151000 | R136: 460.5 | S136: 2500 | T136: 1151250 | U136: 49.8 | V136: 2500 | W136: 124500 | X136: 161.2 | Y136: 2500 | Z136: 403000 | AA136: 48.3 | AB136: 2500 | AC136: 120750 | AD136: 12.1 | AE136: 2500 | AF136: 30250
C137: 下地処理 | E137: 伸縮目地含む | G137: 898.7 | H137: 500 | I137: 449350 | K137: 671.5 | L137: 500 | M137: 335750 | N137: 227.2 | O137: 500 | P137: 113600 | R137: 460.5 | S137: 500 | T137: 230250 | U137: 49.8 | V137: 500 | W137: 24900 | X137: 161.2 | Y137: 500 | Z137: 80600 | AA137: 215.1 | AB137: 500 | AC137: 107550 | AD137: 12.1 | AE137: 500 | AF137: 6050
C138: 平場部防水 | E138: 田島ルーフィング OSTW-3S | G138: 734.4 | H138: 4300 | I138: 3157920 | K138: 559 | L138: 4300 | M138: 2403700 | N138: 175.4 | O138: 4300 | P138: 754220 | R138: 381 | S138: 4300 | T138: 1638300 | U138: 42 | V138: 4300 | W138: 180600 | X138: 136 | Y138: 4300 | Z138: 584800 | AA138: 166.8 | AB138: 4300 | AC138: 717240 | AD138: 8.6 | AE138: 4300 | AF138: 36980
C139: 立上り | E139: H300 | G139: 164.3 | H139: 4300 | I139: 706490 | K139: 112.5 | L139: 4300 | M139: 483750 | N139: 51.8 | O139: 4300 | P139: 222740 | R139: 79.5 | S139: 4300 | T139: 341850 | U139: 7.8 | V139: 4300 | W139: 33540 | X139: 25.2 | Y139: 4300 | Z139: 108360 | AA139: 48.3 | AB139: 4300 | AC139: 207690 | AD139: 3.5 | AE139: 4300 | AF139: 15050
C140: 立上り 押え金物 | E140: アルミ製 | G140: 549.7 | H140: 1500 | I140: 824550 | K140: 375 | L140: 1500 | M140: 562500 | N140: 174.7 | O140: 1500 | P140: 262050 | R140: 265 | S140: 1500 | T140: 397500 | U140: 26 | V140: 1500 | W140: 39000 | X140: 84 | Y140: 1500 | Z140: 126000 | AA140: 162.9 | AB140: 1500 | AC140: 244350 | AD140: 11.8 | AE140: 1500 | AF140: 17700
C141: 同上廻り シーリング | G141: 549.7 | H141: 300 | I141: 164910 | K141: 375 | L141: 300 | M141: 112500 | N141: 174.7 | O141: 300 | P141: 52410 | R141: 265 | S141: 300 | T141: 79500 | U141: 26 | V141: 300 | W141: 7800 | X141: 84 | Y141: 300 | Z141: 25200 | AA141: 162.9 | AB141: 300 | AC141: 48870 | AD141: 11.8 | AE141: 300 | AF141: 3540
C142: 改修用ドレン | G142: 23 | H142: 12000 | I142: 276000 | K142: 15 | L142: 12000 | M142: 180000 | N142: 8 | O142: 12000 | P142: 96000 | R142: 11 | S142: 12000 | T142: 132000 | U142: 1 | V142: 12000 | W142: 12000 | X142: 3 | Y142: 12000 | Z142: 36000 | AA142: 7 | AB142: 12000 | AC142: 84000 | AD142: 1 | AE142: 12000 | AF142: 12000
C143: 脱気筒 | G143: 12 | H143: 8000 | I143: 96000 | K143: 8 | L143: 8000 | M143: 64000 | N143: 4 | O143: 8000 | P143: 32000 | R143: 4 | S143: 8000 | T143: 32000 | U143: 1 | V143: 8000 | W143: 8000 | X143: 3 | Y143: 8000 | Z143: 24000 | AA143: 3 | AB143: 8000 | AC143: 24000 | AD143: 1 | AE143: 8000 | AF143: 8000
G144: 0 | I144: 7549905 | K144: 0 | M144: 5854525 | N144: 0 | P144: 1695380 | S144: 小計 | T144: =IFERROR(SUM(T135:T143), "") -> 4025675 | V144: 小計 | W144: =IFERROR(SUM(W135:W143), "") -> 432830 | Y144: 小計 | Z144: =IFERROR(SUM(Z135:Z143), "") -> 1396020 | AB144: 小計 | AC144: =IFERROR(SUM(AC135:AC143), "") -> 1565205 | AE144: 小計 | AF144: =IFERROR(SUM(AF135:AF143), "") -> 130175
C145: 【ルーフ・バルコニー・テラス】 | E145: ウレタン塗膜防水 通気緩衝工法 | G145: 0 | I145: 0 | K145: 0 | M145: 0 | N145: 0 | P145: 0 | V145: =IFERROR(SUM(S145), "") -> 0 | Y145: =IFERROR(SUM(S145), "") -> 0 | AB145: =IFERROR(SUM(S145), "") -> 0 | AE145: =IFERROR(SUM(S145), "") -> 0
C146: 既設防水面ケレン・清掃・高圧洗浄 | G146: 495.4 | H146: 50 | I146: 24770 | K146: 405.4 | L146: 50 | M146: 20270 | N146: 90 | O146: 50 | P146: 4500 | R146: 240.3 | S146: 50 | T146: =IFERROR(SUM(R146*S146), "") -> 12015 | U146: 114.9 | V146: 50 | W146: =IFERROR(SUM(U146*V146), "") -> 5745 | X146: 50.2 | Y146: 50 | Z146: =IFERROR(SUM(X146*Y146), "") -> 2510 | AB146: 50 | AC146: =IFERROR(SUM(AA146*AB146), "") -> 0 | AD146: 90 | AE146: 50 | AF146: =IFERROR(SUM(AD146*AE146), "") -> 4500
C147: 既設立上り防水層撤去・仮防水 | E147: 押え金物含む | G147: 495.4 | H147: 2500 | I147: 1238500 | K147: 405.4 | L147: 2500 | M147: 1013500 | N147: 90 | O147: 2500 | P147: 225000 | R147: 240.3 | S147: 2500 | T147: 600750 | U147: 114.9 | V147: 2500 | W147: 287250 | X147: 50.2 | Y147: 2500 | Z147: 125500 | AB147: 2500 | AC147: 0 | AD147: 90 | AE147: 2500 | AF147: 225000
C148: 下地処理 | E148: 伸縮目地含む | G148: 495.4 | H148: 500 | I148: 247700 | K148: 405.4 | L148: 500 | M148: 202700 | N148: 90 | O148: 500 | P148: 45000 | R148: 240.3 | S148: 500 | T148: 120150 | U148: 114.9 | V148: 500 | W148: 57450 | X148: 50.2 | Y148: 500 | Z148: 25100 | AB148: 500 | AC148: 0 | AD148: 90 | AE148: 500 | AF148: 45000
C149: 平場部防水 | E149: 田島ルーフィング OSTW-3S | G149: 392.2 | H149: 4300 | I149: 1686460 | K149: 318.7 | L149: 4300 | M149: 1370410 | N149: 73.5 | O149: 4300 | P149: 316050 | R149: 186 | S149: 4300 | T149: 799800 | U149: 97.5 | V149: 4300 | W149: 419250 | X149: 35.2 | Y149: 4300 | Z149: 151360 | AB149: 4300 | AC149: 0 | AD149: 73.5 | AE149: 4300 | AF149: 316050
C150: 立上り | E150: H300 | G150: 103.2 | H150: 4300 | I150: 443760 | K150: 86.7 | L150: 4300 | M150: 372810 | N150: 16.5 | O150: 4300 | P150: 70950 | R150: 54.3 | S150: 4300 | T150: 233490 | U150: 17.4 | V150: 4300 | W150: 74820 | X150: 15 | Y150: 4300 | Z150: 64500 | AB150: 4300 | AC150: 0 | AD150: 16.5 | AE150: 4300 | AF150: 70950
C151: 立上り 押え金物 | E151: アルミ製 | G151: 344 | H151: 1500 | I151: 516000 | K151: 289 | L151: 1500 | M151: 433500 | N151: 55 | O151: 1500 | P151: 82500 | R151: 181 | S151: 1500 | T151: 271500 | U151: 58 | V151: 1500 | W151: 87000 | X151: 50 | Y151: 1500 | Z151: 75000 | AB151: 1500 | AC151: 0 | AD151: 55 | AE151: 1500 | AF151: 82500
C152: 同上廻り シーリング | G152: 344 | H152: 300 | I152: 103200 | K152: 289 | L152: 300 | M152: 86700 | N152: 55 | O152: 300 | P152: 16500 | R152: 181 | S152: 300 | T152: 54300 | U152: 58 | V152: 300 | W152: 17400 | X152: 50 | Y152: 300 | Z152: 15000 | AB152: 300 | AC152: 0 | AD152: 55 | AE152: 300 | AF152: 16500
C153: 改修用ドレン | G153: 19 | H153: 12000 | I153: 228000 | K153: 16 | L153: 12000 | M153: 192000 | N153: 3 | O153: 12000 | P153: 36000 | R153: 11 | S153: 12000 | T153: 132000 | U153: 2 | V153: 12000 | W153: 24000 | X153: 3 | Y153: 12000 | Z153: 36000 | AB153: 12000 | AC153: 0 | AD153: 3 | AE153: 12000 | AF153: 36000
C154: 脱気筒 | G154: 14 | H154: 8000 | I154: 112000 | K154: 12 | L154: 8000 | M154: 96000 | N154: 2 | O154: 8000 | P154: 16000 | R154: 8 | S154: 8000 | T154: 64000 | U154: 2 | V154: 8000 | W154: 16000 | X154: 2 | Y154: 8000 | Z154: 16000 | AB154: 8000 | AC154: 0 | AD154: 2 | AE154: 8000 | AF154: 16000
C155: フェンス基礎 | E155: 西棟 | G155: =IFERROR(SUM(K155+N155), "") -> 1 | H155: =IFERROR(SUM(I155/G155), "") -> 30000 | I155: 30000 | K155: 0 | M155: 0 | N155: =IFERROR(SUM(AA155+AD155), "") -> 1 | O155: =IFERROR(SUM(P155/N155), "") -> 30000 | P155: 30000 | AD155: 1 | AE155: 30000 | AF155: 30000
G156: 0 | I156: 4630390 | K156: 0 | M156: 3787890 | N156: 0 | P156: 842500 | S156: 小計 | T156: =IFERROR(SUM(T146:T154), "") -> 2288005 | V156: 小計 | W156: =IFERROR(SUM(W146:W154), "") -> 988915 | Y156: 小計 | Z156: =IFERROR(SUM(Z146:Z154), "") -> 510970 | AB156: 小計 | AC156: =IFERROR(SUM(AC146:AC154), "") -> 0 | AE156: 小計 | AF156: =IFERROR(SUM(AF146:AF155), "") -> 842500
C157: 【パラペット天端・鳩小屋】 | E157: ウレタン塗膜防水 | G157: 0 | I157: 0 | K157: 0 | M157: 0 | N157: 0 | P157: 0 | V157: =IFERROR(SUM(S157), "") -> 0 | Y157: =IFERROR(SUM(S157), "") -> 0 | AB157: =IFERROR(SUM(S157), "") -> 0 | AE157: =IFERROR(SUM(S157), "") -> 0
C158: 既設防水面ケレン・清掃・高圧洗浄 | G158: 455.5 | H158: 50 | I158: 22775 | K158: 321.3 | L158: 50 | M158: 16065 | N158: 134.2 | O158: 50 | P158: 6710 | R158: 203 | S158: 50 | T158: =IFERROR(SUM(R158*S158), "") -> 10150 | U158: 78.3 | V158: =IFERROR(SUM(S158), "") -> 50 | W158: =IFERROR(SUM(U158*V158), "") -> 3915 | X158: 40 | Y158: =IFERROR(SUM(S158), "") -> 50 | Z158: =IFERROR(SUM(X158*Y158), "") -> 2000 | AA158: 95.2 | AB158: =IFERROR(SUM(S158), "") -> 50 | AC158: =IFERROR(SUM(AA158*AB158), "") -> 4760 | AD158: 39 | AE158: =IFERROR(SUM(S158), "") -> 50 | AF158: =IFERROR(SUM(AD158*AE158), "") -> 1950
C159: 下地処理 | G159: 455.5 | H159: 250 | I159: 113875 | K159: 321.3 | L159: 250 | M159: 80325 | N159: 134.2 | O159: 250 | P159: 33550 | R159: 203 | S159: 250 | T159: =IFERROR(SUM(R159*S159), "") -> 50750 | U159: 78.3 | V159: =IFERROR(SUM(S159), "") -> 250 | W159: =IFERROR(SUM(U159*V159), "") -> 19575 | X159: 40 | Y159: =IFERROR(SUM(S159), "") -> 250 | Z159: =IFERROR(SUM(X159*Y159), "") -> 10000 | AA159: 95.2 | AB159: =IFERROR(SUM(S159), "") -> 250 | AC159: =IFERROR(SUM(AA159*AB159), "") -> 23800 | AD159: 39 | AE159: =IFERROR(SUM(S159), "") -> 250 | AF159: =IFERROR(SUM(AD159*AE159), "") -> 9750
C160: パラペット天端 | E160: 田島ルーフィング OSTL-6VA | G160: 455.5 | H160: 2400 | I160: 1093200 | K160: 321.3 | L160: 2400 | M160: 771120 | N160: 134.2 | O160: 2400 | P160: 322080 | R160: 203 | S160: 2400 | T160: =IFERROR(SUM(R160*S160), "") -> 487200 | U160: 78.3 | V160: =IFERROR(SUM(S160), "") -> 2400 | W160: =IFERROR(SUM(U160*V160), "") -> 187920 | X160: 40 | Y160: =IFERROR(SUM(S160), "") -> 2400 | Z160: =IFERROR(SUM(X160*Y160), "") -> 96000 | AA160: 95.2 | AB160: =IFERROR(SUM(S160), "") -> 2400 | AC160: =IFERROR(SUM(AA160*AB160), "") -> 228480 | AD160: 39 | AE160: =IFERROR(SUM(S160), "") -> 2400 | AF160: =IFERROR(SUM(AD160*AE160), "") -> 93600
C161: ドレン | G161: 8 | H161: 500 | I161: 4000 | K161: 0 | M161: 0 | N161: 8 | O161: 500 | P161: 4000 | AA161: 8 | AB161: 500 | AC161: =IFERROR(SUM(AA161*AB161), "") -> 4000 | AF161: =IFERROR(SUM(AD161*AE161), "") -> 0
G162: 0 | I162: 1233850 | K162: 0 | M162: 867510 | N162: 0 | P162: 366340 | S162: 小計 | T162: =IFERROR(SUM(T158:T160), "") -> 548100 | V162: 小計 | W162: =IFERROR(SUM(W158:W160), "") -> 211410 | Y162: 小計 | Z162: =IFERROR(SUM(Z158:Z161), "") -> 108000 | AB162: 小計 | AC162: =IFERROR(SUM(AC158:AC161), "") -> 261040 | AE162: 小計 | AF162: =IFERROR(SUM(AF158:AF161), "") -> 105300
G163: 0 | I163: 0 | K163: 0 | M163: 0 | N163: 0 | P163: 0
C164: 【大庇】 | G164: 0 | I164: 0 | K164: 0 | M164: 0 | N164: 0 | P164: 0 | V164: =IFERROR(SUM(S164), "") -> 0 | Y164: =IFERROR(SUM(S164), "") -> 0 | AB164: =IFERROR(SUM(S164), "") -> 0 | AE164: =IFERROR(SUM(S164), "") -> 0
C165: 既設防水面ケレン・清掃・高圧洗浄 | G165: 298.4 | H165: 50 | I165: 14920 | K165: 201 | L165: 50 | M165: 10050 | N165: 97.4 | O165: 50 | P165: 4870 | R165: 178 | S165: 50 | T165: =IFERROR(SUM(R165*S165), "") -> 8900 | X165: 23 | Y165: =IFERROR(SUM(S165), "") -> 50 | Z165: =IFERROR(SUM(X165*Y165), "") -> 1150 | AA165: 97.4 | AB165: =IFERROR(SUM(S165), "") -> 50 | AC165: =IFERROR(SUM(AA165*AB165), "") -> 4870 | AE165: =IFERROR(SUM(S165), "") -> 50 | AF165: =IFERROR(SUM(AD165*AE165), "") -> 0
C166: 下地処理 | G166: 298.4 | H166: 250 | I166: 74600 | K166: 201 | L166: 250 | M166: 50250 | N166: 97.4 | O166: 250 | P166: 24350 | R166: 178 | S166: 250 | T166: =IFERROR(SUM(R166*S166), "") -> 44500 | X166: 23 | Y166: =IFERROR(SUM(S166), "") -> 250 | Z166: =IFERROR(SUM(X166*Y166), "") -> 5750 | AA166: 97.4 | AB166: =IFERROR(SUM(S166), "") -> 250 | AC166: =IFERROR(SUM(AA166*AB166), "") -> 24350 | AE166: =IFERROR(SUM(S166), "") -> 250 | AF166: =IFERROR(SUM(AD166*AE166), "") -> 0
C167: 平場・立上り | E167: 田島ルーフィング OSTL-6VA | G167: 298.4 | H167: 2400 | I167: 716160 | K167: 201 | L167: 2400 | M167: 482400 | N167: 97.4 | O167: 2400 | P167: 233760 | R167: 178 | S167: 2400 | T167: =IFERROR(SUM(R167*S167), "") -> 427200 | X167: 23 | Y167: =IFERROR(SUM(S167), "") -> 2400 | Z167: =IFERROR(SUM(X167*Y167), "") -> 55200 | AA167: 97.4 | AB167: =IFERROR(SUM(S167), "") -> 2400 | AC167: =IFERROR(SUM(AA167*AB167), "") -> 233760 | AE167: =IFERROR(SUM(S167), "") -> 2400 | AF167: =IFERROR(SUM(AD167*AE167), "") -> 0
C168: ドレン | G168: 28 | H168: 500 | I168: =IFERROR(SUM(M168+P168), "") -> 14000 | K168: 17 | L168: 500 | M168: 8500 | N168: 11 | O168: 500 | P168: 5500 | R168: 15 | S168: 500 | T168: =IFERROR(SUM(R168*S168), "") -> 7500 | X168: 2 | Y168: =IFERROR(SUM(S168), "") -> 500 | Z168: =IFERROR(SUM(X168*Y168), "") -> 1000 | AA168: 11 | AB168: =IFERROR(SUM(S168), "") -> 500 | AC168: =IFERROR(SUM(AA168*AB168), "") -> 5500 | AE168: =IFERROR(SUM(S168), "") -> 500 | AF168: =IFERROR(SUM(AD168*AE168), "") -> 0
G169: 0 | I169: 268480 | N169: 0 | P169: 268480 | S169: 小計 | T169: =IFERROR(SUM(T165:T168), "") -> 488100 | W169: =IFERROR(SUM(W165:W168), "") -> 0 | Y169: 小計 | Z169: =IFERROR(SUM(Z165:Z168), "") -> 63100 | AB169: 小計 | AC169: =IFERROR(SUM(AC165:AC168), "") -> 268480 | AE169: 小計 | AF169: =IFERROR(SUM(AF165:AF168), "") -> 0
C170: 【小庇】 | E170: ウレタン塗膜防水 | G170: 0 | I170: 0 | K170: =IFERROR(SUM(R170+U170+X170), "") -> 0 | L170: =IFERROR(SUM(M170/K170), "") ->  | M170: =IFERROR(SUM(T170+W170+Z170), "") -> 0 | N170: 0 | P170: 0 | V170: =IFERROR(SUM(S170), "") -> 0 | Y170: =IFERROR(SUM(S170), "") -> 0 | AB170: =IFERROR(SUM(S170), "") -> 0 | AE170: =IFERROR(SUM(S170), "") -> 0
C171: 既設防水面ケレン・清掃・高圧洗浄 | G171: 36 | H171: 50 | I171: 1800 | K171: 36 | L171: 50 | M171: 1800 | N171: 0 | P171: 0 | R171: 36 | S171: 50 | T171: =IFERROR(SUM(R171*S171), "") -> 1800 | Y171: 50 | AB171: 50 | AE171: 50
C172: 下地処理 | G172: 36 | H172: 250 | I172: 9000 | K172: 36 | L172: 250 | M172: 9000 | N172: 0 | P172: 0 | R172: 36 | S172: 250 | T172: =IFERROR(SUM(R172*S172), "") -> 9000 | Y172: 250 | AB172: 250 | AE172: 250
C173: 平場・立上り | E173: 田島ルーフィング OSTL-6VA | G173: 36 | H173: 2400 | I173: 86400 | K173: 36 | L173: 2400 | M173: 86400 | N173: 0 | P173: 0 | R173: 36 | S173: 2400 | T173: =IFERROR(SUM(R173*S173), "") -> 86400 | Y173: 2400 | AB173: 2400 | AE173: 2400
G174: 0 | I174: 97200 | K174: 0 | M174: 97200 | N174: 0 | P174: 0 | S174: 計 | T174: =IFERROR(SUM(T170:T173), "") -> 97200 | Y174: 0 | AB174: 0 | AE174: 0
C175: 【バルコニー】 | E175: ウレタン塗膜防水 | G175: 0 | I175: 0 | K175: 0 | M175: 0 | N175: 0 | P175: 0 | Y175: 0 | AB175: 0 | AE175: 0
C176: ケレン・清掃 | G176: 2375 | H176: 20.13894737 | I176: 47830 | K176: 1817.6 | L176: 20 | M176: 36352 | N176: 557.4 | O176: 20.59203445 | P176: 11478 | R176: 1817.6 | S176: 20 | T176: =IFERROR(SUM(R176*S176), "") -> 36352 | Y176: 20 | AA176: 546.4 | AB176: 20 | AC176: =IFERROR(SUM(AA176*AB176), "") -> 10928 | AD176: 11 | AE176: 50 | AF176: =IFERROR(SUM(AD176*AE176), "") -> 550
C177: 下地処理 | G177: 2375 | H177: 31.01894737 | I177: 73670 | K177: 1817.6 | L177: 30 | M177: 54528 | N177: 557.4 | O177: 34.34158593 | P177: 19142 | R177: 1817.6 | S177: 30 | T177: =IFERROR(SUM(R177*S177), "") -> 54528 | Y177: 30 | AA177: 546.4 | AB177: 30 | AC177: =IFERROR(SUM(AA177*AB177), "") -> 16392 | AD177: 11 | AE177: 250 | AF177: 2750
C178: 平場 | E178: 西棟避難バルコニー | G178: 8.4 | H178: 2400 | I178: 20160 | K178: 0 | M178: 0 | N178: 8.4 | O178: 2400 | P178: 20160 | AD178: 8.4 | AE178: 2400 | AF178: 20160
C179: 溝 | E179: 田島ルーフィングOSTL-6VA | G179: 767.4 | H179: 830 | I179: 636942 | K179: 568 | L179: 830 | M179: 471440 | N179: 199.4 | O179: 830 | P179: 165502 | R179: 568 | S179: 830 | T179: =IFERROR(SUM(R179*S179), "") -> 471440 | Y179: =IFERROR(SUM(S179), "") -> 830 | AA179: 190.9 | AB179: =IFERROR(SUM(S179), "") -> 830 | AC179: =IFERROR(SUM(AA179*AB179), "") -> 158447 | AD179: 8.5 | AE179: =IFERROR(SUM(S179), "") -> 830 | AF179: 7055
C180: 立上り | E180: 田島ルーフィングOSTL-6VA | G180: 1622.1 | H180: 830 | I180: 1346343 | K180: 1249.6 | L180: 830 | M180: 1037168 | N180: 372.5 | O180: 830 | P180: 309175 | R180: 1249.6 | S180: 830 | T180: =IFERROR(SUM(R180*S180), "") -> 1037168 | Y180: =IFERROR(SUM(S180), "") -> 830 | AA180: 355.5 | AB180: =IFERROR(SUM(S180), "") -> 830 | AC180: =IFERROR(SUM(AA180*AB180), "") -> 295065 | AD180: 17 | AE180: =IFERROR(SUM(S180), "") -> 830 | AF180: 14110
C181: ドレン | E181: タールエポ塗装 | G181: 135 | H181: 500 | I181: 67500 | K181: 98 | L181: 500 | M181: 49000 | N181: 37 | O181: 500 | P181: 18500 | R181: 98 | S181: 500 | T181: =IFERROR(SUM(R181*S181), "") -> 49000 | Y181: =IFERROR(SUM(S181), "") -> 500 | AA181: 35 | AB181: =IFERROR(SUM(S181), "") -> 500 | AC181: =IFERROR(SUM(AA181*AB181), "") -> 17500 | AD181: 2 | AE181: =IFERROR(SUM(S181), "") -> 500 | AF181: 1000
G182: 0 | I182: 2192445 | K182: 0 | M182: 1648488 | N182: 0 | P182: 543957 | S182: 小計 | T182: =IFERROR(SUM(T176:T181), "") -> 1648488 | V182: 小計 | W182: =IFERROR(SUM(W176:W181), "") -> 0 | Y182: 小計 | Z182: =IFERROR(SUM(Z176:Z181), "") -> 0 | AB182: 小計 | AC182: =IFERROR(SUM(AC176:AC181), "") -> 498332 | AE182: 小計 | AF182: =IFERROR(SUM(AF176:AF181), "") -> 45625
G183: 0 | I183: 0 | K183: 0 | M183: 0 | N183: 0 | P183: 0 | V183: =IFERROR(SUM(S183), "") -> 0 | Y183: =IFERROR(SUM(S183), "") -> 0 | AB183: =IFERROR(SUM(S183), "") -> 0 | AE183: =IFERROR(SUM(S183), "") -> 0
C184: 【植え込み】 | G184: 0 | I184: 0 | K184: 0 | M184: 0 | N184: 0 | P184: 0 | V184: =IFERROR(SUM(S184), "") -> 0 | Y184: =IFERROR(SUM(S184), "") -> 0 | AB184: =IFERROR(SUM(S184), "") -> 0 | AE184: =IFERROR(SUM(S184), "") -> 0
G185: 0 | I185: 0 | K185: 0 | M185: 0 | N185: 0 | P185: 0
C186: 【非常用侵入バルコニー】 | E186: ウレタン塗膜防水 通気緩衝工法 | G186: 0 | I186: 0 | K186: 0 | M186: 0 | N186: 0 | P186: 0
C187: 既設防水面ケレン・清掃・高圧洗浄 | G187: =IFERROR(SUM(K187+N187), "") -> 129.9 | H187: =IFERROR(SUM(I187/G187), "") -> 50 | I187: 6495 | K187: 129.9 | L187: 50 | M187: 6495 | N187: =IFERROR(SUM(AA187+AD187), "") -> 0 | O187: =IFERROR(SUM(P187/N187), "") ->  | P187: 0 | U187: 104.4 | V187: 50 | W187: =IFERROR(SUM(U187*V187), "") -> 5220 | X187: 25.5 | Y187: 50 | Z187: =IFERROR(SUM(X187*Y187), "") -> 1275
C188: 既設立上り防水層撤去・仮防水 | E188: 押え金物含む | G188: 129.9 | H188: 2500 | I188: 324750 | K188: 129.9 | L188: 2500 | M188: 324750 | N188: 0 | P188: 0 | U188: 104.4 | V188: 2500 | W188: 261000 | X188: 25.5 | Y188: 2500 | Z188: 63750
C189: 下地処理 | E189: 伸縮目地含む | G189: 129.9 | H189: 500 | I189: 64950 | K189: 129.9 | L189: 500 | M189: 64950 | N189: 0 | P189: 0 | U189: 104.4 | V189: 500 | W189: 52200 | X189: 25.5 | Y189: 500 | Z189: 12750
C190: 平場部防水 | E190: 田島ルーフィング OSTW-3S | G190: 97 | H190: 4300 | I190: 417100 | K190: 97 | L190: 4300 | M190: 417100 | N190: 0 | P190: 0 | U190: 77.4 | V190: 4300 | W190: 332820 | X190: 19.6 | Y190: 4300 | Z190: 84280
C191: 立上り | E191: H300 | G191: 32.9 | H191: 4300 | I191: 141470 | K191: 32.9 | L191: 4300 | M191: 141470 | N191: 0 | P191: 0 | U191: 27 | V191: 4300 | W191: 116100 | X191: 5.9 | Y191: 4300 | Z191: 25370
C192: 立上り 押え金物 | E192: アルミ製 | G192: 109.6 | H192: 1500 | I192: 164400 | K192: 109.6 | L192: 1500 | M192: 164400 | N192: 0 | P192: 0 | U192: 90 | V192: 1500 | W192: 135000 | X192: 19.6 | Y192: 1500 | Z192: 29400
C193: 同上廻り シーリング | G193: 28.6 | H193: 300 | I193: 8580 | K193: 28.6 | L193: 300 | M193: 8580 | N193: 0 | P193: 0 | U193: 9 | V193: 300 | W193: 2700 | X193: 19.6 | Y193: 300 | Z193: 5880
C194: 改修用ドレン | G194: 6 | H194: 12000 | I194: 72000 | K194: 6 | L194: 12000 | M194: 72000 | N194: 0 | P194: 0 | U194: 5 | V194: 12000 | W194: 60000 | X194: 1 | Y194: 12000 | Z194: 12000
C195: 脱気筒 | G195: 3 | H195: 8000 | I195: 24000 | K195: 3 | L195: 8000 | M195: 24000 | N195: 0 | P195: 0 | U195: 2 | V195: 8000 | W195: 16000 | X195: 1 | Y195: 8000 | Z195: 8000
G196: 0 | I196: 1223745 | K196: 0 | M196: 1223745 | N196: 0 | P196: 0 | V196: 小計 | W196: =IFERROR(SUM(W187:W195), "") -> 981040 | Y196: 小計 | Z196: =IFERROR(SUM(Z187:Z195), "") -> 242705 | AB196: =IFERROR(SUM(S196), "") -> 0 | AE196: =IFERROR(SUM(S196), "") -> 0
C197: 【室外機置場】 | E197: ウレタン塗膜防水 | G197: 0 | I197: 0 | K197: 0 | M197: 0 | N197: 0 | P197: 0 | V197: =IFERROR(SUM(S197), "") -> 0 | Y197: =IFERROR(SUM(S197), "") -> 0 | AB197: =IFERROR(SUM(S197), "") -> 0 | AE197: =IFERROR(SUM(S197), "") -> 0
C198: ケレン・清掃 | G198: 421.8 | H198: 23.00853485 | I198: 9705 | K198: 164.5 | L198: 22.37082067 | M198: 3680 | N198: 257.3 | O198: 23.41624563 | P198: 6025 | R198: 151.5 | S198: 20 | T198: =IFERROR(SUM(R198*S198), "") -> 3030 | U198: 13 | V198: 50 | W198: =IFERROR(SUM(U198*V198), "") -> 650 | Y198: =IFERROR(SUM(S198), "") -> 20 | AA198: 228 | AB198: =IFERROR(SUM(S198), "") -> 20 | AC198: =IFERROR(SUM(AA198*AB198), "") -> 4560 | AD198: 29.3 | AE198: 50 | AF198: =IFERROR(SUM(AD198*AE198), "") -> 1465
C199: 下地処理 | G199: 421.8 | H199: 52.0625889 | I199: 21960 | K199: 164.5 | L199: 47.38601824 | M199: 7795 | N199: 257.3 | O199: 55.05246794 | P199: =IFERROR(SUM(AC199+AF199), "") -> 14165 | R199: 151.5 | S199: 30 | T199: =IFERROR(SUM(R199*S199), "") -> 4545 | U199: 13 | V199: 250 | W199: 3250 | Y199: =IFERROR(SUM(S199), "") -> 30 | AA199: 228 | AB199: =IFERROR(SUM(S199), "") -> 30 | AC199: 6840 | AD199: 29.3 | AE199: 250 | AF199: 7325
C200: 平場 | G200: 33 | H200: 2400 | I200: =IFERROR(SUM(M200+P200), "") -> 79200 | K200: 10.5 | L200: 2400 | M200: 25200 | N200: 22.5 | O200: 2400 | P200: 54000 | U200: 10.5 | V200: 2400 | W200: 25200 | AC200: 0 | AD200: 22.5 | AE200: 2400 | AF200: 54000
... 175 more rows

Sheet 鉄部塗装見積
A1: 2010施工
A2: 2018施工
B3: 仮設工事
B4: 仮設足場
B5: 養生費
B6: 運搬費
B8: 東棟住宅
B9: b.鉄部塗装 | D9: ヶ所 | E9: 数量 | G9: 単価 | H9: 金額
B10: SD1 | C10: 850*1930 | D10: 62 | E10: 292 | F10: ｍ | G10: 850 | H10: =SUM(E10*G10) -> 248200
B11: MB扉（両面・枠共） | C11: 750*1890 | D11: 34 | E11: 124.6 | F11: m2 | G11: 2450 | H11: 305270
B12: 〃 | C12: 900*1890 | D12: 3 | E12: 13 | F12: m2 | G12: 2540 | H12: 33020
B13: 〃 | C13: 1200*1890 観音開き | D13: 10 | E13: 58.2 | F13: m2 | G13: 2540 | H13: 147828
B14: 〃 | C14: 1480*1890 観音開き | D14: 17 | E14: 119.6 | F14: m2 | G14: 2540 | H14: 303784
B15: トランク扉（両面・枠共） | C15: 780*1880 | D15: 20 | E15: 75.5 | F15: m2 | G15: 2540 | H15: 191770
B16: 〃 | C16: 1550*1920 観音開き | D16: 60 | E16: 447.3 | F16: m2 | G16: 2540 | H16: 1136142
B17: 〃 | C17: 1500*1920 観音開き | D17: 2 | E17: 14.5 | F17: m2 | G17: 2540 | H17: 36830
B18: 門扉（両面） | C18: 1050*1100 | D18: 62 | E18: 155.3 | F18: m2 | G18: 2700 | H18: 419310
B19: ゲート（門扉上） | D19: 62 | E19: 62 | F19: ヶ所 | G19: 1950 | H19: 120900
B20: ポーチ内格子（両面） | C20: 1200*1800 | D20: 48 | E20: 2380.8 | F20: ｍ | G20: 850 | H20: 2023680
B21: 〃 | C21: 800*1800 | D21: 12 | E21: 408 | F21: ｍ | G21: 850 | H21: 346800
B22: EPS扉（両面・枠共） | C22: 700*1900 | D22: 16 | E22: 75.5 | F22: m2 | G22: 2540 | H22: 191770
B23: 放水口扉 | C23: 500*800 | D23: 10 | E23: 8.8 | F23: m2 | G23: 2540 | H23: 22352
B24: 消火栓扉 | C24: 900*1400 | D24: 5 | E24: 6.9 | F24: m2 | G24: 2700 | H24: 18630
B25: 集会室 ＭＢ扉 | C25: 400*300*200 150*800*100 | D25: 1 | E25: 0.38 | F25: m2 | G25: 30000 | H25: 11400
B26: テラスベンチ | C26: 1500*400*400 | D26: 4 | E26: 8 | F26: m2 | G26: 2700 | H26: 21600
B27: 4階 廊下 ポール | C27: 170Φ H2690 | D27: 4 | E27: 6.3 | F27: m2 | G27: 2700 | H27: 17010
B28: 13階 階段Ａ扉（両面・枠共） | C28: 1270*2100 | D28: 1 | E28: 6.5 | F28: m2 | G28: 2540 | H28: 16510
B29: 屋上 EV機械室扉（両面・枠共） | C29: 950*2200 | D29: 1 | E29: 5.2 | F29: m2 | G29: 2540 | H29: 13208
B30: 屋上 機械室扉（両面・枠共） | C30: 900*1800 | D30: 1 | E30: 4.1 | F30: m2 | G30: 2540 | H30: 10414
B31: 屋上 MB | C31: 420*400*200 | D31: 1 | E31: 0.5 | F31: m2 | G31: 30000 | H31: 15000
B32: エントランス メールボックス室 扉 | C32: 950*2150 | D32: 1 | E32: 2.2 | F32: m2 | G32: 2540 | H32: 5588
B33: 1階駐輪場 入口扉（ガラス入り） | C33: 980*2150 | D33: 1 | E33: 1.3 | F33: m2 | G33: 2540 | H33: 3302
B34: 1階駐輪場 防火扉 | C34: 2300*2150 | D34: 1 | E34: 5.4 | F34: m2 | G34: 2540 | H34: 13716
B35: 1階駐輪場 EPS扉 | C35: 680*1800 | D35: 1 | E35: 1.3 | F35: m2 | G35: 2540 | H35: 3302
B36: 1階駐輪場 MDF扉 | C36: 960*2150 | D36: 1 | E36: 2.2 | F36: m2 | G36: 2540 | H36: 5588
B37: 1階管理人室 扉（ガラス入り） | C37: 2650*2600 | D37: 1 | E37: 2.5 | F37: m2 | G37: 2540 | H37: 6350
B38: 1階A階段 ポンプ室 扉 | C38: 980*2150 | D38: 1 | E38: 2.3 | F38: m2 | G38: 2540 | H38: 5842
B39: 1階EV 枠+防火扉 | C39: 1850*2150 | D39: 2 | E39: 10.4 | F39: m2 | G39: 2540 | H39: 26416
H40: =SUM(H10:H39) -> 5721532
B41: 東棟店舗
B42: １階店舗用メールＢＯＸ室ＥＰＳ扉 | C42: 970*1950 | D42: 1 | E42: 2.2 | F42: m2 | G42: 2540 | H42: =SUM(E42*G42) -> 5588
B43: １階さんど亭ＥＶホール ＥＶ防火扉 | C43: 2300*2170 | D43: 1 | E43: 5.4 | F43: m2 | G43: 2540 | H43: 13716
B44: １階さんど亭ＥＶホールＤＳ扉 | C44: 680*1470 | D44: 1 | E44: 1.2 | F44: m2 | G44: 2540 | H44: 3048
B45: １階さんど亭横 ＳＤ扉 枠共 | C45: 830*2200 | D45: 1 | E45: 2.9 | F45: m2 | G45: 2540 | H45: 7366
B46: 店舗間化粧鋼板 | C46: 200*3000 | D46: 6 | E46: 3.6 | F46: m2 | G46: 2540 | H46: 9144
B47: 店舗E106・113シャッター（片面） | C47: 5100*2690 | D47: 2 | E47: 27.4 | F47: m2 | G47: 2800 | H47: 76720
B48: 店舗E107・E104・E105・E110・E111シャッター | C48: 5020*2690 | D48: 3 | E48: 40.5 | F48: m2 | G48: 2800 | H48: 113400
B49: 店舗E102・103シャッター（片面） | C49: 5200*2690 | D49: 1 | E49: 14 | F49: m2 | G49: 2800 | H49: 39200
B50: 店舗E108・109シャッター（片面） | C50: 4620*2690 | D50: 1 | E50: 12.4 | F50: m2 | G50: 2800 | H50: 34720
B51: 店舗E112シャッター（片面） | C51: 5630*2690 | D51: 1 | E51: 15.2 | F51: m2 | G51: 2800 | H51: 42560
B52: 店舗E1113シャッター（片面） | C52: 1560*2690 | D52: 1 | E52: 4.2 | F52: m2 | G52: 2800 | H52: 11760
B53: 店舗E1014シャッター（片面） | C53: 2330*2690 | D53: 1 | E53: 6.3 | F53: m2 | G53: 2800 | H53: 17640
B54: 店舗E115シャッター（片面） | C54: 4350*2690 | D54: 1 | E54: 11.7 | F54: m2 | G54: 2800 | H54: 32760
H55: =SUM(H42:H54) -> 407622
B56: 西棟住宅
B57: 玄関ドア（枠・見え掛り部） | C57: 850*1930 | D57: 20 | E57: 111.2 | F57: ｍ | G57: 850 | H57: =SUM(E57*G57) -> 94520
B58: MB扉（両面・枠共） | C58: 750*1890 | D58: 20 | E58: 73.3 | F58: m2 | G58: 2540 | H58: 186182
B59: トランク扉（両面・枠共） | C59: 780*1880 | D59: 20 | E59: 75.5 | F59: m2 | G59: 2540 | H59: 191770
B60: 門扉（両面） | C60: 1050*1100 | D60: 20 | E60: 50.1 | F60: m2 | G60: 2700 | H60: 135270
B61: ゲート（門扉上） | D61: 20 | E61: 20 | F61: ヶ所 | G61: 1950 | H61: 39000
B62: ７階 階段Ｈ扉（両面・枠共） | C62: 1250*2050 | D62: 1 | E62: 7.1 | F62: m2 | G62: 2540 | H62: 18034
B63: １階 三方枠 | C63: 710*2150 | D63: 1 | E63: 5 | F63: m2 | G63: 850 | H63: 4250
B64: 階段室Ｊ扉（両面枠共） | C64: 1020*2380 | D64: 1 | E64: 5.9 | F64: m2 | G64: 2540 | H64: 14986
B65: ２階 階段Ｈ扉（両面枠共） | C65: 1400*2990 | D65: 1 | E65: 10.1 | F65: m2 | G65: 2540 | H65: 25654
B66: ２階 ＰＳ・ＥＰＳ扉（両面枠共） | C66: 700*1900 | D66: 2 | E66: 7.3 | F66: m2 | G66: 2540 | H66: 18542
B67: ２階 消火栓扉 | C67: 950*1100 | D67: 1 | E67: 1.1 | F67: m2 | G67: 2540 | H67: 2794
B68: ＥＶ機械室扉（両面枠共） | C68: 950*2200 | D68: 1 | E68: 5.5 | F68: m2 | G68: 2540 | H68: 13970
B69: ＥＶ機械室前扉（両面枠共） | C69: 950*2200 | D69: 1 | E69: 5.5 | F69: m2 | G69: 2540 | H69: 13970
H70: =SUM(H57:H69) -> 758942
B71: 西棟店舗
B72: シャッター
B74: STF101風除室
B75: STF102
B78: 東棟地下1.2階
B79: 地下２階
B80: ファンルーム扉1・2・3 両面枠共 | C80: 1600*2100 観音開き | D80: 3 | E80: 26.8 | F80: m2 | G80: 2540 | H80: =SUM(E80*G80) -> 68072
B81: ファンルームガラリ1・2 | C81: 2780*3230 | D81: 2 | E81: 9 | F81: m2 | G81: 2700 | H81: 24300
B82: ファンルームガラリ3 | C82: 3380*2380 | D82: 1 | E82: 8 | F82: m2 | G82: 2700 | H82: 21600
B83: 階段L扉 両面枠共 | C83: 1100*2300 | D83: 1 | E83: 6.5 | F83: m2 | G83: 2540 | H83: 16510
B84: DS扉 両面枠共 片開き散水栓付き | C84: 1670*2100 | D84: 1 | E84: 8.7 | F84: m2 | G84: 2700 | H84: 23490
B85: DS扉 両面枠共 | C85: 700*1900 | D85: 1 | E85: 3.6 | F85: m2 | G85: 2540 | H85: 9144
B86: 西側ELV防火扉 両面枠共 | C86: 2440*2350 | D86: 1 | E86: 14.9 | F86: m2 | G86: 2540 | H86: 37846
B87: 消火栓扉 （ファンルーム1横・井水機械室横） | C87: 950*1100 | D87: 2 | E87: 2.4 | F87: m2 | G87: 2700 | H87: 6480
B88: 排水ポンプ制御盤（プール排水用） | C88: 440*420*200 | D88: 1 | E88: 0.53 | F88: m2 | G88: 30000 | H88: 15900
B89: B2階井水機械室・受水槽室扉 観音開き | C89: 1880*2150 | D89: 1 | E89: 4.8 | F89: m2 | G89: 2540 | H89: 12192
B90: B2階ファンルーム4 扉 幕板共 | C90: 1750*3400 | D90: 1 | E90: 6.2 | F90: m2 | G90: 2540 | H90: 15748
B91: B2階ファンルームガラリ | C91: 2300*4250*3400 | D91: 1 | E91: 22.3 | F91: m2 | G91: 2700 | H91: 60210
B92: B2階～ELV室 扉 ガラス入り 両面 | C92: 980*2150 | D92: 1 | E92: 2.5 | F92: m2 | G92: 2540 | H92: 6350
B93: B2階ELV室 倉庫扉 ガラス面 850*1850 | C93: 1080*2150 | D93: 1 | E93: 1.8 | F93: m2 | G93: 2700 | H93: 4860
B94: B2階ELV室 倉庫扉 | C94: 930*2150 | D94: 1 | E94: 2.2 | F94: m2 | G94: 2540 | H94: 5588
B95: B2階ELV室 消火ポンプ室 扉 観音開き | C95: 1880*2150 | D95: 1 | E95: 4.8 | F95: m2 | G95: 2540 | H95: 12192
H96: =SUM(H79:H95) -> 340482
B98: 地下１階
B99: ファンルーム扉1・2・3 両面枠共 | C99: 1600*2100 観音開き | D99: 3 | E99: 26.8 | G99: 2540 | H99: =SUM(E99*G99) -> 68072
B100: ファンルームガラリ1・2 | C100: 2080*3180 | D100: 2 | E100: 13.2 | G100: 2700 | H100: 35640
B101: ファンルームガラリ4 | C101: 5380*2570 | D101: 1 | E101: 13.6 | G101: 2700 | H101: 36720
B102: 階段L扉 両面枠共 | C102: 1100*2300 | D102: 1 | E102: 6.5 | G102: 2540 | H102: 16510
B103: DS扉 両面枠共 | C103: 700*1900 | D103: 1 | E103: 3.6 | G103: 2540 | H103: 9144
B104: 西側ELV防火扉 両面枠共 | C104: 2440*2350 | D104: 1 | E104: 14.9 | G104: 2540 | H104: 37846
B105: 階段M扉 両面枠共 | C105: 1100*2300 | D105: 1 | E105: 6.5 | G105: 2540 | H105: 16510
B106: パッカー庫置場扉 両面枠共 | C106: 1880*2680 観音開き | D106: 1 | E106: 12.7 | G106: 2540 | H106: 32258
B107: 施設ゴミ置き場扉 両面枠共 片開き幕板付き | C107: 950*3000 | D107: 1 | E107: 6.7 | G107: 2700 | H107: 18090
B108: 消火栓扉 （ファンルーム1横・DS横） | C108: 950*1100 | D108: 2 | E108: 2.4 | G108: 2700 | H108: 6480
B109: 施設ゴミ庫シャッター 両面 | C109: 2100*3000 | D109: 1 | E109: 12.6 | G109: 3000 | H109: 37800
B110: B1駐輪場 防火扉+上部ガラリ | C110: 5800*3030 | D110: 1 | E110: 18.1 | G110: 2700 | H110: 48870
B111: B1駐輪場横 搬送コンベア制御盤 | C111: 700*250*1000 | D111: 1 | E111: 1.6 | G111: 2700 | H111: 4320
B112: B1階さんど亭 入口扉 （ガラス 1.7*2.1） | C112: 2100*2400 | D112: 1 | E112: 3.8 | G112: 2700 | H112: 10260
B113: B1階セントラル 入口 | C113: 1580*2150 | D113: 1 | E113: 3.2 | G113: 2700 | H113: 8640
H114: =SUM(H99:H113) -> 387160
B117: 西棟地下1.2階
B118: 地下2階
B119: SD101 消火ポンプ室2 観音開き | C119: 1800*2100 | D119: 1
B120: SD102 受水槽室 観音開き | C120: 1800*2100 | D120: 1
B121: SD103 発電機室 観音開き | C121: 2500*2600 | D121: 1
B122: SD104 発電機室－ELVホール | C122: 850*2082 | D122: 1
B125: 地下1階
B126: SD105 駐車場管理室 | C126: 1200*2100 | D126: 1
B127: STW101 駐車場管理室 窓
B128: SD105A 総合監理室 親子
B129: SD106 総合監理室 階段扉 | C129: 900*2100 | D129: 1
B130: SD122 電気室上部設備ピット | C130: 400*400 | D130: 1

Sheet ③タイプ別面積・管理費等額
A1: タイプ別面積表 | D1: 184 | E1: 139 | F1: 196 | H1: 78 | I1: 84 | J1: 78 | AA1: 単価変更後 | AD1: =SUM(D1+P127) -> 195.8858153 | AE1: =SUM(E1+P127) -> 150.8858153 | AF1: =SUM(F1+P127) -> 207.8858153 | AH1: =SUM(H1+L132) -> 148 | AI1: =SUM(I1+L132) -> 154 | AJ1: =SUM(J1+L132) -> 148
A2: 区画番号 | B2: 用途 | C2: 専有面積 | D2: 施設管理費 | E2: 住宅管理費 | F2: セントラル管理費 | H2: 施設特別修繕 | I2: 住宅特別修繕 | J2: セントラル特別修繕 | M2: 合計 | AA2: 区画番号 | AB2: 用途 | AC2: 専有面積 | AD2: 施設管理費 | AE2: 住宅管理費 | AF2: セさ管理費 | AH2: 施設特別修繕 | AI2: 住宅特別修繕 | AJ2: セさ特別修繕 | AM2: 改定後合計 | AN2: 従前との差額
A3: 101 | B3: 施設 | C3: 39.6 | D3: =C3*D1 -> 7286.4 | H3: =C3*H1 -> 3088.8 | M3: =SUM(D3:K3) -> 10375.2 | AA3: 101 | AB3: 施設 | AC3: 39.6 | AD3: =AC3*AD1 -> 7757.078286 | AH3: =AC3*AH1 -> 5860.8 | AM3: =SUM(AD3:AK3) -> 13617.87829 | AN3: =AM3-M3 -> 3242.678286
A4: 102 | B4: 施設 | C4: 33.66 | D4: =C4*D1 -> 6193.44 | H4: =C4*H1 -> 2625.48 | M4: =SUM(D4:K4) -> 8818.92 | AA4: 102 | AB4: 施設 | AC4: 33.66 | AD4: =AC4*AD1 -> 6593.516543 | AH4: =AC4*AH1 -> 4981.68 | AM4: =SUM(AD4:AK4) -> 11575.19654 | AN4: =AM4-M4 -> 2756.276543
A5: 103 | B5: 施設 | C5: 23.58 | D5: =C5*D1 -> 4338.72 | H5: =C5*H1 -> 1839.24 | M5: 6177.96 | AA5: 103 | AB5: 施設 | AC5: 23.58 | AD5: =AC5*AD1 -> 4618.987525 | AH5: =AC5*AH1 -> 3489.84 | AM5: 8108.827525 | AN5: 1930.867525
A6: 104 | B6: 施設 | C6: 25.85 | D6: =C6*D1 -> 4756.4 | H6: =C6*H1 -> 2016.3 | M6: 6772.7 | AA6: 104 | AB6: 施設 | AC6: 25.85 | AD6: =AC6*AD1 -> 5063.648325 | AH6: =AC6*AH1 -> 3825.8 | AM6: 8889.448325 | AN6: 2116.748325
A7: 105 | B7: 施設 | C7: 29.88 | D7: =C7*D1 -> 5497.92 | H7: =C7*H1 -> 2330.64 | M7: 7828.56 | AA7: 105 | AB7: 施設 | AC7: 29.88 | AD7: =AC7*AD1 -> 5853.068161 | AH7: =AC7*AH1 -> 4422.24 | AM7: 10275.30816 | AN7: 2446.748161
A8: 106 | B8: 施設 | C8: 29.16 | D8: =C8*D1 -> 5365.44 | H8: =C8*H1 -> 2274.48 | M8: 7639.92 | AA8: 106 | AB8: 施設 | AC8: 29.16 | AD8: =AC8*AD1 -> 5712.030374 | AH8: =AC8*AH1 -> 4315.68 | AM8: 10027.71037 | AN8: 2387.790374
A9: 107 | B9: 施設 | C9: 29.68 | D9: =C9*D1 -> 5461.12 | H9: =C9*H1 -> 2315.04 | M9: 7776.16 | AA9: 107 | AB9: 施設 | AC9: 29.68 | AD9: =AC9*AD1 -> 5813.890998 | AH9: =AC9*AH1 -> 4392.64 | AM9: 10206.531 | AN9: 2430.370998
A10: 108 | B10: 施設 | C10: 26.12 | D10: =C10*D1 -> 4806.08 | H10: =C10*H1 -> 2037.36 | M10: 6843.44 | AA10: 108 | AB10: 施設 | AC10: 26.12 | AD10: =AC10*AD1 -> 5116.537495 | AH10: =AC10*AH1 -> 3865.76 | AM10: 8982.297495 | AN10: 2138.857495
A11: 109 | B11: 施設 | C11: 58.75 | D11: =C11*D1 -> 10810 | H11: =C11*H1 -> 4582.5 | M11: 15392.5 | AA11: 109 | AB11: 施設 | AC11: 58.75 | AD11: =AC11*AD1 -> 11508.29165 | AH11: =AC11*AH1 -> 8695 | AM11: 20203.29165 | AN11: 4810.791648
A12: 110 | B12: 施設 | C12: 60.5 | D12: =C12*D1 -> 11132 | H12: =C12*H1 -> 4719 | M12: 15851 | AA12: 110 | AB12: 施設 | AC12: 60.5 | AD12: =AC12*AD1 -> 11851.09183 | AH12: =AC12*AH1 -> 8954 | AM12: 20805.09183 | AN12: 4954.091825
A13: 111 | B13: 施設 | C13: 4271.87 | F13: =C13*F1 -> 837286.52 | J13: =C13*J1 -> 333205.86 | M13: 1170492.38 | AA13: 111 | AB13: 施設 | AC13: 4271.87 | AF13: =AC13*AF1 -> 888061.1778 | AJ13: =AC13*AJ1 -> 632236.76 | AM13: 1520297.938 | AN13: 349805.5578
A14: 112 | B14: 施設 | C14: 24.01 | D14: =C14*D1 -> 4417.84 | H14: =C14*H1 -> 1872.78 | M14: 6290.62 | AA14: 112 | AB14: 施設 | AC14: 24.01 | AD14: =AC14*AD1 -> 4703.218425 | AH14: =AC14*AH1 -> 3553.48 | AM14: 8256.698425 | AN14: 1966.078425
A15: 113 | B15: 施設 | C15: 66.32 | D15: =C15*D1 -> 12202.88 | H15: =C15*H1 -> 5172.96 | M15: =SUM(D15:K15) -> 17375.84 | AA15: 113 | AB15: 施設 | AC15: 66.32 | AD15: =AC15*AD1 -> 12991.14727 | AH15: =AC15*AH1 -> 9815.36 | AM15: 22806.50727 | AN15: 5430.66727
A16: 114 | B16: 施設 | C16: 48.27 | D16: =C16*D1 -> 8881.68 | H16: =C16*H1 -> 3765.06 | M16: 12646.74 | AA16: 114 | AB16: 施設 | AC16: 48.27 | AD16: =AC16*AD1 -> 9455.408304 | AH16: =AC16*AH1 -> 7143.96 | AM16: 16599.3683 | AN16: 3952.628304
A17: 115 | B17: 施設 | C17: 66.92 | D17: =C17*D1 -> 12313.28 | H17: =C17*H1 -> 5219.76 | M17: 17533.04 | AA17: 115 | AB17: 施設 | AC17: 66.92 | AD17: =AC17*AD1 -> 13108.67876 | AH17: =AC17*AH1 -> 9904.16 | AM17: 23012.83876 | AN17: 5479.798759
A18: 116 | B18: 施設 | C18: 64.08 | D18: =C18*D1 -> 11790.72 | H18: =C18*H1 -> 4998.24 | M18: 16788.96 | AA18: 116 | AB18: 施設 | AC18: 64.08 | AD18: =AC18*AD1 -> 12552.36304 | AH18: =AC18*AH1 -> 9483.84 | AM18: 22036.20304 | AN18: 5247.243044
A19: 117 | B19: 施設 | C19: 66.59 | D19: =C19*D1 -> 12252.56 | H19: =C19*H1 -> 5194.02 | M19: 17446.58 | AA19: 117 | AB19: 施設 | AC19: 66.59 | AD19: =AC19*AD1 -> 13044.03644 | AH19: =AC19*AH1 -> 9855.32 | AM19: 22899.35644 | AN19: 5452.77644
A20: 118 | B20: 施設 | C20: 67.64 | D20: =C20*D1 -> 12445.76 | H20: =C20*H1 -> 5275.92 | M20: 17721.68 | AA20: 118 | AB20: 施設 | AC20: 67.64 | AD20: =AC20*AD1 -> 13249.71655 | AH20: =AC20*AH1 -> 10010.72 | AM20: 23260.43655 | AN20: 5538.756546
A21: 119 | B21: 施設 | C21: 43.26 | D21: =C21*D1 -> 7959.84 | H21: =C21*H1 -> 3374.28 | M21: 11334.12 | AA21: 119 | AB21: 施設 | AC21: 43.26 | AD21: =AC21*AD1 -> 8474.020369 | AH21: =AC21*AH1 -> 6402.48 | AM21: 14876.50037 | AN21: 3542.380369 | AQ21: ｍ2 | AR21: 現状単価 | AS21: 額 | AU21: 改正単価 | AV21: 額 | AX21: 増減
A22: 120 | B22: 施設 | C22: 42.24 | D22: =C22*D1 -> 7772.16 | H22: =C22*H1 -> 3294.72 | M22: 11066.88 | AA22: 120 | AB22: 施設 | AC22: 42.24 | AD22: =AC22*AD1 -> 8274.216838 | AH22: =AC22*AH1 -> 6251.52 | AM22: 14525.73684 | AN22: 3458.856838 | AP22: 店舗面積 | AQ22: =AQ26 -> 1211.64 | AR22: 184 | AS22: =AQ22*AR22 -> 222941.76 | AU22: =AD1 -> 195.8858153 | AV22: =AQ22*AU22 -> 237343.0892 | AX22: =AV22-AS22 -> 14401.32924
A23: 121 | B23: 施設 | C23: 45.47 | D23: =C23*D1 -> 8366.48 | H23: =C23*H1 -> 3546.66 | M23: 11913.14 | AA23: 121 | AB23: 施設 | AC23: 45.47 | AD23: =AC23*AD1 -> 8906.928021 | AH23: =AC23*AH1 -> 6729.56 | AM23: 15636.48802 | AN23: 3723.348021 | AP23: セさ面積 | AQ23: =AQ27 -> 4648.37 | AR23: 196 | AS23: =AQ23*AR23 -> 911080.52 | AU23: =AF1 -> 207.8858153 | AV23: =AQ23*AU23 -> 966330.1872 | AX23: =AV23-AS23 -> 55249.66722
A24: 122 | B24: 施設 | C24: 14.96 | D24: =C24*D1 -> 2752.64 | H24: =C24*H1 -> 1166.88 | M24: 3919.52 | AA24: 122 | AB24: 施設 | AC24: 14.96 | AD24: =AC24*AD1 -> 2930.451797 | AH24: =AC24*AH1 -> 2214.08 | AM24: 5144.531797 | AN24: 1225.011797 | AP24: 計 | AQ24: =AQ28 -> 5860.01 | AS24: =AS22+AS23 -> 1134022.28 | AV24: =AV22+AV23 -> 1203673.276 | AX24: =AV24-AS24 -> 69650.99646
A25: 123 | B25: 施設 | C25: 30.52 | D25: =C25*D1 -> 5615.68 | H25: =C25*H1 -> 2380.56 | M25: 7996.24 | AA25: 123 | AB25: 施設 | AC25: 30.52 | AD25: =AC25*AD1 -> 5978.435083 | AH25: =AC25*AH1 -> 4516.96 | AM25: 10495.39508 | AN25: 2499.155083 | AQ25: ｍ2 | AR25: 現状単価 | AS25: 額 | AU25: 改正単価 | AV25: 額
A26: 124 | B26: 施設 | C26: 27.84 | D26: =C26*D1 -> 5122.56 | H26: =C26*H1 -> 2171.52 | M26: 7294.08 | AA26: 124 | AB26: 施設 | AC26: 27.84 | AD26: =AC26*AD1 -> 5453.461098 | AH26: =AC26*AH1 -> 4120.32 | AM26: 9573.781098 | AN26: 2279.701098 | AP26: 店舗面積 | AQ26: =AC37-AC13-AC36 -> 1211.64 | AR26: 78 | AS26: =AQ26*AR26 -> 94507.92 | AU26: 148 | AV26: =AQ26*AU26 -> 179322.72 | AX26: =AV26-AS26 -> 84814.8
A27: 125 | B27: 施設 | C27: 33.48 | D27: =C27*D1 -> 6160.32 | H27: =C27*H1 -> 2611.44 | M27: 8771.76 | AA27: 125 | AB27: 施設 | AC27: 33.48 | AD27: =AC27*AD1 -> 6558.257096 | AH27: =AC27*AH1 -> 4955.04 | AM27: 11513.2971 | AN27: 2741.537096 | AP27: セさ面積 | AQ27: =AC13+AC36 -> 4648.37 | AR27: 78 | AS27: =AQ27*AR27 -> 362572.86 | AU27: 148 | AV27: =AQ27*AU27 -> 687958.76 | AX27: 325385.9
A28: 126 | B28: 施設 | C28: 29.5 | D28: =C28*D1 -> 5428 | H28: =C28*H1 -> 2301 | M28: 7729 | AA28: 126 | AB28: 施設 | AC28: 29.5 | AD28: =AC28*AD1 -> 5778.631551 | AH28: =AC28*AH1 -> 4366 | AM28: 10144.63155 | AN28: 2415.631551 | AP28: 計 | AQ28: =SUM(AQ26:AQ27) -> 5860.01 | AS28: =AS26+AS27 -> 457080.78 | AV28: =AV26+AV27 -> 867281.48 | AX28: =AV28-AS28 -> 410200.7
A29: 201 | B29: 施設 | C29: 34.96 | D29: =C29*D1 -> 6432.64 | H29: =C29*H1 -> 2726.88 | M29: 9159.52 | AA29: 201 | AB29: 施設 | AC29: 34.96 | AD29: =AC29*AD1 -> 6848.168103 | AH29: =AC29*AH1 -> 5174.08 | AM29: 12022.2481 | AN29: 2862.728103
A30: 202 | B30: 施設 | C30: 23.4 | D30: =C30*D1 -> 4305.6 | H30: =C30*H1 -> 1825.2 | M30: 6130.8 | AA30: 202 | AB30: 施設 | AC30: 23.4 | AD30: =AC30*AD1 -> 4583.728078 | AH30: =AC30*AH1 -> 3463.2 | AM30: 8046.928078 | AN30: 1916.128078
A31: 203 | B31: 施設 | C31: 33 | D31: =C31*D1 -> 6072 | H31: =C31*H1 -> 2574 | M31: 8646 | AA31: 203 | AB31: 施設 | AC31: 33 | AD31: =AC31*AD1 -> 6464.231905 | AH31: =AC31*AH1 -> 4884 | AM31: 11348.2319 | AN31: 2702.231905
A32: 204 | B32: 施設 | C32: 22.8 | D32: =C32*D1 -> 4195.2 | H32: =C32*H1 -> 1778.4 | M32: 5973.6 | AA32: 204 | AB32: 施設 | AC32: 22.8 | AD32: =AC32*AD1 -> 4466.196589 | AH32: =AC32*AH1 -> 3374.4 | AM32: 7840.596589 | AN32: 1866.996589
A33: 205 | B33: 施設 | C33: 43.2 | D33: =C33*D1 -> 7948.8 | H33: =C33*H1 -> 3369.6 | M33: 11318.4 | AA33: 205 | AB33: 施設 | AC33: 43.2 | AD33: =AC33*AD1 -> 8462.267221 | AH33: =AC33*AH1 -> 6393.6 | AM33: 14855.86722 | AN33: 3537.467221
A34: 206 | B34: 施設 | C34: 26.4 | D34: =C34*D1 -> 4857.6 | H34: =C34*H1 -> 2059.2 | M34: 6916.8 | AA34: 206 | AB34: 施設 | AC34: 26.4 | AD34: =AC34*AD1 -> 5171.385524 | AH34: =AC34*AH1 -> 3907.2 | AM34: 9078.585524 | AN34: 2161.785524
A35: 207 | B35: 施設 | D35: =C35*184 -> 0 | J35: =C35*78 -> 0 | M35: 0 | AA35: 207 | AB35: 施設 | AD35: =AC35*184 -> 0 | AJ35: =AC35*78 -> 0 | AM35: 0 | AN35: 0 | AP35: 検算
A36: 208 | B36: 施設 | C36: 376.5 | F36: =C36*F1 -> 73794 | J36: =C36*J1 -> 29367 | M36: 103161 | AA36: 208 | AB36: 施設 | AC36: 376.5 | AF36: =AC36*AF1 -> 78269.00946 | AJ36: =AC36*AJ1 -> 55722 | AM36: 133991.0095 | AN36: 30830.00946 | AP36: 管理費増加分 | AQ36: 修繕増加分 | AR36: 計
A37: 合計 | C37: =SUM(C3:C36) -> 5860.01 | D37: =SUM(D3:D36) -> 222941.76 | F37: =SUM(F3:F36) -> 911080.52 | H37: =SUM(H3:H36) -> 94507.92 | J37: =SUM(J3:J36) -> 362572.86 | M37: =SUM(M3:M36) -> 1591103.06 | AA37: 合計 | AC37: =SUM(AC3:AC36) -> 5860.01 | AD37: =SUM(AD3:AD36) -> 237343.0892 | AF37: =SUM(AF3:AF36) -> 966330.1872 | AH37: =SUM(AH3:AH36) -> 179322.72 | AJ37: =SUM(AJ3:AJ36) -> 687958.76 | AM37: =SUM(AM3:AM36) -> 2070954.756 | AN37: =AM37-M37 -> 479851.6965 | AO37: ① | AP37: =AD37+AF37-D37-F37 -> 69650.99646 | AQ37: =AH37+AJ37-H37-J37 -> 410200.7 | AR37: =AP37+AQ37 -> 479851.6965
A39: 区画番号 | B39: 用途 | C39: 専有面積 | E39: 住宅管理費 | I39: 住宅特別修繕 | M39: 合計 | AA39: 区画番号 | AB39: 用途 | AC39: 専有面積 | AE39: 住宅管理費 | AI39: 住宅特別修繕 | AM39: 改定後合計 | AN39: 従前との差額
A40: 301 | B40: 住宅 | C40: 79.46 | E40: =C40*E1 -> 11044.94 | I40: =C40*I1 -> 6674.64 | M40: =SUM(D40:K40) -> 17719.58 | AA40: 301 | AB40: 住宅 | AC40: 79.46 | AE40: =AC40*AE1 -> 11989.38688 | AI40: =AC40*AI1 -> 12236.84 | AM40: =SUM(AD40:AK40) -> 24226.22688 | AN40: =AM40-M40 -> 6506.646883
A41: 302 | B41: 住宅 | C41: 62.31 | E41: =C41*E1 -> 8661.09 | I41: =C41*I1 -> 5234.04 | M41: =SUM(D41:K41) -> 13895.13 | AA41: 302 | AB41: 住宅 | AC41: 62.31 | AE41: =AC41*AE1 -> 9401.695151 | AI41: =AC41*AI1 -> 9595.74 | AM41: 18997.43515 | AN41: 5102.305151
A42: 303 | B42: 住宅 | C42: 62.31 | E42: =C42*E1 -> 8661.09 | I42: =C42*I1 -> 5234.04 | M42: 13895.13 | AA42: 303 | AB42: 住宅 | AC42: 62.31 | AE42: =AC42*AE1 -> 9401.695151 | AI42: =AC42*AI1 -> 9595.74 | AM42: 18997.43515 | AN42: 5102.305151
A43: 304 | B43: 住宅 | C43: 64.45 | E43: =C43*E1 -> 8958.55 | I43: =C43*I1 -> 5413.8 | M43: 14372.35 | AA43: 304 | AB43: 住宅 | AC43: 64.45 | AE43: =AC43*AE1 -> 9724.590796 | AI43: =AC43*AI1 -> 9925.3 | AM43: 19649.8908 | AN43: 5277.540796
A44: 401 | B44: 住宅 | C44: 79.46 | E44: =C44*E1 -> 11044.94 | I44: =C44*I1 -> 6674.64 | M44: 17719.58 | AA44: 401 | AB44: 住宅 | AC44: 79.46 | AE44: =AC44*AE1 -> 11989.38688 | AI44: =AC44*AI1 -> 12236.84 | AM44: 24226.22688 | AN44: 6506.646883
A45: 402 | B45: 住宅 | C45: 62.31 | E45: =C45*E1 -> 8661.09 | I45: =C45*I1 -> 5234.04 | M45: 13895.13 | AA45: 402 | AB45: 住宅 | AC45: 62.31 | AE45: =AC45*AE1 -> 9401.695151 | AI45: =AC45*AI1 -> 9595.74 | AM45: 18997.43515 | AN45: 5102.305151
A46: 403 | B46: 住宅 | C46: 62.31 | E46: =C46*E1 -> 8661.09 | I46: =C46*I1 -> 5234.04 | M46: 13895.13 | AA46: 403 | AB46: 住宅 | AC46: 62.31 | AE46: =AC46*AE1 -> 9401.695151 | AI46: =AC46*AI1 -> 9595.74 | AM46: 18997.43515 | AN46: 5102.305151
A47: 404 | B47: 住宅 | C47: 64.45 | E47: =C47*E1 -> 8958.55 | I47: =C47*I1 -> 5413.8 | M47: 14372.35 | AA47: 404 | AB47: 住宅 | AC47: 64.45 | AE47: =AC47*AE1 -> 9724.590796 | AI47: =AC47*AI1 -> 9925.3 | AM47: 19649.8908 | AN47: 5277.540796
A48: 405 | B48: 集会室 | E48: =C48*E1 -> 0 | I48: =C48*I1 -> 0 | M48: 0 | AA48: 405 | AB48: 集会室 | AE48: =AC48*AE1 -> 0 | AI48: =AC48*AI1 -> 0 | AM48: 0 | AN48: 0
A49: 406 | B49: 住宅 | C49: 78 | E49: =C49*E1 -> 10842 | I49: =C49*I1 -> 6552 | M49: 17394 | AA49: 406 | AB49: 住宅 | AC49: 78 | AE49: =AC49*AE1 -> 11769.09359 | AI49: =AC49*AI1 -> 12012 | AM49: 23781.09359 | AN49: 6387.093593
A50: 407 | B50: 住宅 | C50: 66.98 | E50: =C50*E1 -> 9310.22 | I50: =C50*I1 -> 5626.32 | M50: 14936.54 | AA50: 407 | AB50: 住宅 | AC50: 66.98 | AE50: =AC50*AE1 -> 10106.33191 | AI50: =AC50*AI1 -> 10314.92 | AM50: 20421.25191 | AN50: 5484.711908
A51: 408 | B51: 住宅 | C51: 73.7 | E51: =C51*E1 -> 10244.3 | I51: =C51*I1 -> 6190.8 | M51: 16435.1 | AA51: 408 | AB51: 住宅 | AC51: 73.7 | AE51: =AC51*AE1 -> 11120.28459 | AI51: =AC51*AI1 -> 11349.8 | AM51: 22470.08459 | AN51: 6034.984587
A52: 409 | B52: 住宅 | C52: 76.8 | E52: =C52*E1 -> 10675.2 | I52: =C52*I1 -> 6451.2 | M52: 17126.4 | AA52: 409 | AB52: 住宅 | AC52: 76.8 | AE52: =AC52*AE1 -> 11588.03061 | AI52: =AC52*AI1 -> 11827.2 | AM52: 23415.23061 | AN52: 6288.830614
A53: 410 | B53: 住宅 | C53: 87.84 | E53: =C53*E1 -> 12209.76 | I53: =C53*I1 -> 7378.56 | M53: 19588.32 | AA53: 410 | AB53: 住宅 | AC53: 87.84 | AE53: =AC53*AE1 -> 13253.81002 | AI53: =AC53*AI1 -> 13527.36 | AM53: 26781.17002 | AN53: 7192.850015
A54: 501 | B54: 住宅 | C54: 79.46 | E54: =C54*E1 -> 11044.94 | I54: =C54*I1 -> 6674.64 | M54: 17719.58 | AA54: 501 | AB54: 住宅 | AC54: 79.46 | AE54: =AC54*AE1 -> 11989.38688 | AI54: =AC54*AI1 -> 12236.84 | AM54: 24226.22688 | AN54: 6506.646883
A55: 502 | B55: 住宅 | C55: 62.31 | E55: =C55*E1 -> 8661.09 | I55: =C55*I1 -> 5234.04 | M55: 13895.13 | AA55: 502 | AB55: 住宅 | AC55: 62.31 | AE55: =AC55*AE1 -> 9401.695151 | AI55: =AC55*AI1 -> 9595.74 | AM55: 18997.43515 | AN55: 5102.305151
A56: 503 | B56: 住宅 | C56: 62.31 | E56: =C56*E1 -> 8661.09 | I56: =C56*I1 -> 5234.04 | M56: 13895.13 | AA56: 503 | AB56: 住宅 | AC56: 62.31 | AE56: =AC56*AE1 -> 9401.695151 | AI56: =AC56*AI1 -> 9595.74 | AM56: 18997.43515 | AN56: 5102.305151
A57: 504 | B57: 住宅 | C57: 64.45 | E57: =C57*E1 -> 8958.55 | I57: =C57*I1 -> 5413.8 | M57: 14372.35 | AA57: 504 | AB57: 住宅 | AC57: 64.45 | AE57: =AC57*AE1 -> 9724.590796 | AI57: =AC57*AI1 -> 9925.3 | AM57: 19649.8908 | AN57: 5277.540796
A58: 505 | B58: 住宅 | C58: 83.06 | E58: =C58*E1 -> 11545.34 | I58: =C58*I1 -> 6977.04 | M58: 18522.38 | AA58: 505 | AB58: 住宅 | AC58: 83.06 | AE58: =AC58*AE1 -> 12532.57582 | AI58: =AC58*AI1 -> 12791.24 | AM58: 25323.81582 | AN58: 6801.435818
A59: 506 | B59: 住宅 | C59: 77.41 | E59: =C59*E1 -> 10759.99 | I59: =C59*I1 -> 6502.44 | M59: 17262.43 | AA59: 506 | AB59: 住宅 | AC59: 77.41 | AE59: =AC59*AE1 -> 11680.07096 | AI59: =AC59*AI1 -> 11921.14 | AM59: 23601.21096 | AN59: 6338.780962
A60: 507 | B60: 住宅 | C60: 78 | E60: =C60*E1 -> 10842 | I60: =C60*I1 -> 6552 | M60: 17394 | AA60: 507 | AB60: 住宅 | AC60: 78 | AE60: =AC60*AE1 -> 11769.09359 | AI60: =AC60*AI1 -> 12012 | AM60: 23781.09359 | AN60: 6387.093593
A61: 508 | B61: 住宅 | C61: 66.98 | E61: =C61*E1 -> 9310.22 | I61: =C61*I1 -> 5626.32 | M61: 14936.54 | AA61: 508 | AB61: 住宅 | AC61: 66.98 | AE61: =AC61*AE1 -> 10106.33191 | AI61: =AC61*AI1 -> 10314.92 | AM61: 20421.25191 | AN61: 5484.711908
A62: 509 | B62: 住宅 | C62: 73.7 | E62: =C62*E1 -> 10244.3 | I62: =C62*I1 -> 6190.8 | M62: 16435.1 | AA62: 509 | AB62: 住宅 | AC62: 73.7 | AE62: =AC62*AE1 -> 11120.28459 | AI62: =AC62*AI1 -> 11349.8 | AM62: 22470.08459 | AN62: 6034.984587
A63: 510 | B63: 住宅 | C63: 76.8 | E63: =C63*E1 -> 10675.2 | I63: =C63*I1 -> 6451.2 | M63: 17126.4 | AA63: 510 | AB63: 住宅 | AC63: 76.8 | AE63: =AC63*AE1 -> 11588.03061 | AI63: =AC63*AI1 -> 11827.2 | AM63: 23415.23061 | AN63: 6288.830614
A64: 511 | B64: 住宅 | C64: 87.84 | E64: =C64*E1 -> 12209.76 | I64: =C64*I1 -> 7378.56 | M64: 19588.32 | AA64: 511 | AB64: 住宅 | AC64: 87.84 | AE64: =AC64*AE1 -> 13253.81002 | AI64: =AC64*AI1 -> 13527.36 | AM64: 26781.17002 | AN64: 7192.850015
A65: 601 | B65: 住宅 | C65: 79.46 | E65: =C65*E1 -> 11044.94 | I65: =C65*I1 -> 6674.64 | M65: 17719.58 | AA65: 601 | AB65: 住宅 | AC65: 79.46 | AE65: =AC65*AE1 -> 11989.38688 | AI65: =AC65*AI1 -> 12236.84 | AM65: 24226.22688 | AN65: 6506.646883
A66: 602 | B66: 住宅 | C66: 62.31 | E66: =C66*E1 -> 8661.09 | I66: =C66*I1 -> 5234.04 | M66: 13895.13 | AA66: 602 | AB66: 住宅 | AC66: 62.31 | AE66: =AC66*AE1 -> 9401.695151 | AI66: =AC66*AI1 -> 9595.74 | AM66: 18997.43515 | AN66: 5102.305151
A67: 603 | B67: 住宅 | C67: 62.31 | E67: =C67*E1 -> 8661.09 | I67: =C67*I1 -> 5234.04 | M67: 13895.13 | AA67: 603 | AB67: 住宅 | AC67: 62.31 | AE67: =AC67*AE1 -> 9401.695151 | AI67: =AC67*AI1 -> 9595.74 | AM67: 18997.43515 | AN67: 5102.305151
A68: 604 | B68: 住宅 | C68: 64.45 | E68: =C68*E1 -> 8958.55 | I68: =C68*I1 -> 5413.8 | M68: 14372.35 | AA68: 604 | AB68: 住宅 | AC68: 64.45 | AE68: =AC68*AE1 -> 9724.590796 | AI68: =AC68*AI1 -> 9925.3 | AM68: 19649.8908 | AN68: 5277.540796
A69: 605 | B69: 住宅 | C69: 83.06 | E69: =C69*E1 -> 11545.34 | I69: =C69*I1 -> 6977.04 | M69: 18522.38 | AA69: 605 | AB69: 住宅 | AC69: 83.06 | AE69: =AC69*AE1 -> 12532.57582 | AI69: =AC69*AI1 -> 12791.24 | AM69: 25323.81582 | AN69: 6801.435818
A70: 606 | B70: 住宅 | C70: 77.41 | E70: =C70*E1 -> 10759.99 | I70: =C70*I1 -> 6502.44 | M70: 17262.43 | AA70: 606 | AB70: 住宅 | AC70: 77.41 | AE70: =AC70*AE1 -> 11680.07096 | AI70: =AC70*AI1 -> 11921.14 | AM70: 23601.21096 | AN70: 6338.780962
A71: 607 | B71: 住宅 | C71: 78 | E71: =C71*E1 -> 10842 | I71: =C71*I1 -> 6552 | M71: 17394 | AA71: 607 | AB71: 住宅 | AC71: 78 | AE71: =AC71*AE1 -> 11769.09359 | AI71: =AC71*AI1 -> 12012 | AM71: 23781.09359 | AN71: 6387.093593
A72: 608 | B72: 住宅 | C72: 66.98 | E72: =C72*E1 -> 9310.22 | I72: =C72*I1 -> 5626.32 | M72: 14936.54 | AA72: 608 | AB72: 住宅 | AC72: 66.98 | AE72: =AC72*AE1 -> 10106.33191 | AI72: =AC72*AI1 -> 10314.92 | AM72: 20421.25191 | AN72: 5484.711908
A73: 609 | B73: 住宅 | C73: 73.7 | E73: =C73*E1 -> 10244.3 | I73: =C73*I1 -> 6190.8 | M73: 16435.1 | AA73: 609 | AB73: 住宅 | AC73: 73.7 | AE73: =AC73*AE1 -> 11120.28459 | AI73: =AC73*AI1 -> 11349.8 | AM73: 22470.08459 | AN73: 6034.984587
A74: 610 | B74: 住宅 | C74: 76.8 | E74: =C74*E1 -> 10675.2 | I74: =C74*I1 -> 6451.2 | M74: 17126.4 | AA74: 610 | AB74: 住宅 | AC74: 76.8 | AE74: =AC74*AE1 -> 11588.03061 | AI74: =AC74*AI1 -> 11827.2 | AM74: 23415.23061 | AN74: 6288.830614
A75: 611 | B75: 住宅 | C75: 87.84 | E75: =C75*E1 -> 12209.76 | I75: =C75*I1 -> 7378.56 | M75: 19588.32 | AA75: 611 | AB75: 住宅 | AC75: 87.84 | AE75: =AC75*AE1 -> 13253.81002 | AI75: =AC75*AI1 -> 13527.36 | AM75: 26781.17002 | AN75: 7192.850015
A76: 612 | B76: 住宅 | C76: 85.22 | E76: =C76*E1 -> 11845.58 | I76: =C76*I1 -> 7158.48 | M76: 19004.06 | AA76: 612 | AB76: 住宅 | AC76: 85.22 | AE76: =AC76*AE1 -> 12858.48918 | AI76: =AC76*AI1 -> 13123.88 | AM76: 25982.36918 | AN76: 6978.309179
A77: 701 | B77: 住宅 | C77: 79.46 | E77: =C77*E1 -> 11044.94 | I77: =C77*I1 -> 6674.64 | M77: 17719.58 | AA77: 701 | AB77: 住宅 | AC77: 79.46 | AE77: =AC77*AE1 -> 11989.38688 | AI77: =AC77*AI1 -> 12236.84 | AM77: 24226.22688 | AN77: 6506.646883
A78: 702 | B78: 住宅 | C78: 62.31 | E78: =C78*E1 -> 8661.09 | I78: =C78*I1 -> 5234.04 | M78: 13895.13 | AA78: 702 | AB78: 住宅 | AC78: 62.31 | AE78: =AC78*AE1 -> 9401.695151 | AI78: =AC78*AI1 -> 9595.74 | AM78: 18997.43515 | AN78: 5102.305151
A79: 703 | B79: 住宅 | C79: 62.31 | E79: =C79*E1 -> 8661.09 | I79: =C79*I1 -> 5234.04 | M79: 13895.13 | AA79: 703 | AB79: 住宅 | AC79: 62.31 | AE79: =AC79*AE1 -> 9401.695151 | AI79: =AC79*AI1 -> 9595.74 | AM79: 18997.43515 | AN79: 5102.305151
A80: 704 | B80: 住宅 | C80: 64.45 | E80: =C80*E1 -> 8958.55 | I80: =C80*I1 -> 5413.8 | M80: 14372.35 | AA80: 704 | AB80: 住宅 | AC80: 64.45 | AE80: =AC80*AE1 -> 9724.590796 | AI80: =AC80*AI1 -> 9925.3 | AM80: 19649.8908 | AN80: 5277.540796
A81: 705 | B81: 住宅 | C81: 83.06 | E81: =C81*E1 -> 11545.34 | I81: =C81*I1 -> 6977.04 | M81: 18522.38 | AA81: 705 | AB81: 住宅 | AC81: 83.06 | AE81: =AC81*AE1 -> 12532.57582 | AI81: =AC81*AI1 -> 12791.24 | AM81: 25323.81582 | AN81: 6801.435818
A82: 706 | B82: 住宅 | C82: 77.41 | E82: =C82*E1 -> 10759.99 | I82: =C82*I1 -> 6502.44 | M82: 17262.43 | AA82: 706 | AB82: 住宅 | AC82: 77.41 | AE82: =AC82*AE1 -> 11680.07096 | AI82: =AC82*AI1 -> 11921.14 | AM82: 23601.21096 | AN82: 6338.780962
A83: 707 | B83: 住宅 | C83: 78 | E83: =C83*E1 -> 10842 | I83: =C83*I1 -> 6552 | M83: 17394 | AA83: 707 | AB83: 住宅 | AC83: 78 | AE83: =AC83*AE1 -> 11769.09359 | AI83: =AC83*AI1 -> 12012 | AM83: 23781.09359 | AN83: 6387.093593
A84: 708 | B84: 住宅 | C84: 66.98 | E84: =C84*E1 -> 9310.22 | I84: =C84*I1 -> 5626.32 | M84: 14936.54 | AA84: 708 | AB84: 住宅 | AC84: 66.98 | AE84: =AC84*AE1 -> 10106.33191 | AI84: =AC84*AI1 -> 10314.92 | AM84: 20421.25191 | AN84: 5484.711908
A85: 709 | B85: 住宅 | C85: 73.7 | E85: =C85*E1 -> 10244.3 | I85: =C85*I1 -> 6190.8 | M85: 16435.1 | AA85: 709 | AB85: 住宅 | AC85: 73.7 | AE85: =AC85*AE1 -> 11120.28459 | AI85: =AC85*AI1 -> 11349.8 | AM85: 22470.08459 | AN85: 6034.984587
A86: 710 | B86: 住宅 | C86: 76.8 | E86: =C86*E1 -> 10675.2 | I86: =C86*I1 -> 6451.2 | M86: 17126.4 | AA86: 710 | AB86: 住宅 | AC86: 76.8 | AE86: =AC86*AE1 -> 11588.03061 | AI86: =AC86*AI1 -> 11827.2 | AM86: 23415.23061 | AN86: 6288.830614
A87: 711 | B87: 住宅 | C87: 87.84 | E87: =C87*E1 -> 12209.76 | I87: =C87*I1 -> 7378.56 | M87: 19588.32 | AA87: 711 | AB87: 住宅 | AC87: 87.84 | AE87: =AC87*AE1 -> 13253.81002 | AI87: =AC87*AI1 -> 13527.36 | AM87: 26781.17002 | AN87: 7192.850015
A88: 712 | B88: 住宅 | C88: 85.22 | E88: =C88*E1 -> 11845.58 | I88: =C88*I1 -> 7158.48 | M88: 19004.06 | AA88: 712 | AB88: 住宅 | AC88: 85.22 | AE88: =AC88*AE1 -> 12858.48918 | AI88: =AC88*AI1 -> 13123.88 | AM88: 25982.36918 | AN88: 6978.309179
A89: 801 | B89: 住宅 | C89: 83 | E89: =C89*E1 -> 11537 | I89: =C89*I1 -> 6972 | M89: 18509 | AA89: 801 | AB89: 住宅 | AC89: 83 | AE89: =AC89*AE1 -> 12523.52267 | AI89: =AC89*AI1 -> 12782 | AM89: 25305.52267 | AN89: 6796.522669
A90: 802 | B90: 住宅 | C90: 77.41 | E90: =C90*E1 -> 10759.99 | I90: =C90*I1 -> 6502.44 | M90: 17262.43 | AA90: 802 | AB90: 住宅 | AC90: 77.41 | AE90: =AC90*AE1 -> 11680.07096 | AI90: =AC90*AI1 -> 11921.14 | AM90: 23601.21096 | AN90: 6338.780962
A91: 803 | B91: 住宅 | C91: 78 | E91: =C91*E1 -> 10842 | I91: =C91*I1 -> 6552 | M91: 17394 | AA91: 803 | AB91: 住宅 | AC91: 78 | AE91: =AC91*AE1 -> 11769.09359 | AI91: =AC91*AI1 -> 12012 | AM91: 23781.09359 | AN91: 6387.093593
A92: 804 | B92: 住宅 | C92: 66.98 | E92: =C92*E1 -> 9310.22 | I92: =C92*I1 -> 5626.32 | M92: 14936.54 | AA92: 804 | AB92: 住宅 | AC92: 66.98 | AE92: =AC92*AE1 -> 10106.33191 | AI92: =AC92*AI1 -> 10314.92 | AM92: 20421.25191 | AN92: 5484.711908
A93: 805 | B93: 住宅 | C93: 73.7 | E93: =C93*E1 -> 10244.3 | I93: =C93*I1 -> 6190.8 | M93: 16435.1 | AA93: 805 | AB93: 住宅 | AC93: 73.7 | AE93: =AC93*AE1 -> 11120.28459 | AI93: =AC93*AI1 -> 11349.8 | AM93: 22470.08459 | AN93: 6034.984587
A94: 806 | B94: 住宅 | C94: 76.8 | E94: =C94*E1 -> 10675.2 | I94: =C94*I1 -> 6451.2 | M94: 17126.4 | AA94: 806 | AB94: 住宅 | AC94: 76.8 | AE94: =AC94*AE1 -> 11588.03061 | AI94: =AC94*AI1 -> 11827.2 | AM94: 23415.23061 | AN94: 6288.830614
A95: 807 | B95: 住宅 | C95: 87.84 | E95: =C95*E1 -> 12209.76 | I95: =C95*I1 -> 7378.56 | M95: 19588.32 | AA95: 807 | AB95: 住宅 | AC95: 87.84 | AE95: =AC95*AE1 -> 13253.81002 | AI95: =AC95*AI1 -> 13527.36 | AM95: 26781.17002 | AN95: 7192.850015
A96: 901 | B96: 住宅 | C96: 83.06 | E96: =C96*E1 -> 11545.34 | I96: =C96*I1 -> 6977.04 | M96: 18522.38 | AA96: 901 | AB96: 住宅 | AC96: 83.06 | AE96: =AC96*AE1 -> 12532.57582 | AI96: =AC96*AI1 -> 12791.24 | AM96: 25323.81582 | AN96: 6801.435818
A97: 902 | B97: 住宅 | C97: 77.41 | E97: =C97*E1 -> 10759.99 | I97: =C97*I1 -> 6502.44 | M97: 17262.43 | AA97: 902 | AB97: 住宅 | AC97: 77.41 | AE97: =AC97*AE1 -> 11680.07096 | AI97: =AC97*AI1 -> 11921.14 | AM97: 23601.21096 | AN97: 6338.780962
A98: 903 | B98: 住宅 | C98: 78 | E98: =C98*E1 -> 10842 | I98: =C98*I1 -> 6552 | M98: 17394 | AA98: 903 | AB98: 住宅 | AC98: 78 | AE98: =AC98*AE1 -> 11769.09359 | AI98: =AC98*AI1 -> 12012 | AM98: 23781.09359 | AN98: 6387.093593
A99: 904 | B99: 住宅 | C99: 56.71 | E99: =C99*E1 -> 7882.69 | I99: =C99*I1 -> 4763.64 | M99: 12646.33 | AA99: 904 | AB99: 住宅 | AC99: 56.71 | AE99: =AC99*AE1 -> 8556.734585 | AI99: =AC99*AI1 -> 8733.34 | AM99: 17290.07459 | AN99: 4643.744585
A100: 905 | B100: 住宅 | C100: 60.05 | E100: =C100*E1 -> 8346.95 | I100: =C100*I1 -> 5044.2 | M100: 13391.15 | AA100: 905 | AB100: 住宅 | AC100: 60.05 | AE100: =AC100*AE1 -> 9060.693208 | AI100: =AC100*AI1 -> 9247.7 | AM100: 18308.39321 | AN100: 4917.243208
A101: 906 | B101: 住宅 | C101: 76.8 | E101: =C101*E1 -> 10675.2 | I101: =C101*I1 -> 6451.2 | M101: 17126.4 | AA101: 906 | AB101: 住宅 | AC101: 76.8 | AE101: =AC101*AE1 -> 11588.03061 | AI101: =AC101*AI1 -> 11827.2 | AM101: 23415.23061 | AN101: 6288.830614
A102: 907 | B102: 住宅 | C102: 87.84 | E102: =C102*E1 -> 12209.76 | I102: =C102*I1 -> 7378.56 | M102: 19588.32 | AA102: 907 | AB102: 住宅 | AC102: 87.84 | AE102: =AC102*AE1 -> 13253.81002 | AI102: =AC102*AI1 -> 13527.36 | AM102: 26781.17002 | AN102: 7192.850015
A103: 1001 | B103: 住宅 | C103: 83.06 | E103: =C103*E1 -> 11545.34 | I103: =C103*I1 -> 6977.04 | M103: 18522.38 | AA103: 1001 | AB103: 住宅 | AC103: 83.06 | AE103: =AC103*AE1 -> 12532.57582 | AI103: =AC103*AI1 -> 12791.24 | AM103: 25323.81582 | AN103: 6801.435818
A104: 1002 | B104: 住宅 | C104: 77.41 | E104: =C104*E1 -> 10759.99 | I104: =C104*I1 -> 6502.44 | M104: 17262.43 | AA104: 1002 | AB104: 住宅 | AC104: 77.41 | AE104: =AC104*AE1 -> 11680.07096 | AI104: =AC104*AI1 -> 11921.14 | AM104: =SUM(AD104:AK104) -> 23601.21096 | AN104: =AM104-M104 -> 6338.780962
A105: 1003 | B105: 住宅 | C105: 99.72 | E105: =C105*E1 -> 13861.08 | I105: =C105*I1 -> 8376.48 | M105: =SUM(D105:K105) -> 22237.56 | AA105: 1003 | AB105: 住宅 | AC105: 99.72 | AE105: =AC105*AE1 -> 15046.3335 | AI105: =AC105*AI1 -> 15356.88 | AM105: 30403.2135 | AN105: 8165.653501
A106: 1004 | B106: 住宅 | C106: 98.56 | E106: =C106*E1 -> 13699.84 | I106: =C106*I1 -> 8279.04 | M106: 21978.88 | AA106: 1004 | AB106: 住宅 | AC106: 98.56 | AE106: =AC106*AE1 -> 14871.30596 | AI106: =AC106*AI1 -> 15178.24 | AM106: 30049.54596 | AN106: 8070.665955
A107: 1005 | B107: 住宅 | C107: 87.84 | E107: =C107*E1 -> 12209.76 | I107: =C107*I1 -> 7378.56 | M107: 19588.32 | AA107: 1005 | AB107: 住宅 | AC107: 87.84 | AE107: =AC107*AE1 -> 13253.81002 | AI107: =AC107*AI1 -> 13527.36 | AM107: 26781.17002 | AN107: 7192.850015
A108: 1101 | B108: 住宅 | C108: 83.06 | E108: =C108*E1 -> 11545.34 | I108: =C108*I1 -> 6977.04 | M108: 18522.38 | AA108: 1101 | AB108: 住宅 | AC108: 83.06 | AE108: =AC108*AE1 -> 12532.57582 | AI108: =AC108*AI1 -> 12791.24 | AM108: 25323.81582 | AN108: 6801.435818
A109: 1102 | B109: 住宅 | C109: 77.41 | E109: =C109*E1 -> 10759.99 | I109: =C109*I1 -> 6502.44 | M109: 17262.43 | AA109: 1102 | AB109: 住宅 | AC109: 77.41 | AE109: =AC109*AE1 -> 11680.07096 | AI109: =AC109*AI1 -> 11921.14 | AM109: 23601.21096 | AN109: 6338.780962
A110: 1103 | B110: 住宅 | C110: 79.8 | E110: =C110*E1 -> 11092.2 | I110: =C110*I1 -> 6703.2 | M110: 17795.4 | AA110: 1103 | AB110: 住宅 | AC110: 79.8 | AE110: =AC110*AE1 -> 12040.68806 | AI110: =AC110*AI1 -> 12289.2 | AM110: 24329.88806 | AN110: 6534.48806
A111: 1104 | B111: 住宅 | C111: 96.94 | E111: =C111*E1 -> 13474.66 | I111: =C111*I1 -> 8142.96 | M111: 21617.62 | AA111: 1104 | AB111: 住宅 | AC111: 96.94 | AE111: =AC111*AE1 -> 14626.87093 | AI111: =AC111*AI1 -> 14928.76 | AM111: 29555.63093 | AN111: 7938.010934
A112: 1105 | B112: 住宅 | C112: 87.84 | E112: =C112*E1 -> 12209.76 | I112: =C112*I1 -> 7378.56 | M112: 19588.32 | AA112: 1105 | AB112: 住宅 | AC112: 87.84 | AE112: =AC112*AE1 -> 13253.81002 | AI112: =AC112*AI1 -> 13527.36 | AM112: 26781.17002 | AN112: 7192.850015
A113: 1201 | B113: 住宅 | C113: 83.06 | E113: =C113*E1 -> 11545.34 | I113: =C113*I1 -> 6977.04 | M113: 18522.38 | AA113: 1201 | AB113: 住宅 | AC113: 83.06 | AE113: =AC113*AE1 -> 12532.57582 | AI113: =AC113*AI1 -> 12791.24 | AM113: 25323.81582 | AN113: 6801.435818
A114: 1202 | B114: 住宅 | C114: 77.41 | E114: =C114*E1 -> 10759.99 | I114: =C114*I1 -> 6502.44 | M114: 17262.43 | AA114: 1202 | AB114: 住宅 | AC114: 77.41 | AE114: =AC114*AE1 -> 11680.07096 | AI114: =AC114*AI1 -> 11921.14 | AM114: 23601.21096 | AN114: 6338.780962
A115: 1203 | B115: 住宅 | C115: 79.8 | E115: =C115*E1 -> 11092.2 | I115: =C115*I1 -> 6703.2 | M115: 17795.4 | AA115: 1203 | AB115: 住宅 | AC115: 79.8 | AE115: =AC115*AE1 -> 12040.68806 | AI115: =AC115*AI1 -> 12289.2 | AM115: 24329.88806 | AN115: 6534.48806
A116: 1204 | B116: 住宅 | C116: 96.94 | E116: =C116*E1 -> 13474.66 | I116: =C116*I1 -> 8142.96 | M116: 21617.62 | AA116: 1204 | AB116: 住宅 | AC116: 96.94 | AE116: =AC116*AE1 -> 14626.87093 | AI116: =AC116*AI1 -> 14928.76 | AM116: 29555.63093 | AN116: 7938.010934
A117: 1205 | B117: 住宅 | C117: 87.84 | E117: =C117*E1 -> 12209.76 | I117: =C117*I1 -> 7378.56 | M117: 19588.32 | AA117: 1205 | AB117: 住宅 | AC117: 87.84 | AE117: =AC117*AE1 -> 13253.81002 | AI117: =AC117*AI1 -> 13527.36 | AM117: 26781.17002 | AN117: 7192.850015
A118: 1301 | B118: 住宅 | C118: 83.06 | E118: =C118*E1 -> 11545.34 | I118: =C118*I1 -> 6977.04 | M118: 18522.38 | AA118: 1301 | AB118: 住宅 | AC118: 83.06 | AE118: =AC118*AE1 -> 12532.57582 | AI118: =AC118*AI1 -> 12791.24 | AM118: 25323.81582 | AN118: 6801.435818
A119: 1302 | B119: 住宅 | C119: 77.41 | E119: =C119*E1 -> 10759.99 | I119: =C119*I1 -> 6502.44 | M119: 17262.43 | AA119: 1302 | AB119: 住宅 | AC119: 77.41 | AE119: =AC119*AE1 -> 11680.07096 | AI119: =AC119*AI1 -> 11921.14 | AM119: 23601.21096 | AN119: 6338.780962
A120: 1303 | B120: 住宅 | C120: 79.8 | E120: =C120*E1 -> 11092.2 | I120: =C120*I1 -> 6703.2 | M120: 17795.4 | AA120: 1303 | AB120: 住宅 | AC120: 79.8 | AE120: =AC120*AE1 -> 12040.68806 | AI120: =AC120*AI1 -> 12289.2 | AM120: 24329.88806 | AN120: 6534.48806
A121: 1304 | B121: 住宅 | C121: 96.94 | E121: =C121*E1 -> 13474.66 | I121: =C121*I1 -> 8142.96 | M121: 21617.62 | AA121: 1304 | AB121: 住宅 | AC121: 96.94 | AE121: =AC121*AE1 -> 14626.87093 | AI121: =AC121*AI1 -> 14928.76 | AM121: 29555.63093 | AN121: 7938.010934 | AP121: 検算
A122: 1305 | B122: 住宅 | C122: 87.84 | E122: =C122*E1 -> 12209.76 | I122: =C122*I1 -> 7378.56 | M122: 19588.32 | AA122: 1305 | AB122: 住宅 | AC122: 87.84 | AE122: =AC122*AE1 -> 13253.81002 | AI122: =AC122*AI1 -> 13527.36 | AM122: 26781.17002 | AN122: 7192.850015 | AP122: 管理費増加分 | AQ122: 修繕増加分 | AR122: 計
A123: 合計 | C123: =SUM(C40:C122) -> 6313.12 | E123: =SUM(E40:E122) -> 877523.68 | I123: =SUM(I40:I122) -> 530302.08 | M123: =SUM(M39:M122) -> 1407825.76 | AA123: 合計 | AC123: =SUM(AC40:AC122) -> 6313.12 | AE123: =SUM(AE40:AE122) -> 952560.2582 | AI123: =SUM(AI40:AI122) -> 972220.48 | AM123: =SUM(AM39:AM122) -> 1924780.738 | AN123: 516954.9782 | AO123: ② | AP123: =AE123-E123 -> 75036.57823 | AQ123: =AI123-I123 -> 441918.4 | AR123: =AP123+AQ123 -> 516954.9782
AO124: ①+② | AP124: =AP37+AP123 -> 144687.5747 | AQ124: =AQ37+AQ123 -> 852119.1 | AR124: 996806.6747
A125: 積立金等の設定 | D125: 現行月額 | E125: 年度額 | F125: 年合計額 | Q125: 参考 | R125: ｍ2 | S125: 現行単価 | T125: 現行管理費 | U125: 改定単価 | V125: 改定管理費 | W125: 増額
A126: 一般会計収入 | B126: 住宅 | D126: =E123 -> 877523.68 | E126: =D126*12 -> 10530284.16 | H126: 管理費 | I126: 値上率(%) | J126: 想定期間 | K126: 期間合計 | L126: 15年間の累計額 | M126: 単年度当たりの増額 | N126: 専有面積合計 | O126: 単価/m2/年 | P126: 月額単価/m2 | Q126: 店舗 | R126: 50 | S126: 184 | T126: =R126*S126 -> 9200 | U126: =P127+S126 -> 195.8858153 | V126: =R126*U126 -> 9794.290765 | W126: =V126-T126 -> 594.2907646
B127: 施設 | D127: =D37 -> 222941.76 | E127: =D127*12 -> 2675301.12 | I127: 5 | J127: 15 | K127: =FV(I127/100,15,,-F128) -> 50182314.97 | L127: =K127-F128 -> 26043763.45 | M127: =L127/J127 -> 1736250.896 | N127: =C37+C123 -> 12173.13 | O127: =M127/N127 -> 142.6297835 | P127: =O127/12 -> 11.88581529 | Q127: 住宅 | R127: 70 | S127: 139 | T127: =R127*S127 -> 9730 | U127: =P127+S127 -> 150.8858153 | V127: =R127*U127 -> 10562.00707 | W127: =V127-T127 -> 832.0070704
B128: セントラル | D128: =F37 -> 911080.52 | E128: 10932966.24 | F128: =SUM(E126:E128) -> 24138551.52 | Q128: セントラル | R128: =C13 -> 4271.87 | S128: 196 | T128: =R128*S128 -> 837286.52 | U128: =P127+S128 -> 207.8858153 | V128: =R128*U128 -> 888061.1778 | W128: =V128-T128 -> 50774.65777
A130: 特別会計収入 | B130: 住宅 | D130: =I123 -> 530302.08 | E130: 6363624.96 | H130: 修繕積立金 | J130: 面積 | K130: 面積合計 | M130: 期間（年・ヶ月） | N130: 増額合計額 | Q130: 参考 | R130: ｍ2 | S130: 現行単価 | T130: 現行管理費 | U130: 改定単価 | V130: 改定管理費 | W130: 増額
B131: 施設 | D131: =H37 -> 94507.92 | E131: 1134095.04 | F131: ①小計 | H131: 対象 | I131: 住宅 | J131: =C123 -> 6313.12 | L131: 増額金額/m2/月 | M131: 15 | Q131: 店舗 | R131: 50 | S131: 78 | T131: =R131*S131 -> 3900 | U131: =S131+L132 -> 148 | V131: =R131*U131 -> 7400 | W131: =V131-T131 -> 3500
B132: セントラル | D132: =J37 -> 362572.86 | E132: 4350874.32 | F132: =SUM(E130:E132) -> 11848594.32 | I132: 施設 | J132: =C37 -> 5860.01 | K132: =J131+J132 -> 12173.13 | L132: 70 | M132: =M131*12 -> 180 | N132: =K132*L132*M132 -> 153381438 | Q132: 住宅 | R132: 70 | S132: 84 | T132: =R132*S132 -> 5880 | U132: =S132+L132 -> 154 | V132: =R132*U132 -> 10780 | W132: =V132-T132 -> 4900
I133: セントラル | Q133: セントラル | R133: =C13 -> 4271.87 | S133: 78 | T133: =R133*S133 -> 333205.86 | U133: =S133+L132 -> 148 | V133: 632236.76 | W133: 299030.9
B134: 住宅駐車場使用料 | D134: 4400000 | E134: 値上率 | K134: 月額合計 | L134: =K132*L132 -> 852119.1
B135: 施設駐車場使用料 | D135: 1400000 | E135: 10 | K135: 年額合計 | L135: =L134*12 -> 10225429.2
B136: 駐車場特別修繕費 | D136: 1555320 | E136: ➁小計 | F136: ①+➁年合計額
B137: 看板使用料 | D137: 1437840 | E137: =D138*(1+E135/100) -> 9672476 | F137: =F132+E137 -> 21521070.32 | L137: =F137+L135 -> 31746499.52
C138: 合計 | D138: =SUM(D134:D137) -> 8793160
A140: シートロック | B140: 3241
